{"text_format":"1","workbook":"xlsx","n_sheets":2,"sheets":["Signs","Lookups"],"not_rendered":{"charts":0,"images":0,"macros":0,"external_links":0,"defined_names":44,"comments":1,"pivot_tables":0},"unopened":[],"bounds":{"document_bytes":16777216,"sheet_cells":100000,"rows_first":2000,"rows_last":500,"rows_between":2000,"halvings":0,"cell_chars":16384,"cell_head_chars":4096},"cells_cut":0,"cells_raw":0,"read":"whole","date_system":"1900"}

{"sheet":"Signs","index":0,"n_rows":98,"n_cols":66,"rows_kept":98,"cut":false,"hidden":false,"merged":[]}
["15f221f1-c15e-4d8e-a679-81fade5c4405_road_id","sh-rs-d","15f221f1-c15e-4d8e-a679-81fade5c4404_location",null,null,null,null,null,null,null,"31690c8a-eca4-45b9-af80-4fee40b7b324_sign_type_desc","31690c8a-eca4-45b9-af80-4fee40b7b324_sign_type","6fd51e0a-2482-41af-a324-873515e289c5_sign_class_desc","6fd51e0a-2482-41af-a324-873515e289c5_sign_class","6a1aa62b-1a45-456d-9481-2d4317d3dffc_post_count","e4f65fc1-c40b-4f66-b514-35f8586b344d_quantity","81199b5c-4eb8-49a1-8356-f8add97a2873_indicating_dir_desc","81199b5c-4eb8-49a1-8356-f8add97a2873_indicating_dir","2591736d-264c-4f9b-86dd-9d8d071cf6ad_legend_note","5f69a190-936e-4ac3-891b-9e0c6bd3939e_legend2_note","7187c73d-4971-48b3-aba3-4597154e8423_legend_material_desc","7187c73d-4971-48b3-aba3-4597154e8423_legend_material","a7aee1e8-b0f6-4fbf-afa8-797aee2fe5e0_legend_colour_desc","a7aee1e8-b0f6-4fbf-afa8-797aee2fe5e0_legend_colour","5b978c17-1378-44c3-b456-4c3c9df7e681_bground_material_desc","5b978c17-1378-44c3-b456-4c3c9df7e681_bground_material","a248e66c-7244-44ab-b712-d9d7f4f54a84_bground_colour_desc","a248e66c-7244-44ab-b712-d9d7f4f54a84_bground_colour","229c8da2-44ec-4fac-a892-819f52ddd688_not_ramm_field_checked_legend_info","f8737ab6-e683-4015-83f1-df7efcfd1168_sign_substrate_desc","f8737ab6-e683-4015-83f1-df7efcfd1168_sign_substrate","1c7bedb0-9e7c-439a-aada-cfcc99084397_frame_desc","1c7bedb0-9e7c-439a-aada-cfcc99084397_frame","0e2bf8f1-7e4a-4ffb-b17d-6582f7bef9fd_side_desc","0e2bf8f1-7e4a-4ffb-b17d-6582f7bef9fd_side","d23ba04c-97e2-40a3-bd5f-9d764e1b944f_offest","d030e165-d1cd-46d5-9db1-2bae1decc9f7_sign_width","48172a12-1ac2-4e96-b515-383e95f43ec9_sign_height","7a601548-55b9-4dee-93a8-dda210b11420_ground_height","a34b0e84-dd77-4517-85c6-3db68838b9dd_install_date","ce9bb4a7-82db-469c-9e77-9a8ecaa946c1_in_replace_reason_desc","ce9bb4a7-82db-469c-9e77-9a8ecaa946c1_in_replace_reason","8a519bbe-bf7b-4c81-87a6-c53fad8745ed_sign_owner_desc","8a519bbe-bf7b-4c81-87a6-c53fad8745ed_sign_owner","091a488a-82e8-4279-a213-00a03abbc778_original_cost","05781827-5ca6-474f-b789-607220acb632_risk_likelihood_desc","05781827-5ca6-474f-b789-607220acb632_risk_likelihood","e8ae25e3-cc73-4ad9-bcc5-31f642fe04fd_risk_consequence_desc","e8ae25e3-cc73-4ad9-bcc5-31f642fe04fd_risk_consequence","e4b6c8cd-d224-4b57-9888-ade8a11a182f_risk_desc","e4b6c8cd-d224-4b57-9888-ade8a11a182f_risk","f4d302d0-691b-4656-a3a2-250e38cf93e6_rul_reset_desc","f4d302d0-691b-4656-a3a2-250e38cf93e6_rul_reset","831b9047-2dba-43d0-8a85-41fb64fadfdc_use_default_rc_desc","831b9047-2dba-43d0-8a85-41fb64fadfdc_use_default_rc","d6d9c460-8cb2-422e-807a-49df4c4f8528_condition_desc","d6d9c460-8cb2-422e-807a-49df4c4f8528_condition","45e0d845-6cd3-45cc-8a1a-0b650915efd5_condition_date","465dde79-631d-489f-9696-e8c1ad052ecb_collect_name_desc","465dde79-631d-489f-9696-e8c1ad052ecb_collect_name","0ec42887-8a07-439f-b58d-c02bf69efe13_general_note","19f6487f-d3ef-452b-a8c0-5509a6b90166_sign_id","2f8933fc-81ea-49e4-b887-58eaa95f706f_prior_id","174721fb-634b-40bd-ac56-9d5ed882582d_replace_date","fef3ac0d-673f-4ad4-83e8-4435b7121ea6_rep_replace_reason_desc","fef3ac0d-673f-4ad4-83e8-4435b7121ea6_rep_replace_reason"]
["road_id","sh-rs-d","location",null,null,null,null,null,null,null,"sign_type_desc","sign_type","sign_class_desc","sign_class","post_count","quantity","indicating_dir_desc","indicating_dir","legend_note","legend2_note","legend_material_desc","legend_material","legend_colour_desc","legend_colour","bground_material_desc","bground_material","bground_colour_desc","bground_colour","not_ramm_field_checked_legend_info","sign_substrate_desc","sign_substrate","frame_desc","frame","side_desc","side","offest","sign_width","sign_height","ground_height","install_date","in_replace_reason_desc","in_replace_reason","sign_owner_desc","sign_owner","original_cost","risk_likelihood_desc","risk_likelihood","risk_consequence_desc","risk_consequence","risk_desc","risk","rul_reset_desc","rul_reset","use_default_rc_desc","use_default_rc","condition_desc","condition","condition_date","collect_name_desc","collect_name","general_note","sign_id","prior_id","replace_date","rep_replace_reason_desc","rep_replace_reason"]
["Start Road Id","SH-RS-D  (e.g. 016-0000-B) letter must be uppercase and include leading 0","Location(m)","GPS By Desc","GPS By","Northing","easting","GPS Date (dd/mm/yyyy) Must include leading 0","GPS Method Id Desc","GPD Method Id","Sign Type Description","Sign Type","Sign Class Description","Sign Class","Number of Posts","Quantity","Indicating Direction Description","Indicating Direction","Legend Note (front of sign)","Reverse Legend Note (back of sign)","Legend Material Description","Legend Material","Legend Colour Description","Legend Colour","Background Material Description","Background Material","Background Colour Description","Background Colour","Checked Legend Information (put TRUE or FALSE ,  must be uppercase)","Substrate Material Description","Substrate Material","Framed Description","Framed","Side Description","Side","Offset","Width (mm)","Height (mm)","Ground Height (mm)","Install Date (dd/mm/yyyy) Must include leading 0","Install Reason Description","Install Reason","Sign Owner Description","Sign Owner","Original Cost","Risk Likelihood Description","Risk Likelihood","Risk Consequence Description","Risk Consequence","Risk Description","Risk","RUL Reset Description","RUL Reset","Use Default RC Description","Use Default RC","Condition Description","Condition","Condition Date (dd/mm/yyyy) Must include leading 0","Organisation Description","Organisation","Comments (if required)","Sign ID","Prior Id","Replace Date (dd/mm/yyyy) Must include leading 0","Replace Reason Description","Replace Reason"]
[{"$f":"_xlfn.FILTERXML(_xlfn.WEBSERVICE(\"https://nds-beta.mobileroad.org/xy_sh?rp=\"&B4&\"/\"&C4&\"&xml=true\"),\"/lrms/id_road\")","v":{"$error":"#VALUE!"}},null,null,null,{"$f":"IF(D4=\"\", \"\", VLOOKUP(D4,gps_by[],2,FALSE))","v":""},null,null,null,null,{"$f":"IF(I4=\"\", \"\", VLOOKUP(I4,gps_method_id[],2,FALSE))","v":""},null,{"$f":"IF(K4=\"\",\"\",VLOOKUP(K4,types[],2,FALSE))","v":""},null,{"$f":"IF(M4=\"\",\"\",VLOOKUP(M4,class[],2,FALSE))","v":""},null,null,null,{"$f":"IF(Q4=\"\",\"\",VLOOKUP(Q4,indicating_direction[],2,FALSE))","v":""},null,null,null,{"$f":"IF(U4=\"\",\"\",VLOOKUP(U4,legend_material[],2,FALSE))","v":""},null,{"$f":"IF(W4=\"\",\"\",VLOOKUP(W4,legend_colour[],2,FALSE))","v":""},null,{"$f":"IF(Y4=\"\",\"\",VLOOKUP(Y4,background_material[],2,FALSE))","v":""},null,{"$f":"IF(AA4=\"\",\"\",VLOOKUP(AA4,background_colour[],2,FALSE))","v":""},null,null,{"$f":"IF(AD4=\"\",\"\",VLOOKUP(AD4,substrate_material[],2,FALSE))","v":""},null,{"$f":"IF(AF4=\"\",\"\",VLOOKUP(AF4,frame[],2,FALSE))","v":""},null,{"$f":"IF(AH4=\"\",\"\",VLOOKUP(AH4,side[],2,FALSE))","v":""},null,null,null,null,null,null,{"$f":"IF(AO4=\"\",\"\",VLOOKUP(AO4,install_reason[],2,FALSE))","v":""},null,{"$f":"IF(AQ4=\"\",\"\",VLOOKUP(AQ4,owner[],2,FALSE))","v":""},null,null,{"$f":"IF(AT4=\"\",\"\",VLOOKUP(AT4,likelihood[],2,FALSE))","v":""},null,{"$f":"IF(AV4=\"\",\"\",VLOOKUP(AV4,consequence[],2,FALSE))","v":""},null,{"$f":"IF(AX4=\"\",\"\",VLOOKUP(AX4,risk[],2,FALSE))","v":""},null,{"$f":"IF(AZ4=\"\",\"\",VLOOKUP(AZ4,rul_reset[],2,FALSE))","v":""},null,{"$f":"IF(BB4=\"\",\"\",VLOOKUP(BB4,use_default[],2,FALSE))","v":""},null,{"$f":"IF(BD4=\"\",\"\",VLOOKUP(BD4,condition[],2,FALSE))","v":""},null,null,{"$f":"IF(BG4=\"\",\"\",VLOOKUP(BG4,organisation[],2,FALSE))","v":""},null,null,null,null,null,{"$f":"IF(BM4=\"\",\"\",VLOOKUP(BM4,replace_reason[],2,FALSE))","v":""}]
[{"$f":"_xlfn.FILTERXML(_xlfn.WEBSERVICE(\"https://nds-beta.mobileroad.org/xy_sh?rp=\"&B5&\"/\"&C5&\"&xml=true\"),\"/lrms/id_road\")","v":{"$error":"#VALUE!"}},null,null,null,{"$f":"IF(D5=\"\", \"\", VLOOKUP(D5,gps_by[],2,FALSE))","v":""},null,null,null,null,{"$f":"IF(I5=\"\", \"\", VLOOKUP(I5,gps_method_id[],2,FALSE))","v":""},null,{"$f":"IF(K5=\"\",\"\",VLOOKUP(K5,types[],2,FALSE))","v":""},null,{"$f":"IF(M5=\"\",\"\",VLOOKUP(M5,class[],2,FALSE))","v":""},null,null,null,{"$f":"IF(Q5=\"\",\"\",VLOOKUP(Q5,indicating_direction[],2,FALSE))","v":""},null,null,null,{"$f":"IF(U5=\"\",\"\",VLOOKUP(U5,legend_material[],2,FALSE))","v":""},null,{"$f":"IF(W5=\"\",\"\",VLOOKUP(W5,legend_colour[],2,FALSE))","v":""},null,{"$f":"IF(Y5=\"\",\"\",VLOOKUP(Y5,background_material[],2,FALSE))","v":""},null,{"$f":"IF(AA5=\"\",\"\",VLOOKUP(AA5,background_colour[],2,FALSE))","v":""},null,null,{"$f":"IF(AD5=\"\",\"\",VLOOKUP(AD5,substrate_material[],2,FALSE))","v":""},null,{"$f":"IF(AF5=\"\",\"\",VLOOKUP(AF5,frame[],2,FALSE))","v":""},null,{"$f":"IF(AH5=\"\",\"\",VLOOKUP(AH5,side[],2,FALSE))","v":""},null,null,null,null,null,null,{"$f":"IF(AO5=\"\",\"\",VLOOKUP(AO5,install_reason[],2,FALSE))","v":""},null,{"$f":"IF(AQ5=\"\",\"\",VLOOKUP(AQ5,owner[],2,FALSE))","v":""},null,null,{"$f":"IF(AT5=\"\",\"\",VLOOKUP(AT5,likelihood[],2,FALSE))","v":""},null,{"$f":"IF(AV5=\"\",\"\",VLOOKUP(AV5,consequence[],2,FALSE))","v":""},null,{"$f":"IF(AX5=\"\",\"\",VLOOKUP(AX5,risk[],2,FALSE))","v":""},null,{"$f":"IF(AZ5=\"\",\"\",VLOOKUP(AZ5,rul_reset[],2,FALSE))","v":""},null,{"$f":"IF(BB5=\"\",\"\",VLOOKUP(BB5,use_default[],2,FALSE))","v":""},null,{"$f":"IF(BD5=\"\",\"\",VLOOKUP(BD5,condition[],2,FALSE))","v":""},null,null,{"$f":"IF(BG5=\"\",\"\",VLOOKUP(BG5,organisation[],2,FALSE))","v":""},null,null,null,null,null,{"$f":"IF(BM5=\"\",\"\",VLOOKUP(BM5,replace_reason[],2,FALSE))","v":""}]
[{"$error":"#VALUE!"},null,null,null,{"$f":"IF(D6=\"\", \"\", VLOOKUP(D6,gps_by[],2,FALSE))","v":""},null,null,null,null,{"$f":"IF(I6=\"\", \"\", VLOOKUP(I6,gps_method_id[],2,FALSE))","v":""},null,{"$f":"IF(K6=\"\",\"\",VLOOKUP(K6,types[],2,FALSE))","v":""},null,{"$f":"IF(M6=\"\",\"\",VLOOKUP(M6,class[],2,FALSE))","v":""},null,null,null,{"$f":"IF(Q6=\"\",\"\",VLOOKUP(Q6,indicating_direction[],2,FALSE))","v":""},null,null,null,{"$f":"IF(U6=\"\",\"\",VLOOKUP(U6,legend_material[],2,FALSE))","v":""},null,{"$f":"IF(W6=\"\",\"\",VLOOKUP(W6,legend_colour[],2,FALSE))","v":""},null,{"$f":"IF(Y6=\"\",\"\",VLOOKUP(Y6,background_material[],2,FALSE))","v":""},null,{"$f":"IF(AA6=\"\",\"\",VLOOKUP(AA6,background_colour[],2,FALSE))","v":""},null,null,{"$f":"IF(AD6=\"\",\"\",VLOOKUP(AD6,substrate_material[],2,FALSE))","v":""},null,{"$f":"IF(AF6=\"\",\"\",VLOOKUP(AF6,frame[],2,FALSE))","v":""},null,{"$f":"IF(AH6=\"\",\"\",VLOOKUP(AH6,side[],2,FALSE))","v":""},null,null,null,null,null,null,{"$f":"IF(AO6=\"\",\"\",VLOOKUP(AO6,install_reason[],2,FALSE))","v":""},null,{"$f":"IF(AQ6=\"\",\"\",VLOOKUP(AQ6,owner[],2,FALSE))","v":""},null,null,{"$f":"IF(AT6=\"\",\"\",VLOOKUP(AT6,likelihood[],2,FALSE))","v":""},null,{"$f":"IF(AV6=\"\",\"\",VLOOKUP(AV6,consequence[],2,FALSE))","v":""},null,{"$f":"IF(AX6=\"\",\"\",VLOOKUP(AX6,risk[],2,FALSE))","v":""},null,{"$f":"IF(AZ6=\"\",\"\",VLOOKUP(AZ6,rul_reset[],2,FALSE))","v":""},null,{"$f":"IF(BB6=\"\",\"\",VLOOKUP(BB6,use_default[],2,FALSE))","v":""},null,{"$f":"IF(BD6=\"\",\"\",VLOOKUP(BD6,condition[],2,FALSE))","v":""},null,null,{"$f":"IF(BG6=\"\",\"\",VLOOKUP(BG6,organisation[],2,FALSE))","v":""},null,null,null,null,null,{"$f":"IF(BM6=\"\",\"\",VLOOKUP(BM6,replace_reason[],2,FALSE))","v":""}]
[{"$error":"#VALUE!"},null,null,null,{"$f":"IF(D7=\"\", \"\", VLOOKUP(D7,gps_by[],2,FALSE))","v":""},null,null,null,null,{"$f":"IF(I7=\"\", \"\", VLOOKUP(I7,gps_method_id[],2,FALSE))","v":""},null,{"$f":"IF(K7=\"\",\"\",VLOOKUP(K7,types[],2,FALSE))","v":""},null,{"$f":"IF(M7=\"\",\"\",VLOOKUP(M7,class[],2,FALSE))","v":""},null,null,null,{"$f":"IF(Q7=\"\",\"\",VLOOKUP(Q7,indicating_direction[],2,FALSE))","v":""},null,null,null,{"$f":"IF(U7=\"\",\"\",VLOOKUP(U7,legend_material[],2,FALSE))","v":""},null,{"$f":"IF(W7=\"\",\"\",VLOOKUP(W7,legend_colour[],2,FALSE))","v":""},null,{"$f":"IF(Y7=\"\",\"\",VLOOKUP(Y7,background_material[],2,FALSE))","v":""},null,{"$f":"IF(AA7=\"\",\"\",VLOOKUP(AA7,background_colour[],2,FALSE))","v":""},null,null,{"$f":"IF(AD7=\"\",\"\",VLOOKUP(AD7,substrate_material[],2,FALSE))","v":""},null,{"$f":"IF(AF7=\"\",\"\",VLOOKUP(AF7,frame[],2,FALSE))","v":""},null,{"$f":"IF(AH7=\"\",\"\",VLOOKUP(AH7,side[],2,FALSE))","v":""},null,null,null,null,null,null,{"$f":"IF(AO7=\"\",\"\",VLOOKUP(AO7,install_reason[],2,FALSE))","v":""},null,{"$f":"IF(AQ7=\"\",\"\",VLOOKUP(AQ7,owner[],2,FALSE))","v":""},null,null,{"$f":"IF(AT7=\"\",\"\",VLOOKUP(AT7,likelihood[],2,FALSE))","v":""},null,{"$f":"IF(AV7=\"\",\"\",VLOOKUP(AV7,consequence[],2,FALSE))","v":""},null,{"$f":"IF(AX7=\"\",\"\",VLOOKUP(AX7,risk[],2,FALSE))","v":""},null,{"$f":"IF(AZ7=\"\",\"\",VLOOKUP(AZ7,rul_reset[],2,FALSE))","v":""},null,{"$f":"IF(BB7=\"\",\"\",VLOOKUP(BB7,use_default[],2,FALSE))","v":""},null,{"$f":"IF(BD7=\"\",\"\",VLOOKUP(BD7,condition[],2,FALSE))","v":""},null,null,{"$f":"IF(BG7=\"\",\"\",VLOOKUP(BG7,organisation[],2,FALSE))","v":""},null,null,null,null,null,{"$f":"IF(BM7=\"\",\"\",VLOOKUP(BM7,replace_reason[],2,FALSE))","v":""}]
[{"$error":"#VALUE!"},null,null,null,{"$f":"IF(D8=\"\", \"\", VLOOKUP(D8,gps_by[],2,FALSE))","v":""},null,null,null,null,{"$f":"IF(I8=\"\", \"\", VLOOKUP(I8,gps_method_id[],2,FALSE))","v":""},null,{"$f":"IF(K8=\"\",\"\",VLOOKUP(K8,types[],2,FALSE))","v":""},null,{"$f":"IF(M8=\"\",\"\",VLOOKUP(M8,class[],2,FALSE))","v":""},null,null,null,{"$f":"IF(Q8=\"\",\"\",VLOOKUP(Q8,indicating_direction[],2,FALSE))","v":""},null,null,null,{"$f":"IF(U8=\"\",\"\",VLOOKUP(U8,legend_material[],2,FALSE))","v":""},null,{"$f":"IF(W8=\"\",\"\",VLOOKUP(W8,legend_colour[],2,FALSE))","v":""},null,{"$f":"IF(Y8=\"\",\"\",VLOOKUP(Y8,background_material[],2,FALSE))","v":""},null,{"$f":"IF(AA8=\"\",\"\",VLOOKUP(AA8,background_colour[],2,FALSE))","v":""},null,null,{"$f":"IF(AD8=\"\",\"\",VLOOKUP(AD8,substrate_material[],2,FALSE))","v":""},null,{"$f":"IF(AF8=\"\",\"\",VLOOKUP(AF8,frame[],2,FALSE))","v":""},null,{"$f":"IF(AH8=\"\",\"\",VLOOKUP(AH8,side[],2,FALSE))","v":""},null,null,null,null,null,null,{"$f":"IF(AO8=\"\",\"\",VLOOKUP(AO8,install_reason[],2,FALSE))","v":""},null,{"$f":"IF(AQ8=\"\",\"\",VLOOKUP(AQ8,owner[],2,FALSE))","v":""},null,null,{"$f":"IF(AT8=\"\",\"\",VLOOKUP(AT8,likelihood[],2,FALSE))","v":""},null,{"$f":"IF(AV8=\"\",\"\",VLOOKUP(AV8,consequence[],2,FALSE))","v":""},null,{"$f":"IF(AX8=\"\",\"\",VLOOKUP(AX8,risk[],2,FALSE))","v":""},null,{"$f":"IF(AZ8=\"\",\"\",VLOOKUP(AZ8,rul_reset[],2,FALSE))","v":""},null,{"$f":"IF(BB8=\"\",\"\",VLOOKUP(BB8,use_default[],2,FALSE))","v":""},null,{"$f":"IF(BD8=\"\",\"\",VLOOKUP(BD8,condition[],2,FALSE))","v":""},null,null,{"$f":"IF(BG8=\"\",\"\",VLOOKUP(BG8,organisation[],2,FALSE))","v":""},null,null,null,null,null,{"$f":"IF(BM8=\"\",\"\",VLOOKUP(BM8,replace_reason[],2,FALSE))","v":""}]
[{"$error":"#VALUE!"},null,null,null,{"$f":"IF(D9=\"\", \"\", VLOOKUP(D9,gps_by[],2,FALSE))","v":""},null,null,null,null,{"$f":"IF(I9=\"\", \"\", VLOOKUP(I9,gps_method_id[],2,FALSE))","v":""},null,{"$f":"IF(K9=\"\",\"\",VLOOKUP(K9,types[],2,FALSE))","v":""},null,{"$f":"IF(M9=\"\",\"\",VLOOKUP(M9,class[],2,FALSE))","v":""},null,null,null,{"$f":"IF(Q9=\"\",\"\",VLOOKUP(Q9,indicating_direction[],2,FALSE))","v":""},null,null,null,{"$f":"IF(U9=\"\",\"\",VLOOKUP(U9,legend_material[],2,FALSE))","v":""},null,{"$f":"IF(W9=\"\",\"\",VLOOKUP(W9,legend_colour[],2,FALSE))","v":""},null,{"$f":"IF(Y9=\"\",\"\",VLOOKUP(Y9,background_material[],2,FALSE))","v":""},null,{"$f":"IF(AA9=\"\",\"\",VLOOKUP(AA9,background_colour[],2,FALSE))","v":""},null,null,{"$f":"IF(AD9=\"\",\"\",VLOOKUP(AD9,substrate_material[],2,FALSE))","v":""},null,{"$f":"IF(AF9=\"\",\"\",VLOOKUP(AF9,frame[],2,FALSE))","v":""},null,{"$f":"IF(AH9=\"\",\"\",VLOOKUP(AH9,side[],2,FALSE))","v":""},null,null,null,null,null,null,{"$f":"IF(AO9=\"\",\"\",VLOOKUP(AO9,install_reason[],2,FALSE))","v":""},null,{"$f":"IF(AQ9=\"\",\"\",VLOOKUP(AQ9,owner[],2,FALSE))","v":""},null,null,{"$f":"IF(AT9=\"\",\"\",VLOOKUP(AT9,likelihood[],2,FALSE))","v":""},null,{"$f":"IF(AV9=\"\",\"\",VLOOKUP(AV9,consequence[],2,FALSE))","v":""},null,{"$f":"IF(AX9=\"\",\"\",VLOOKUP(AX9,risk[],2,FALSE))","v":""},null,{"$f":"IF(AZ9=\"\",\"\",VLOOKUP(AZ9,rul_reset[],2,FALSE))","v":""},null,{"$f":"IF(BB9=\"\",\"\",VLOOKUP(BB9,use_default[],2,FALSE))","v":""},null,{"$f":"IF(BD9=\"\",\"\",VLOOKUP(BD9,condition[],2,FALSE))","v":""},null,null,{"$f":"IF(BG9=\"\",\"\",VLOOKUP(BG9,organisation[],2,FALSE))","v":""},null,null,null,null,null,{"$f":"IF(BM9=\"\",\"\",VLOOKUP(BM9,replace_reason[],2,FALSE))","v":""}]
[{"$error":"#VALUE!"},null,null,null,{"$f":"IF(D10=\"\", \"\", VLOOKUP(D10,gps_by[],2,FALSE))","v":""},null,null,null,null,{"$f":"IF(I10=\"\", \"\", VLOOKUP(I10,gps_method_id[],2,FALSE))","v":""},null,{"$f":"IF(K10=\"\",\"\",VLOOKUP(K10,types[],2,FALSE))","v":""},null,{"$f":"IF(M10=\"\",\"\",VLOOKUP(M10,class[],2,FALSE))","v":""},null,null,null,{"$f":"IF(Q10=\"\",\"\",VLOOKUP(Q10,indicating_direction[],2,FALSE))","v":""},null,null,null,{"$f":"IF(U10=\"\",\"\",VLOOKUP(U10,legend_material[],2,FALSE))","v":""},null,{"$f":"IF(W10=\"\",\"\",VLOOKUP(W10,legend_colour[],2,FALSE))","v":""},null,{"$f":"IF(Y10=\"\",\"\",VLOOKUP(Y10,background_material[],2,FALSE))","v":""},null,{"$f":"IF(AA10=\"\",\"\",VLOOKUP(AA10,background_colour[],2,FALSE))","v":""},null,null,{"$f":"IF(AD10=\"\",\"\",VLOOKUP(AD10,substrate_material[],2,FALSE))","v":""},null,{"$f":"IF(AF10=\"\",\"\",VLOOKUP(AF10,frame[],2,FALSE))","v":""},null,{"$f":"IF(AH10=\"\",\"\",VLOOKUP(AH10,side[],2,FALSE))","v":""},null,null,null,null,null,null,{"$f":"IF(AO10=\"\",\"\",VLOOKUP(AO10,install_reason[],2,FALSE))","v":""},null,{"$f":"IF(AQ10=\"\",\"\",VLOOKUP(AQ10,owner[],2,FALSE))","v":""},null,null,{"$f":"IF(AT10=\"\",\"\",VLOOKUP(AT10,likelihood[],2,FALSE))","v":""},null,{"$f":"IF(AV10=\"\",\"\",VLOOKUP(AV10,consequence[],2,FALSE))","v":""},null,{"$f":"IF(AX10=\"\",\"\",VLOOKUP(AX10,risk[],2,FALSE))","v":""},null,{"$f":"IF(AZ10=\"\",\"\",VLOOKUP(AZ10,rul_reset[],2,FALSE))","v":""},null,{"$f":"IF(BB10=\"\",\"\",VLOOKUP(BB10,use_default[],2,FALSE))","v":""},null,{"$f":"IF(BD10=\"\",\"\",VLOOKUP(BD10,condition[],2,FALSE))","v":""},null,null,{"$f":"IF(BG10=\"\",\"\",VLOOKUP(BG10,organisation[],2,FALSE))","v":""},null,null,null,null,null,{"$f":"IF(BM10=\"\",\"\",VLOOKUP(BM10,replace_reason[],2,FALSE))","v":""}]
[{"$error":"#VALUE!"},null,null,null,{"$f":"IF(D11=\"\", \"\", VLOOKUP(D11,gps_by[],2,FALSE))","v":""},null,null,null,null,null,null,{"$f":"IF(K11=\"\",\"\",VLOOKUP(K11,types[],2,FALSE))","v":""},null,{"$f":"IF(M11=\"\",\"\",VLOOKUP(M11,class[],2,FALSE))","v":""},null,null,null,{"$f":"IF(Q11=\"\",\"\",VLOOKUP(Q11,indicating_direction[],2,FALSE))","v":""},null,null,null,{"$f":"IF(U11=\"\",\"\",VLOOKUP(U11,legend_material[],2,FALSE))","v":""},null,{"$f":"IF(W11=\"\",\"\",VLOOKUP(W11,legend_colour[],2,FALSE))","v":""},null,{"$f":"IF(Y11=\"\",\"\",VLOOKUP(Y11,background_material[],2,FALSE))","v":""},null,{"$f":"IF(AA11=\"\",\"\",VLOOKUP(AA11,background_colour[],2,FALSE))","v":""},null,null,{"$f":"IF(AD11=\"\",\"\",VLOOKUP(AD11,substrate_material[],2,FALSE))","v":""},null,{"$f":"IF(AF11=\"\",\"\",VLOOKUP(AF11,frame[],2,FALSE))","v":""},null,{"$f":"IF(AH11=\"\",\"\",VLOOKUP(AH11,side[],2,FALSE))","v":""},null,null,null,null,null,null,{"$f":"IF(AO11=\"\",\"\",VLOOKUP(AO11,install_reason[],2,FALSE))","v":""},null,{"$f":"IF(AQ11=\"\",\"\",VLOOKUP(AQ11,owner[],2,FALSE))","v":""},null,null,{"$f":"IF(AT11=\"\",\"\",VLOOKUP(AT11,likelihood[],2,FALSE))","v":""},null,{"$f":"IF(AV11=\"\",\"\",VLOOKUP(AV11,consequence[],2,FALSE))","v":""},null,{"$f":"IF(AX11=\"\",\"\",VLOOKUP(AX11,risk[],2,FALSE))","v":""},null,{"$f":"IF(AZ11=\"\",\"\",VLOOKUP(AZ11,rul_reset[],2,FALSE))","v":""},null,{"$f":"IF(BB11=\"\",\"\",VLOOKUP(BB11,use_default[],2,FALSE))","v":""},null,{"$f":"IF(BD11=\"\",\"\",VLOOKUP(BD11,condition[],2,FALSE))","v":""},null,null,{"$f":"IF(BG11=\"\",\"\",VLOOKUP(BG11,organisation[],2,FALSE))","v":""},null,null,null,null,null,{"$f":"IF(BM11=\"\",\"\",VLOOKUP(BM11,replace_reason[],2,FALSE))","v":""}]
[{"$error":"#VALUE!"},null,null,null,null,null,null,null,null,{"$f":"IF(I12=\"\", \"\", VLOOKUP(I12,gps_method_id[],2,FALSE))","v":""},null,{"$f":"IF(K12=\"\",\"\",VLOOKUP(K12,types[],2,FALSE))","v":""},null,{"$f":"IF(M12=\"\",\"\",VLOOKUP(M12,class[],2,FALSE))","v":""},null,null,null,{"$f":"IF(Q12=\"\",\"\",VLOOKUP(Q12,indicating_direction[],2,FALSE))","v":""},null,null,null,{"$f":"IF(U12=\"\",\"\",VLOOKUP(U12,legend_material[],2,FALSE))","v":""},null,{"$f":"IF(W12=\"\",\"\",VLOOKUP(W12,legend_colour[],2,FALSE))","v":""},null,{"$f":"IF(Y12=\"\",\"\",VLOOKUP(Y12,background_material[],2,FALSE))","v":""},null,{"$f":"IF(AA12=\"\",\"\",VLOOKUP(AA12,background_colour[],2,FALSE))","v":""},null,null,{"$f":"IF(AD12=\"\",\"\",VLOOKUP(AD12,substrate_material[],2,FALSE))","v":""},null,{"$f":"IF(AF12=\"\",\"\",VLOOKUP(AF12,frame[],2,FALSE))","v":""},null,{"$f":"IF(AH12=\"\",\"\",VLOOKUP(AH12,side[],2,FALSE))","v":""},null,null,null,null,null,null,{"$f":"IF(AO12=\"\",\"\",VLOOKUP(AO12,install_reason[],2,FALSE))","v":""},null,{"$f":"IF(AQ12=\"\",\"\",VLOOKUP(AQ12,owner[],2,FALSE))","v":""},null,null,{"$f":"IF(AT12=\"\",\"\",VLOOKUP(AT12,likelihood[],2,FALSE))","v":""},null,{"$f":"IF(AV12=\"\",\"\",VLOOKUP(AV12,consequence[],2,FALSE))","v":""},null,{"$f":"IF(AX12=\"\",\"\",VLOOKUP(AX12,risk[],2,FALSE))","v":""},null,{"$f":"IF(AZ12=\"\",\"\",VLOOKUP(AZ12,rul_reset[],2,FALSE))","v":""},null,{"$f":"IF(BB12=\"\",\"\",VLOOKUP(BB12,use_default[],2,FALSE))","v":""},null,{"$f":"IF(BD12=\"\",\"\",VLOOKUP(BD12,condition[],2,FALSE))","v":""},null,null,{"$f":"IF(BG12=\"\",\"\",VLOOKUP(BG12,organisation[],2,FALSE))","v":""},null,null,null,null,null,{"$f":"IF(BM12=\"\",\"\",VLOOKUP(BM12,replace_reason[],2,FALSE))","v":""}]
[{"$error":"#VALUE!"},null,null,null,{"$f":"IF(D13=\"\", \"\", VLOOKUP(D13,gps_by[],2,FALSE))","v":""},null,null,null,null,{"$f":"IF(I13=\"\", \"\", VLOOKUP(I13,gps_method_id[],2,FALSE))","v":""},null,{"$f":"IF(K13=\"\",\"\",VLOOKUP(K13,types[],2,FALSE))","v":""},null,{"$f":"IF(M13=\"\",\"\",VLOOKUP(M13,class[],2,FALSE))","v":""},null,null,null,{"$f":"IF(Q13=\"\",\"\",VLOOKUP(Q13,indicating_direction[],2,FALSE))","v":""},null,null,null,{"$f":"IF(U13=\"\",\"\",VLOOKUP(U13,legend_material[],2,FALSE))","v":""},null,{"$f":"IF(W13=\"\",\"\",VLOOKUP(W13,legend_colour[],2,FALSE))","v":""},null,{"$f":"IF(Y13=\"\",\"\",VLOOKUP(Y13,background_material[],2,FALSE))","v":""},null,{"$f":"IF(AA13=\"\",\"\",VLOOKUP(AA13,background_colour[],2,FALSE))","v":""},null,null,{"$f":"IF(AD13=\"\",\"\",VLOOKUP(AD13,substrate_material[],2,FALSE))","v":""},null,{"$f":"IF(AF13=\"\",\"\",VLOOKUP(AF13,frame[],2,FALSE))","v":""},null,{"$f":"IF(AH13=\"\",\"\",VLOOKUP(AH13,side[],2,FALSE))","v":""},null,null,null,null,null,null,{"$f":"IF(AO13=\"\",\"\",VLOOKUP(AO13,install_reason[],2,FALSE))","v":""},null,{"$f":"IF(AQ13=\"\",\"\",VLOOKUP(AQ13,owner[],2,FALSE))","v":""},null,null,{"$f":"IF(AT13=\"\",\"\",VLOOKUP(AT13,likelihood[],2,FALSE))","v":""},null,{"$f":"IF(AV13=\"\",\"\",VLOOKUP(AV13,consequence[],2,FALSE))","v":""},null,{"$f":"IF(AX13=\"\",\"\",VLOOKUP(AX13,risk[],2,FALSE))","v":""},null,{"$f":"IF(AZ13=\"\",\"\",VLOOKUP(AZ13,rul_reset[],2,FALSE))","v":""},null,{"$f":"IF(BB13=\"\",\"\",VLOOKUP(BB13,use_default[],2,FALSE))","v":""},null,{"$f":"IF(BD13=\"\",\"\",VLOOKUP(BD13,condition[],2,FALSE))","v":""},null,null,{"$f":"IF(BG13=\"\",\"\",VLOOKUP(BG13,organisation[],2,FALSE))","v":""},null,null,null,null,null,{"$f":"IF(BM13=\"\",\"\",VLOOKUP(BM13,replace_reason[],2,FALSE))","v":""}]
[{"$error":"#VALUE!"},null,null,null,{"$f":"IF(D14=\"\", \"\", VLOOKUP(D14,gps_by[],2,FALSE))","v":""},null,null,null,null,{"$f":"IF(I14=\"\", \"\", VLOOKUP(I14,gps_method_id[],2,FALSE))","v":""},null,{"$f":"IF(K14=\"\",\"\",VLOOKUP(K14,types[],2,FALSE))","v":""},null,{"$f":"IF(M14=\"\",\"\",VLOOKUP(M14,class[],2,FALSE))","v":""},null,null,null,{"$f":"IF(Q14=\"\",\"\",VLOOKUP(Q14,indicating_direction[],2,FALSE))","v":""},null,null,null,{"$f":"IF(U14=\"\",\"\",VLOOKUP(U14,legend_material[],2,FALSE))","v":""},null,{"$f":"IF(W14=\"\",\"\",VLOOKUP(W14,legend_colour[],2,FALSE))","v":""},null,{"$f":"IF(Y14=\"\",\"\",VLOOKUP(Y14,background_material[],2,FALSE))","v":""},null,{"$f":"IF(AA14=\"\",\"\",VLOOKUP(AA14,background_colour[],2,FALSE))","v":""},null,null,{"$f":"IF(AD14=\"\",\"\",VLOOKUP(AD14,substrate_material[],2,FALSE))","v":""},null,{"$f":"IF(AF14=\"\",\"\",VLOOKUP(AF14,frame[],2,FALSE))","v":""},null,{"$f":"IF(AH14=\"\",\"\",VLOOKUP(AH14,side[],2,FALSE))","v":""},null,null,null,null,null,null,{"$f":"IF(AO14=\"\",\"\",VLOOKUP(AO14,install_reason[],2,FALSE))","v":""},null,{"$f":"IF(AQ14=\"\",\"\",VLOOKUP(AQ14,owner[],2,FALSE))","v":""},null,null,{"$f":"IF(AT14=\"\",\"\",VLOOKUP(AT14,likelihood[],2,FALSE))","v":""},null,{"$f":"IF(AV14=\"\",\"\",VLOOKUP(AV14,consequence[],2,FALSE))","v":""},null,{"$f":"IF(AX14=\"\",\"\",VLOOKUP(AX14,risk[],2,FALSE))","v":""},null,{"$f":"IF(AZ14=\"\",\"\",VLOOKUP(AZ14,rul_reset[],2,FALSE))","v":""},null,{"$f":"IF(BB14=\"\",\"\",VLOOKUP(BB14,use_default[],2,FALSE))","v":""},null,{"$f":"IF(BD14=\"\",\"\",VLOOKUP(BD14,condition[],2,FALSE))","v":""},null,null,{"$f":"IF(BG14=\"\",\"\",VLOOKUP(BG14,organisation[],2,FALSE))","v":""},null,null,null,null,null,{"$f":"IF(BM14=\"\",\"\",VLOOKUP(BM14,replace_reason[],2,FALSE))","v":""}]
[{"$error":"#VALUE!"},null,null,null,{"$f":"IF(D15=\"\", \"\", VLOOKUP(D15,gps_by[],2,FALSE))","v":""},null,null,null,null,{"$f":"IF(I15=\"\", \"\", VLOOKUP(I15,gps_method_id[],2,FALSE))","v":""},null,{"$f":"IF(K15=\"\",\"\",VLOOKUP(K15,types[],2,FALSE))","v":""},null,{"$f":"IF(M15=\"\",\"\",VLOOKUP(M15,class[],2,FALSE))","v":""},null,null,null,{"$f":"IF(Q15=\"\",\"\",VLOOKUP(Q15,indicating_direction[],2,FALSE))","v":""},null,null,null,{"$f":"IF(U15=\"\",\"\",VLOOKUP(U15,legend_material[],2,FALSE))","v":""},null,{"$f":"IF(W15=\"\",\"\",VLOOKUP(W15,legend_colour[],2,FALSE))","v":""},null,{"$f":"IF(Y15=\"\",\"\",VLOOKUP(Y15,background_material[],2,FALSE))","v":""},null,{"$f":"IF(AA15=\"\",\"\",VLOOKUP(AA15,background_colour[],2,FALSE))","v":""},null,null,{"$f":"IF(AD15=\"\",\"\",VLOOKUP(AD15,substrate_material[],2,FALSE))","v":""},null,{"$f":"IF(AF15=\"\",\"\",VLOOKUP(AF15,frame[],2,FALSE))","v":""},null,{"$f":"IF(AH15=\"\",\"\",VLOOKUP(AH15,side[],2,FALSE))","v":""},null,null,null,null,null,null,{"$f":"IF(AO15=\"\",\"\",VLOOKUP(AO15,install_reason[],2,FALSE))","v":""},null,{"$f":"IF(AQ15=\"\",\"\",VLOOKUP(AQ15,owner[],2,FALSE))","v":""},null,null,{"$f":"IF(AT15=\"\",\"\",VLOOKUP(AT15,likelihood[],2,FALSE))","v":""},null,{"$f":"IF(AV15=\"\",\"\",VLOOKUP(AV15,consequence[],2,FALSE))","v":""},null,{"$f":"IF(AX15=\"\",\"\",VLOOKUP(AX15,risk[],2,FALSE))","v":""},null,{"$f":"IF(AZ15=\"\",\"\",VLOOKUP(AZ15,rul_reset[],2,FALSE))","v":""},null,{"$f":"IF(BB15=\"\",\"\",VLOOKUP(BB15,use_default[],2,FALSE))","v":""},null,{"$f":"IF(BD15=\"\",\"\",VLOOKUP(BD15,condition[],2,FALSE))","v":""},null,null,{"$f":"IF(BG15=\"\",\"\",VLOOKUP(BG15,organisation[],2,FALSE))","v":""},null,null,null,null,null,{"$f":"IF(BM15=\"\",\"\",VLOOKUP(BM15,replace_reason[],2,FALSE))","v":""}]
[{"$error":"#VALUE!"},null,null,null,{"$f":"IF(D16=\"\", \"\", VLOOKUP(D16,gps_by[],2,FALSE))","v":""},null,null,null,null,{"$f":"IF(I16=\"\", \"\", VLOOKUP(I16,gps_method_id[],2,FALSE))","v":""},null,{"$f":"IF(K16=\"\",\"\",VLOOKUP(K16,types[],2,FALSE))","v":""},null,{"$f":"IF(M16=\"\",\"\",VLOOKUP(M16,class[],2,FALSE))","v":""},null,null,null,{"$f":"IF(Q16=\"\",\"\",VLOOKUP(Q16,indicating_direction[],2,FALSE))","v":""},null,null,null,{"$f":"IF(U16=\"\",\"\",VLOOKUP(U16,legend_material[],2,FALSE))","v":""},null,{"$f":"IF(W16=\"\",\"\",VLOOKUP(W16,legend_colour[],2,FALSE))","v":""},null,{"$f":"IF(Y16=\"\",\"\",VLOOKUP(Y16,background_material[],2,FALSE))","v":""},null,{"$f":"IF(AA16=\"\",\"\",VLOOKUP(AA16,background_colour[],2,FALSE))","v":""},null,null,{"$f":"IF(AD16=\"\",\"\",VLOOKUP(AD16,substrate_material[],2,FALSE))","v":""},null,{"$f":"IF(AF16=\"\",\"\",VLOOKUP(AF16,frame[],2,FALSE))","v":""},null,{"$f":"IF(AH16=\"\",\"\",VLOOKUP(AH16,side[],2,FALSE))","v":""},null,null,null,null,null,null,{"$f":"IF(AO16=\"\",\"\",VLOOKUP(AO16,install_reason[],2,FALSE))","v":""},null,{"$f":"IF(AQ16=\"\",\"\",VLOOKUP(AQ16,owner[],2,FALSE))","v":""},null,null,{"$f":"IF(AT16=\"\",\"\",VLOOKUP(AT16,likelihood[],2,FALSE))","v":""},null,{"$f":"IF(AV16=\"\",\"\",VLOOKUP(AV16,consequence[],2,FALSE))","v":""},null,{"$f":"IF(AX16=\"\",\"\",VLOOKUP(AX16,risk[],2,FALSE))","v":""},null,{"$f":"IF(AZ16=\"\",\"\",VLOOKUP(AZ16,rul_reset[],2,FALSE))","v":""},null,{"$f":"IF(BB16=\"\",\"\",VLOOKUP(BB16,use_default[],2,FALSE))","v":""},null,{"$f":"IF(BD16=\"\",\"\",VLOOKUP(BD16,condition[],2,FALSE))","v":""},null,null,{"$f":"IF(BG16=\"\",\"\",VLOOKUP(BG16,organisation[],2,FALSE))","v":""},null,null,null,null,null,{"$f":"IF(BM16=\"\",\"\",VLOOKUP(BM16,replace_reason[],2,FALSE))","v":""}]
[{"$error":"#VALUE!"},null,null,null,{"$f":"IF(D17=\"\", \"\", VLOOKUP(D17,gps_by[],2,FALSE))","v":""},null,null,null,null,{"$f":"IF(I17=\"\", \"\", VLOOKUP(I17,gps_method_id[],2,FALSE))","v":""},null,{"$f":"IF(K17=\"\",\"\",VLOOKUP(K17,types[],2,FALSE))","v":""},null,{"$f":"IF(M17=\"\",\"\",VLOOKUP(M17,class[],2,FALSE))","v":""},null,null,null,{"$f":"IF(Q17=\"\",\"\",VLOOKUP(Q17,indicating_direction[],2,FALSE))","v":""},null,null,null,{"$f":"IF(U17=\"\",\"\",VLOOKUP(U17,legend_material[],2,FALSE))","v":""},null,{"$f":"IF(W17=\"\",\"\",VLOOKUP(W17,legend_colour[],2,FALSE))","v":""},null,{"$f":"IF(Y17=\"\",\"\",VLOOKUP(Y17,background_material[],2,FALSE))","v":""},null,{"$f":"IF(AA17=\"\",\"\",VLOOKUP(AA17,background_colour[],2,FALSE))","v":""},null,null,{"$f":"IF(AD17=\"\",\"\",VLOOKUP(AD17,substrate_material[],2,FALSE))","v":""},null,{"$f":"IF(AF17=\"\",\"\",VLOOKUP(AF17,frame[],2,FALSE))","v":""},null,{"$f":"IF(AH17=\"\",\"\",VLOOKUP(AH17,side[],2,FALSE))","v":""},null,null,null,null,null,null,{"$f":"IF(AO17=\"\",\"\",VLOOKUP(AO17,install_reason[],2,FALSE))","v":""},null,{"$f":"IF(AQ17=\"\",\"\",VLOOKUP(AQ17,owner[],2,FALSE))","v":""},null,null,{"$f":"IF(AT17=\"\",\"\",VLOOKUP(AT17,likelihood[],2,FALSE))","v":""},null,{"$f":"IF(AV17=\"\",\"\",VLOOKUP(AV17,consequence[],2,FALSE))","v":""},null,{"$f":"IF(AX17=\"\",\"\",VLOOKUP(AX17,risk[],2,FALSE))","v":""},null,{"$f":"IF(AZ17=\"\",\"\",VLOOKUP(AZ17,rul_reset[],2,FALSE))","v":""},null,{"$f":"IF(BB17=\"\",\"\",VLOOKUP(BB17,use_default[],2,FALSE))","v":""},null,{"$f":"IF(BD17=\"\",\"\",VLOOKUP(BD17,condition[],2,FALSE))","v":""},null,null,{"$f":"IF(BG17=\"\",\"\",VLOOKUP(BG17,organisation[],2,FALSE))","v":""},null,null,null,null,null,{"$f":"IF(BM17=\"\",\"\",VLOOKUP(BM17,replace_reason[],2,FALSE))","v":""}]
[{"$error":"#VALUE!"},null,null,null,{"$f":"IF(D18=\"\", \"\", VLOOKUP(D18,gps_by[],2,FALSE))","v":""},null,null,null,null,{"$f":"IF(I18=\"\", \"\", VLOOKUP(I18,gps_method_id[],2,FALSE))","v":""},null,{"$f":"IF(K18=\"\",\"\",VLOOKUP(K18,types[],2,FALSE))","v":""},null,{"$f":"IF(M18=\"\",\"\",VLOOKUP(M18,class[],2,FALSE))","v":""},null,null,null,{"$f":"IF(Q18=\"\",\"\",VLOOKUP(Q18,indicating_direction[],2,FALSE))","v":""},null,null,null,{"$f":"IF(U18=\"\",\"\",VLOOKUP(U18,legend_material[],2,FALSE))","v":""},null,{"$f":"IF(W18=\"\",\"\",VLOOKUP(W18,legend_colour[],2,FALSE))","v":""},null,{"$f":"IF(Y18=\"\",\"\",VLOOKUP(Y18,background_material[],2,FALSE))","v":""},null,{"$f":"IF(AA18=\"\",\"\",VLOOKUP(AA18,background_colour[],2,FALSE))","v":""},null,null,{"$f":"IF(AD18=\"\",\"\",VLOOKUP(AD18,substrate_material[],2,FALSE))","v":""},null,{"$f":"IF(AF18=\"\",\"\",VLOOKUP(AF18,frame[],2,FALSE))","v":""},null,{"$f":"IF(AH18=\"\",\"\",VLOOKUP(AH18,side[],2,FALSE))","v":""},null,null,null,null,null,null,{"$f":"IF(AO18=\"\",\"\",VLOOKUP(AO18,install_reason[],2,FALSE))","v":""},null,{"$f":"IF(AQ18=\"\",\"\",VLOOKUP(AQ18,owner[],2,FALSE))","v":""},null,null,{"$f":"IF(AT18=\"\",\"\",VLOOKUP(AT18,likelihood[],2,FALSE))","v":""},null,{"$f":"IF(AV18=\"\",\"\",VLOOKUP(AV18,consequence[],2,FALSE))","v":""},null,{"$f":"IF(AX18=\"\",\"\",VLOOKUP(AX18,risk[],2,FALSE))","v":""},null,{"$f":"IF(AZ18=\"\",\"\",VLOOKUP(AZ18,rul_reset[],2,FALSE))","v":""},null,{"$f":"IF(BB18=\"\",\"\",VLOOKUP(BB18,use_default[],2,FALSE))","v":""},null,{"$f":"IF(BD18=\"\",\"\",VLOOKUP(BD18,condition[],2,FALSE))","v":""},null,null,{"$f":"IF(BG18=\"\",\"\",VLOOKUP(BG18,organisation[],2,FALSE))","v":""},null,null,null,null,null,{"$f":"IF(BM18=\"\",\"\",VLOOKUP(BM18,replace_reason[],2,FALSE))","v":""}]
[{"$error":"#VALUE!"},null,null,null,{"$f":"IF(D19=\"\", \"\", VLOOKUP(D19,gps_by[],2,FALSE))","v":""},null,null,null,null,{"$f":"IF(I19=\"\", \"\", VLOOKUP(I19,gps_method_id[],2,FALSE))","v":""},null,{"$f":"IF(K19=\"\",\"\",VLOOKUP(K19,types[],2,FALSE))","v":""},null,{"$f":"IF(M19=\"\",\"\",VLOOKUP(M19,class[],2,FALSE))","v":""},null,null,null,{"$f":"IF(Q19=\"\",\"\",VLOOKUP(Q19,indicating_direction[],2,FALSE))","v":""},null,null,null,{"$f":"IF(U19=\"\",\"\",VLOOKUP(U19,legend_material[],2,FALSE))","v":""},null,{"$f":"IF(W19=\"\",\"\",VLOOKUP(W19,legend_colour[],2,FALSE))","v":""},null,{"$f":"IF(Y19=\"\",\"\",VLOOKUP(Y19,background_material[],2,FALSE))","v":""},null,{"$f":"IF(AA19=\"\",\"\",VLOOKUP(AA19,background_colour[],2,FALSE))","v":""},null,null,{"$f":"IF(AD19=\"\",\"\",VLOOKUP(AD19,substrate_material[],2,FALSE))","v":""},null,{"$f":"IF(AF19=\"\",\"\",VLOOKUP(AF19,frame[],2,FALSE))","v":""},null,{"$f":"IF(AH19=\"\",\"\",VLOOKUP(AH19,side[],2,FALSE))","v":""},null,null,null,null,null,null,{"$f":"IF(AO19=\"\",\"\",VLOOKUP(AO19,install_reason[],2,FALSE))","v":""},null,{"$f":"IF(AQ19=\"\",\"\",VLOOKUP(AQ19,owner[],2,FALSE))","v":""},null,null,{"$f":"IF(AT19=\"\",\"\",VLOOKUP(AT19,likelihood[],2,FALSE))","v":""},null,{"$f":"IF(AV19=\"\",\"\",VLOOKUP(AV19,consequence[],2,FALSE))","v":""},null,{"$f":"IF(AX19=\"\",\"\",VLOOKUP(AX19,risk[],2,FALSE))","v":""},null,{"$f":"IF(AZ19=\"\",\"\",VLOOKUP(AZ19,rul_reset[],2,FALSE))","v":""},null,{"$f":"IF(BB19=\"\",\"\",VLOOKUP(BB19,use_default[],2,FALSE))","v":""},null,{"$f":"IF(BD19=\"\",\"\",VLOOKUP(BD19,condition[],2,FALSE))","v":""},null,null,{"$f":"IF(BG19=\"\",\"\",VLOOKUP(BG19,organisation[],2,FALSE))","v":""},null,null,null,null,null,{"$f":"IF(BM19=\"\",\"\",VLOOKUP(BM19,replace_reason[],2,FALSE))","v":""}]
[{"$error":"#VALUE!"},null,null,null,{"$f":"IF(D20=\"\", \"\", VLOOKUP(D20,gps_by[],2,FALSE))","v":""},null,null,null,null,{"$f":"IF(I20=\"\", \"\", VLOOKUP(I20,gps_method_id[],2,FALSE))","v":""},null,{"$f":"IF(K20=\"\",\"\",VLOOKUP(K20,types[],2,FALSE))","v":""},null,{"$f":"IF(M20=\"\",\"\",VLOOKUP(M20,class[],2,FALSE))","v":""},null,null,null,{"$f":"IF(Q20=\"\",\"\",VLOOKUP(Q20,indicating_direction[],2,FALSE))","v":""},null,null,null,{"$f":"IF(U20=\"\",\"\",VLOOKUP(U20,legend_material[],2,FALSE))","v":""},null,{"$f":"IF(W20=\"\",\"\",VLOOKUP(W20,legend_colour[],2,FALSE))","v":""},null,{"$f":"IF(Y20=\"\",\"\",VLOOKUP(Y20,background_material[],2,FALSE))","v":""},null,{"$f":"IF(AA20=\"\",\"\",VLOOKUP(AA20,background_colour[],2,FALSE))","v":""},null,null,{"$f":"IF(AD20=\"\",\"\",VLOOKUP(AD20,substrate_material[],2,FALSE))","v":""},null,{"$f":"IF(AF20=\"\",\"\",VLOOKUP(AF20,frame[],2,FALSE))","v":""},null,{"$f":"IF(AH20=\"\",\"\",VLOOKUP(AH20,side[],2,FALSE))","v":""},null,null,null,null,null,null,{"$f":"IF(AO20=\"\",\"\",VLOOKUP(AO20,install_reason[],2,FALSE))","v":""},null,{"$f":"IF(AQ20=\"\",\"\",VLOOKUP(AQ20,owner[],2,FALSE))","v":""},null,null,{"$f":"IF(AT20=\"\",\"\",VLOOKUP(AT20,likelihood[],2,FALSE))","v":""},null,{"$f":"IF(AV20=\"\",\"\",VLOOKUP(AV20,consequence[],2,FALSE))","v":""},null,{"$f":"IF(AX20=\"\",\"\",VLOOKUP(AX20,risk[],2,FALSE))","v":""},null,{"$f":"IF(AZ20=\"\",\"\",VLOOKUP(AZ20,rul_reset[],2,FALSE))","v":""},null,{"$f":"IF(BB20=\"\",\"\",VLOOKUP(BB20,use_default[],2,FALSE))","v":""},null,{"$f":"IF(BD20=\"\",\"\",VLOOKUP(BD20,condition[],2,FALSE))","v":""},null,null,{"$f":"IF(BG20=\"\",\"\",VLOOKUP(BG20,organisation[],2,FALSE))","v":""},null,null,null,null,null,{"$f":"IF(BM20=\"\",\"\",VLOOKUP(BM20,replace_reason[],2,FALSE))","v":""}]
[{"$error":"#VALUE!"},null,null,null,{"$f":"IF(D21=\"\", \"\", VLOOKUP(D21,gps_by[],2,FALSE))","v":""},null,null,null,null,{"$f":"IF(I21=\"\", \"\", VLOOKUP(I21,gps_method_id[],2,FALSE))","v":""},null,{"$f":"IF(K21=\"\",\"\",VLOOKUP(K21,types[],2,FALSE))","v":""},null,{"$f":"IF(M21=\"\",\"\",VLOOKUP(M21,class[],2,FALSE))","v":""},null,null,null,{"$f":"IF(Q21=\"\",\"\",VLOOKUP(Q21,indicating_direction[],2,FALSE))","v":""},null,null,null,{"$f":"IF(U21=\"\",\"\",VLOOKUP(U21,legend_material[],2,FALSE))","v":""},null,{"$f":"IF(W21=\"\",\"\",VLOOKUP(W21,legend_colour[],2,FALSE))","v":""},null,{"$f":"IF(Y21=\"\",\"\",VLOOKUP(Y21,background_material[],2,FALSE))","v":""},null,{"$f":"IF(AA21=\"\",\"\",VLOOKUP(AA21,background_colour[],2,FALSE))","v":""},null,null,{"$f":"IF(AD21=\"\",\"\",VLOOKUP(AD21,substrate_material[],2,FALSE))","v":""},null,{"$f":"IF(AF21=\"\",\"\",VLOOKUP(AF21,frame[],2,FALSE))","v":""},null,{"$f":"IF(AH21=\"\",\"\",VLOOKUP(AH21,side[],2,FALSE))","v":""},null,null,null,null,null,null,{"$f":"IF(AO21=\"\",\"\",VLOOKUP(AO21,install_reason[],2,FALSE))","v":""},null,{"$f":"IF(AQ21=\"\",\"\",VLOOKUP(AQ21,owner[],2,FALSE))","v":""},null,null,{"$f":"IF(AT21=\"\",\"\",VLOOKUP(AT21,likelihood[],2,FALSE))","v":""},null,{"$f":"IF(AV21=\"\",\"\",VLOOKUP(AV21,consequence[],2,FALSE))","v":""},null,{"$f":"IF(AX21=\"\",\"\",VLOOKUP(AX21,risk[],2,FALSE))","v":""},null,{"$f":"IF(AZ21=\"\",\"\",VLOOKUP(AZ21,rul_reset[],2,FALSE))","v":""},null,{"$f":"IF(BB21=\"\",\"\",VLOOKUP(BB21,use_default[],2,FALSE))","v":""},null,{"$f":"IF(BD21=\"\",\"\",VLOOKUP(BD21,condition[],2,FALSE))","v":""},null,null,{"$f":"IF(BG21=\"\",\"\",VLOOKUP(BG21,organisation[],2,FALSE))","v":""},null,null,null,null,null,{"$f":"IF(BM21=\"\",\"\",VLOOKUP(BM21,replace_reason[],2,FALSE))","v":""}]
[{"$error":"#VALUE!"},null,null,null,{"$f":"IF(D22=\"\", \"\", VLOOKUP(D22,gps_by[],2,FALSE))","v":""},null,null,null,null,{"$f":"IF(I22=\"\", \"\", VLOOKUP(I22,gps_method_id[],2,FALSE))","v":""},null,{"$f":"IF(K22=\"\",\"\",VLOOKUP(K22,types[],2,FALSE))","v":""},null,{"$f":"IF(M22=\"\",\"\",VLOOKUP(M22,class[],2,FALSE))","v":""},null,null,null,{"$f":"IF(Q22=\"\",\"\",VLOOKUP(Q22,indicating_direction[],2,FALSE))","v":""},null,null,null,{"$f":"IF(U22=\"\",\"\",VLOOKUP(U22,legend_material[],2,FALSE))","v":""},null,{"$f":"IF(W22=\"\",\"\",VLOOKUP(W22,legend_colour[],2,FALSE))","v":""},null,{"$f":"IF(Y22=\"\",\"\",VLOOKUP(Y22,background_material[],2,FALSE))","v":""},null,{"$f":"IF(AA22=\"\",\"\",VLOOKUP(AA22,background_colour[],2,FALSE))","v":""},null,null,{"$f":"IF(AD22=\"\",\"\",VLOOKUP(AD22,substrate_material[],2,FALSE))","v":""},null,{"$f":"IF(AF22=\"\",\"\",VLOOKUP(AF22,frame[],2,FALSE))","v":""},null,{"$f":"IF(AH22=\"\",\"\",VLOOKUP(AH22,side[],2,FALSE))","v":""},null,null,null,null,null,null,{"$f":"IF(AO22=\"\",\"\",VLOOKUP(AO22,install_reason[],2,FALSE))","v":""},null,{"$f":"IF(AQ22=\"\",\"\",VLOOKUP(AQ22,owner[],2,FALSE))","v":""},null,null,{"$f":"IF(AT22=\"\",\"\",VLOOKUP(AT22,likelihood[],2,FALSE))","v":""},null,{"$f":"IF(AV22=\"\",\"\",VLOOKUP(AV22,consequence[],2,FALSE))","v":""},null,{"$f":"IF(AX22=\"\",\"\",VLOOKUP(AX22,risk[],2,FALSE))","v":""},null,{"$f":"IF(AZ22=\"\",\"\",VLOOKUP(AZ22,rul_reset[],2,FALSE))","v":""},null,{"$f":"IF(BB22=\"\",\"\",VLOOKUP(BB22,use_default[],2,FALSE))","v":""},null,{"$f":"IF(BD22=\"\",\"\",VLOOKUP(BD22,condition[],2,FALSE))","v":""},null,null,{"$f":"IF(BG22=\"\",\"\",VLOOKUP(BG22,organisation[],2,FALSE))","v":""},null,null,null,null,null,{"$f":"IF(BM22=\"\",\"\",VLOOKUP(BM22,replace_reason[],2,FALSE))","v":""}]
[{"$error":"#VALUE!"},null,null,null,{"$f":"IF(D23=\"\", \"\", VLOOKUP(D23,gps_by[],2,FALSE))","v":""},null,null,null,null,{"$f":"IF(I23=\"\", \"\", VLOOKUP(I23,gps_method_id[],2,FALSE))","v":""},null,{"$f":"IF(K23=\"\",\"\",VLOOKUP(K23,types[],2,FALSE))","v":""},null,{"$f":"IF(M23=\"\",\"\",VLOOKUP(M23,class[],2,FALSE))","v":""},null,null,null,{"$f":"IF(Q23=\"\",\"\",VLOOKUP(Q23,indicating_direction[],2,FALSE))","v":""},null,null,null,{"$f":"IF(U23=\"\",\"\",VLOOKUP(U23,legend_material[],2,FALSE))","v":""},null,{"$f":"IF(W23=\"\",\"\",VLOOKUP(W23,legend_colour[],2,FALSE))","v":""},null,{"$f":"IF(Y23=\"\",\"\",VLOOKUP(Y23,background_material[],2,FALSE))","v":""},null,{"$f":"IF(AA23=\"\",\"\",VLOOKUP(AA23,background_colour[],2,FALSE))","v":""},null,null,{"$f":"IF(AD23=\"\",\"\",VLOOKUP(AD23,substrate_material[],2,FALSE))","v":""},null,{"$f":"IF(AF23=\"\",\"\",VLOOKUP(AF23,frame[],2,FALSE))","v":""},null,{"$f":"IF(AH23=\"\",\"\",VLOOKUP(AH23,side[],2,FALSE))","v":""},null,null,null,null,null,null,{"$f":"IF(AO23=\"\",\"\",VLOOKUP(AO23,install_reason[],2,FALSE))","v":""},null,{"$f":"IF(AQ23=\"\",\"\",VLOOKUP(AQ23,owner[],2,FALSE))","v":""},null,null,{"$f":"IF(AT23=\"\",\"\",VLOOKUP(AT23,likelihood[],2,FALSE))","v":""},null,{"$f":"IF(AV23=\"\",\"\",VLOOKUP(AV23,consequence[],2,FALSE))","v":""},null,{"$f":"IF(AX23=\"\",\"\",VLOOKUP(AX23,risk[],2,FALSE))","v":""},null,{"$f":"IF(AZ23=\"\",\"\",VLOOKUP(AZ23,rul_reset[],2,FALSE))","v":""},null,{"$f":"IF(BB23=\"\",\"\",VLOOKUP(BB23,use_default[],2,FALSE))","v":""},null,{"$f":"IF(BD23=\"\",\"\",VLOOKUP(BD23,condition[],2,FALSE))","v":""},null,null,{"$f":"IF(BG23=\"\",\"\",VLOOKUP(BG23,organisation[],2,FALSE))","v":""},null,null,null,null,null,{"$f":"IF(BM23=\"\",\"\",VLOOKUP(BM23,replace_reason[],2,FALSE))","v":""}]
[{"$error":"#VALUE!"},null,null,null,{"$f":"IF(D24=\"\", \"\", VLOOKUP(D24,gps_by[],2,FALSE))","v":""},null,null,null,null,{"$f":"IF(I24=\"\", \"\", VLOOKUP(I24,gps_method_id[],2,FALSE))","v":""},null,{"$f":"IF(K24=\"\",\"\",VLOOKUP(K24,types[],2,FALSE))","v":""},null,{"$f":"IF(M24=\"\",\"\",VLOOKUP(M24,class[],2,FALSE))","v":""},null,null,null,{"$f":"IF(Q24=\"\",\"\",VLOOKUP(Q24,indicating_direction[],2,FALSE))","v":""},null,null,null,{"$f":"IF(U24=\"\",\"\",VLOOKUP(U24,legend_material[],2,FALSE))","v":""},null,{"$f":"IF(W24=\"\",\"\",VLOOKUP(W24,legend_colour[],2,FALSE))","v":""},null,{"$f":"IF(Y24=\"\",\"\",VLOOKUP(Y24,background_material[],2,FALSE))","v":""},null,{"$f":"IF(AA24=\"\",\"\",VLOOKUP(AA24,background_colour[],2,FALSE))","v":""},null,null,{"$f":"IF(AD24=\"\",\"\",VLOOKUP(AD24,substrate_material[],2,FALSE))","v":""},null,{"$f":"IF(AF24=\"\",\"\",VLOOKUP(AF24,frame[],2,FALSE))","v":""},null,{"$f":"IF(AH24=\"\",\"\",VLOOKUP(AH24,side[],2,FALSE))","v":""},null,null,null,null,null,null,{"$f":"IF(AO24=\"\",\"\",VLOOKUP(AO24,install_reason[],2,FALSE))","v":""},null,{"$f":"IF(AQ24=\"\",\"\",VLOOKUP(AQ24,owner[],2,FALSE))","v":""},null,null,{"$f":"IF(AT24=\"\",\"\",VLOOKUP(AT24,likelihood[],2,FALSE))","v":""},null,{"$f":"IF(AV24=\"\",\"\",VLOOKUP(AV24,consequence[],2,FALSE))","v":""},null,{"$f":"IF(AX24=\"\",\"\",VLOOKUP(AX24,risk[],2,FALSE))","v":""},null,{"$f":"IF(AZ24=\"\",\"\",VLOOKUP(AZ24,rul_reset[],2,FALSE))","v":""},null,{"$f":"IF(BB24=\"\",\"\",VLOOKUP(BB24,use_default[],2,FALSE))","v":""},null,{"$f":"IF(BD24=\"\",\"\",VLOOKUP(BD24,condition[],2,FALSE))","v":""},null,null,{"$f":"IF(BG24=\"\",\"\",VLOOKUP(BG24,organisation[],2,FALSE))","v":""},null,null,null,null,null,{"$f":"IF(BM24=\"\",\"\",VLOOKUP(BM24,replace_reason[],2,FALSE))","v":""}]
[{"$error":"#VALUE!"},null,null,null,{"$f":"IF(D25=\"\", \"\", VLOOKUP(D25,gps_by[],2,FALSE))","v":""},null,null,null,null,{"$f":"IF(I25=\"\", \"\", VLOOKUP(I25,gps_method_id[],2,FALSE))","v":""},null,{"$f":"IF(K25=\"\",\"\",VLOOKUP(K25,types[],2,FALSE))","v":""},null,{"$f":"IF(M25=\"\",\"\",VLOOKUP(M25,class[],2,FALSE))","v":""},null,null,null,{"$f":"IF(Q25=\"\",\"\",VLOOKUP(Q25,indicating_direction[],2,FALSE))","v":""},null,null,null,{"$f":"IF(U25=\"\",\"\",VLOOKUP(U25,legend_material[],2,FALSE))","v":""},null,{"$f":"IF(W25=\"\",\"\",VLOOKUP(W25,legend_colour[],2,FALSE))","v":""},null,{"$f":"IF(Y25=\"\",\"\",VLOOKUP(Y25,background_material[],2,FALSE))","v":""},null,{"$f":"IF(AA25=\"\",\"\",VLOOKUP(AA25,background_colour[],2,FALSE))","v":""},null,null,{"$f":"IF(AD25=\"\",\"\",VLOOKUP(AD25,substrate_material[],2,FALSE))","v":""},null,{"$f":"IF(AF25=\"\",\"\",VLOOKUP(AF25,frame[],2,FALSE))","v":""},null,{"$f":"IF(AH25=\"\",\"\",VLOOKUP(AH25,side[],2,FALSE))","v":""},null,null,null,null,null,null,{"$f":"IF(AO25=\"\",\"\",VLOOKUP(AO25,install_reason[],2,FALSE))","v":""},null,{"$f":"IF(AQ25=\"\",\"\",VLOOKUP(AQ25,owner[],2,FALSE))","v":""},null,null,{"$f":"IF(AT25=\"\",\"\",VLOOKUP(AT25,likelihood[],2,FALSE))","v":""},null,{"$f":"IF(AV25=\"\",\"\",VLOOKUP(AV25,consequence[],2,FALSE))","v":""},null,{"$f":"IF(AX25=\"\",\"\",VLOOKUP(AX25,risk[],2,FALSE))","v":""},null,{"$f":"IF(AZ25=\"\",\"\",VLOOKUP(AZ25,rul_reset[],2,FALSE))","v":""},null,{"$f":"IF(BB25=\"\",\"\",VLOOKUP(BB25,use_default[],2,FALSE))","v":""},null,{"$f":"IF(BD25=\"\",\"\",VLOOKUP(BD25,condition[],2,FALSE))","v":""},null,null,{"$f":"IF(BG25=\"\",\"\",VLOOKUP(BG25,organisation[],2,FALSE))","v":""},null,null,null,null,null,{"$f":"IF(BM25=\"\",\"\",VLOOKUP(BM25,replace_reason[],2,FALSE))","v":""}]
[{"$error":"#VALUE!"},null,null,null,{"$f":"IF(D26=\"\", \"\", VLOOKUP(D26,gps_by[],2,FALSE))","v":""},null,null,null,null,{"$f":"IF(I26=\"\", \"\", VLOOKUP(I26,gps_method_id[],2,FALSE))","v":""},null,{"$f":"IF(K26=\"\",\"\",VLOOKUP(K26,types[],2,FALSE))","v":""},null,{"$f":"IF(M26=\"\",\"\",VLOOKUP(M26,class[],2,FALSE))","v":""},null,null,null,{"$f":"IF(Q26=\"\",\"\",VLOOKUP(Q26,indicating_direction[],2,FALSE))","v":""},null,null,null,{"$f":"IF(U26=\"\",\"\",VLOOKUP(U26,legend_material[],2,FALSE))","v":""},null,{"$f":"IF(W26=\"\",\"\",VLOOKUP(W26,legend_colour[],2,FALSE))","v":""},null,{"$f":"IF(Y26=\"\",\"\",VLOOKUP(Y26,background_material[],2,FALSE))","v":""},null,{"$f":"IF(AA26=\"\",\"\",VLOOKUP(AA26,background_colour[],2,FALSE))","v":""},null,null,{"$f":"IF(AD26=\"\",\"\",VLOOKUP(AD26,substrate_material[],2,FALSE))","v":""},null,{"$f":"IF(AF26=\"\",\"\",VLOOKUP(AF26,frame[],2,FALSE))","v":""},null,{"$f":"IF(AH26=\"\",\"\",VLOOKUP(AH26,side[],2,FALSE))","v":""},null,null,null,null,null,null,{"$f":"IF(AO26=\"\",\"\",VLOOKUP(AO26,install_reason[],2,FALSE))","v":""},null,{"$f":"IF(AQ26=\"\",\"\",VLOOKUP(AQ26,owner[],2,FALSE))","v":""},null,null,{"$f":"IF(AT26=\"\",\"\",VLOOKUP(AT26,likelihood[],2,FALSE))","v":""},null,{"$f":"IF(AV26=\"\",\"\",VLOOKUP(AV26,consequence[],2,FALSE))","v":""},null,{"$f":"IF(AX26=\"\",\"\",VLOOKUP(AX26,risk[],2,FALSE))","v":""},null,{"$f":"IF(AZ26=\"\",\"\",VLOOKUP(AZ26,rul_reset[],2,FALSE))","v":""},null,{"$f":"IF(BB26=\"\",\"\",VLOOKUP(BB26,use_default[],2,FALSE))","v":""},null,{"$f":"IF(BD26=\"\",\"\",VLOOKUP(BD26,condition[],2,FALSE))","v":""},null,null,{"$f":"IF(BG26=\"\",\"\",VLOOKUP(BG26,organisation[],2,FALSE))","v":""},null,null,null,null,null,{"$f":"IF(BM26=\"\",\"\",VLOOKUP(BM26,replace_reason[],2,FALSE))","v":""}]
[{"$error":"#VALUE!"},null,null,null,{"$f":"IF(D27=\"\", \"\", VLOOKUP(D27,gps_by[],2,FALSE))","v":""},null,null,null,null,{"$f":"IF(I27=\"\", \"\", VLOOKUP(I27,gps_method_id[],2,FALSE))","v":""},null,{"$f":"IF(K27=\"\",\"\",VLOOKUP(K27,types[],2,FALSE))","v":""},null,{"$f":"IF(M27=\"\",\"\",VLOOKUP(M27,class[],2,FALSE))","v":""},null,null,null,{"$f":"IF(Q27=\"\",\"\",VLOOKUP(Q27,indicating_direction[],2,FALSE))","v":""},null,null,null,{"$f":"IF(U27=\"\",\"\",VLOOKUP(U27,legend_material[],2,FALSE))","v":""},null,{"$f":"IF(W27=\"\",\"\",VLOOKUP(W27,legend_colour[],2,FALSE))","v":""},null,{"$f":"IF(Y27=\"\",\"\",VLOOKUP(Y27,background_material[],2,FALSE))","v":""},null,{"$f":"IF(AA27=\"\",\"\",VLOOKUP(AA27,background_colour[],2,FALSE))","v":""},null,null,{"$f":"IF(AD27=\"\",\"\",VLOOKUP(AD27,substrate_material[],2,FALSE))","v":""},null,{"$f":"IF(AF27=\"\",\"\",VLOOKUP(AF27,frame[],2,FALSE))","v":""},null,{"$f":"IF(AH27=\"\",\"\",VLOOKUP(AH27,side[],2,FALSE))","v":""},null,null,null,null,null,null,{"$f":"IF(AO27=\"\",\"\",VLOOKUP(AO27,install_reason[],2,FALSE))","v":""},null,{"$f":"IF(AQ27=\"\",\"\",VLOOKUP(AQ27,owner[],2,FALSE))","v":""},null,null,{"$f":"IF(AT27=\"\",\"\",VLOOKUP(AT27,likelihood[],2,FALSE))","v":""},null,{"$f":"IF(AV27=\"\",\"\",VLOOKUP(AV27,consequence[],2,FALSE))","v":""},null,{"$f":"IF(AX27=\"\",\"\",VLOOKUP(AX27,risk[],2,FALSE))","v":""},null,{"$f":"IF(AZ27=\"\",\"\",VLOOKUP(AZ27,rul_reset[],2,FALSE))","v":""},null,{"$f":"IF(BB27=\"\",\"\",VLOOKUP(BB27,use_default[],2,FALSE))","v":""},null,{"$f":"IF(BD27=\"\",\"\",VLOOKUP(BD27,condition[],2,FALSE))","v":""},null,null,{"$f":"IF(BG27=\"\",\"\",VLOOKUP(BG27,organisation[],2,FALSE))","v":""},null,null,null,null,null,{"$f":"IF(BM27=\"\",\"\",VLOOKUP(BM27,replace_reason[],2,FALSE))","v":""}]
[{"$error":"#VALUE!"},null,null,null,{"$f":"IF(D28=\"\", \"\", VLOOKUP(D28,gps_by[],2,FALSE))","v":""},null,null,null,null,{"$f":"IF(I28=\"\", \"\", VLOOKUP(I28,gps_method_id[],2,FALSE))","v":""},null,{"$f":"IF(K28=\"\",\"\",VLOOKUP(K28,types[],2,FALSE))","v":""},null,{"$f":"IF(M28=\"\",\"\",VLOOKUP(M28,class[],2,FALSE))","v":""},null,null,null,{"$f":"IF(Q28=\"\",\"\",VLOOKUP(Q28,indicating_direction[],2,FALSE))","v":""},null,null,null,{"$f":"IF(U28=\"\",\"\",VLOOKUP(U28,legend_material[],2,FALSE))","v":""},null,{"$f":"IF(W28=\"\",\"\",VLOOKUP(W28,legend_colour[],2,FALSE))","v":""},null,{"$f":"IF(Y28=\"\",\"\",VLOOKUP(Y28,background_material[],2,FALSE))","v":""},null,{"$f":"IF(AA28=\"\",\"\",VLOOKUP(AA28,background_colour[],2,FALSE))","v":""},null,null,{"$f":"IF(AD28=\"\",\"\",VLOOKUP(AD28,substrate_material[],2,FALSE))","v":""},null,{"$f":"IF(AF28=\"\",\"\",VLOOKUP(AF28,frame[],2,FALSE))","v":""},null,{"$f":"IF(AH28=\"\",\"\",VLOOKUP(AH28,side[],2,FALSE))","v":""},null,null,null,null,null,null,{"$f":"IF(AO28=\"\",\"\",VLOOKUP(AO28,install_reason[],2,FALSE))","v":""},null,{"$f":"IF(AQ28=\"\",\"\",VLOOKUP(AQ28,owner[],2,FALSE))","v":""},null,null,{"$f":"IF(AT28=\"\",\"\",VLOOKUP(AT28,likelihood[],2,FALSE))","v":""},null,{"$f":"IF(AV28=\"\",\"\",VLOOKUP(AV28,consequence[],2,FALSE))","v":""},null,{"$f":"IF(AX28=\"\",\"\",VLOOKUP(AX28,risk[],2,FALSE))","v":""},null,{"$f":"IF(AZ28=\"\",\"\",VLOOKUP(AZ28,rul_reset[],2,FALSE))","v":""},null,{"$f":"IF(BB28=\"\",\"\",VLOOKUP(BB28,use_default[],2,FALSE))","v":""},null,{"$f":"IF(BD28=\"\",\"\",VLOOKUP(BD28,condition[],2,FALSE))","v":""},null,null,{"$f":"IF(BG28=\"\",\"\",VLOOKUP(BG28,organisation[],2,FALSE))","v":""},null,null,null,null,null,{"$f":"IF(BM28=\"\",\"\",VLOOKUP(BM28,replace_reason[],2,FALSE))","v":""}]
[{"$error":"#VALUE!"},null,null,null,{"$f":"IF(D29=\"\", \"\", VLOOKUP(D29,gps_by[],2,FALSE))","v":""},null,null,null,null,{"$f":"IF(I29=\"\", \"\", VLOOKUP(I29,gps_method_id[],2,FALSE))","v":""},null,{"$f":"IF(K29=\"\",\"\",VLOOKUP(K29,types[],2,FALSE))","v":""},null,{"$f":"IF(M29=\"\",\"\",VLOOKUP(M29,class[],2,FALSE))","v":""},null,null,null,{"$f":"IF(Q29=\"\",\"\",VLOOKUP(Q29,indicating_direction[],2,FALSE))","v":""},null,null,null,{"$f":"IF(U29=\"\",\"\",VLOOKUP(U29,legend_material[],2,FALSE))","v":""},null,{"$f":"IF(W29=\"\",\"\",VLOOKUP(W29,legend_colour[],2,FALSE))","v":""},null,{"$f":"IF(Y29=\"\",\"\",VLOOKUP(Y29,background_material[],2,FALSE))","v":""},null,{"$f":"IF(AA29=\"\",\"\",VLOOKUP(AA29,background_colour[],2,FALSE))","v":""},null,null,{"$f":"IF(AD29=\"\",\"\",VLOOKUP(AD29,substrate_material[],2,FALSE))","v":""},null,{"$f":"IF(AF29=\"\",\"\",VLOOKUP(AF29,frame[],2,FALSE))","v":""},null,{"$f":"IF(AH29=\"\",\"\",VLOOKUP(AH29,side[],2,FALSE))","v":""},null,null,null,null,null,null,{"$f":"IF(AO29=\"\",\"\",VLOOKUP(AO29,install_reason[],2,FALSE))","v":""},null,{"$f":"IF(AQ29=\"\",\"\",VLOOKUP(AQ29,owner[],2,FALSE))","v":""},null,null,{"$f":"IF(AT29=\"\",\"\",VLOOKUP(AT29,likelihood[],2,FALSE))","v":""},null,{"$f":"IF(AV29=\"\",\"\",VLOOKUP(AV29,consequence[],2,FALSE))","v":""},null,{"$f":"IF(AX29=\"\",\"\",VLOOKUP(AX29,risk[],2,FALSE))","v":""},null,{"$f":"IF(AZ29=\"\",\"\",VLOOKUP(AZ29,rul_reset[],2,FALSE))","v":""},null,{"$f":"IF(BB29=\"\",\"\",VLOOKUP(BB29,use_default[],2,FALSE))","v":""},null,{"$f":"IF(BD29=\"\",\"\",VLOOKUP(BD29,condition[],2,FALSE))","v":""},null,null,{"$f":"IF(BG29=\"\",\"\",VLOOKUP(BG29,organisation[],2,FALSE))","v":""},null,null,null,null,null,{"$f":"IF(BM29=\"\",\"\",VLOOKUP(BM29,replace_reason[],2,FALSE))","v":""}]
[{"$error":"#VALUE!"},null,null,null,{"$f":"IF(D30=\"\", \"\", VLOOKUP(D30,gps_by[],2,FALSE))","v":""},null,null,null,null,{"$f":"IF(I30=\"\", \"\", VLOOKUP(I30,gps_method_id[],2,FALSE))","v":""},null,{"$f":"IF(K30=\"\",\"\",VLOOKUP(K30,types[],2,FALSE))","v":""},null,{"$f":"IF(M30=\"\",\"\",VLOOKUP(M30,class[],2,FALSE))","v":""},null,null,null,{"$f":"IF(Q30=\"\",\"\",VLOOKUP(Q30,indicating_direction[],2,FALSE))","v":""},null,null,null,{"$f":"IF(U30=\"\",\"\",VLOOKUP(U30,legend_material[],2,FALSE))","v":""},null,{"$f":"IF(W30=\"\",\"\",VLOOKUP(W30,legend_colour[],2,FALSE))","v":""},null,{"$f":"IF(Y30=\"\",\"\",VLOOKUP(Y30,background_material[],2,FALSE))","v":""},null,{"$f":"IF(AA30=\"\",\"\",VLOOKUP(AA30,background_colour[],2,FALSE))","v":""},null,null,{"$f":"IF(AD30=\"\",\"\",VLOOKUP(AD30,substrate_material[],2,FALSE))","v":""},null,{"$f":"IF(AF30=\"\",\"\",VLOOKUP(AF30,frame[],2,FALSE))","v":""},null,{"$f":"IF(AH30=\"\",\"\",VLOOKUP(AH30,side[],2,FALSE))","v":""},null,null,null,null,null,null,{"$f":"IF(AO30=\"\",\"\",VLOOKUP(AO30,install_reason[],2,FALSE))","v":""},null,{"$f":"IF(AQ30=\"\",\"\",VLOOKUP(AQ30,owner[],2,FALSE))","v":""},null,null,{"$f":"IF(AT30=\"\",\"\",VLOOKUP(AT30,likelihood[],2,FALSE))","v":""},null,{"$f":"IF(AV30=\"\",\"\",VLOOKUP(AV30,consequence[],2,FALSE))","v":""},null,{"$f":"IF(AX30=\"\",\"\",VLOOKUP(AX30,risk[],2,FALSE))","v":""},null,{"$f":"IF(AZ30=\"\",\"\",VLOOKUP(AZ30,rul_reset[],2,FALSE))","v":""},null,{"$f":"IF(BB30=\"\",\"\",VLOOKUP(BB30,use_default[],2,FALSE))","v":""},null,{"$f":"IF(BD30=\"\",\"\",VLOOKUP(BD30,condition[],2,FALSE))","v":""},null,null,{"$f":"IF(BG30=\"\",\"\",VLOOKUP(BG30,organisation[],2,FALSE))","v":""},null,null,null,null,null,{"$f":"IF(BM30=\"\",\"\",VLOOKUP(BM30,replace_reason[],2,FALSE))","v":""}]
[{"$error":"#VALUE!"},null,null,null,{"$f":"IF(D31=\"\", \"\", VLOOKUP(D31,gps_by[],2,FALSE))","v":""},null,null,null,null,{"$f":"IF(I31=\"\", \"\", VLOOKUP(I31,gps_method_id[],2,FALSE))","v":""},null,{"$f":"IF(K31=\"\",\"\",VLOOKUP(K31,types[],2,FALSE))","v":""},null,{"$f":"IF(M31=\"\",\"\",VLOOKUP(M31,class[],2,FALSE))","v":""},null,null,null,{"$f":"IF(Q31=\"\",\"\",VLOOKUP(Q31,indicating_direction[],2,FALSE))","v":""},null,null,null,{"$f":"IF(U31=\"\",\"\",VLOOKUP(U31,legend_material[],2,FALSE))","v":""},null,{"$f":"IF(W31=\"\",\"\",VLOOKUP(W31,legend_colour[],2,FALSE))","v":""},null,{"$f":"IF(Y31=\"\",\"\",VLOOKUP(Y31,background_material[],2,FALSE))","v":""},null,{"$f":"IF(AA31=\"\",\"\",VLOOKUP(AA31,background_colour[],2,FALSE))","v":""},null,null,{"$f":"IF(AD31=\"\",\"\",VLOOKUP(AD31,substrate_material[],2,FALSE))","v":""},null,{"$f":"IF(AF31=\"\",\"\",VLOOKUP(AF31,frame[],2,FALSE))","v":""},null,{"$f":"IF(AH31=\"\",\"\",VLOOKUP(AH31,side[],2,FALSE))","v":""},null,null,null,null,null,null,{"$f":"IF(AO31=\"\",\"\",VLOOKUP(AO31,install_reason[],2,FALSE))","v":""},null,{"$f":"IF(AQ31=\"\",\"\",VLOOKUP(AQ31,owner[],2,FALSE))","v":""},null,null,{"$f":"IF(AT31=\"\",\"\",VLOOKUP(AT31,likelihood[],2,FALSE))","v":""},null,{"$f":"IF(AV31=\"\",\"\",VLOOKUP(AV31,consequence[],2,FALSE))","v":""},null,{"$f":"IF(AX31=\"\",\"\",VLOOKUP(AX31,risk[],2,FALSE))","v":""},null,{"$f":"IF(AZ31=\"\",\"\",VLOOKUP(AZ31,rul_reset[],2,FALSE))","v":""},null,{"$f":"IF(BB31=\"\",\"\",VLOOKUP(BB31,use_default[],2,FALSE))","v":""},null,{"$f":"IF(BD31=\"\",\"\",VLOOKUP(BD31,condition[],2,FALSE))","v":""},null,null,{"$f":"IF(BG31=\"\",\"\",VLOOKUP(BG31,organisation[],2,FALSE))","v":""},null,null,null,null,null,{"$f":"IF(BM31=\"\",\"\",VLOOKUP(BM31,replace_reason[],2,FALSE))","v":""}]
[{"$error":"#VALUE!"},null,null,null,{"$f":"IF(D32=\"\", \"\", VLOOKUP(D32,gps_by[],2,FALSE))","v":""},null,null,null,null,{"$f":"IF(I32=\"\", \"\", VLOOKUP(I32,gps_method_id[],2,FALSE))","v":""},null,{"$f":"IF(K32=\"\",\"\",VLOOKUP(K32,types[],2,FALSE))","v":""},null,{"$f":"IF(M32=\"\",\"\",VLOOKUP(M32,class[],2,FALSE))","v":""},null,null,null,{"$f":"IF(Q32=\"\",\"\",VLOOKUP(Q32,indicating_direction[],2,FALSE))","v":""},null,null,null,{"$f":"IF(U32=\"\",\"\",VLOOKUP(U32,legend_material[],2,FALSE))","v":""},null,{"$f":"IF(W32=\"\",\"\",VLOOKUP(W32,legend_colour[],2,FALSE))","v":""},null,{"$f":"IF(Y32=\"\",\"\",VLOOKUP(Y32,background_material[],2,FALSE))","v":""},null,{"$f":"IF(AA32=\"\",\"\",VLOOKUP(AA32,background_colour[],2,FALSE))","v":""},null,null,{"$f":"IF(AD32=\"\",\"\",VLOOKUP(AD32,substrate_material[],2,FALSE))","v":""},null,{"$f":"IF(AF32=\"\",\"\",VLOOKUP(AF32,frame[],2,FALSE))","v":""},null,{"$f":"IF(AH32=\"\",\"\",VLOOKUP(AH32,side[],2,FALSE))","v":""},null,null,null,null,null,null,{"$f":"IF(AO32=\"\",\"\",VLOOKUP(AO32,install_reason[],2,FALSE))","v":""},null,{"$f":"IF(AQ32=\"\",\"\",VLOOKUP(AQ32,owner[],2,FALSE))","v":""},null,null,{"$f":"IF(AT32=\"\",\"\",VLOOKUP(AT32,likelihood[],2,FALSE))","v":""},null,{"$f":"IF(AV32=\"\",\"\",VLOOKUP(AV32,consequence[],2,FALSE))","v":""},null,{"$f":"IF(AX32=\"\",\"\",VLOOKUP(AX32,risk[],2,FALSE))","v":""},null,{"$f":"IF(AZ32=\"\",\"\",VLOOKUP(AZ32,rul_reset[],2,FALSE))","v":""},null,{"$f":"IF(BB32=\"\",\"\",VLOOKUP(BB32,use_default[],2,FALSE))","v":""},null,{"$f":"IF(BD32=\"\",\"\",VLOOKUP(BD32,condition[],2,FALSE))","v":""},null,null,{"$f":"IF(BG32=\"\",\"\",VLOOKUP(BG32,organisation[],2,FALSE))","v":""},null,null,null,null,null,{"$f":"IF(BM32=\"\",\"\",VLOOKUP(BM32,replace_reason[],2,FALSE))","v":""}]
[{"$error":"#VALUE!"},null,null,null,{"$f":"IF(D33=\"\", \"\", VLOOKUP(D33,gps_by[],2,FALSE))","v":""},null,null,null,null,{"$f":"IF(I33=\"\", \"\", VLOOKUP(I33,gps_method_id[],2,FALSE))","v":""},null,{"$f":"IF(K33=\"\",\"\",VLOOKUP(K33,types[],2,FALSE))","v":""},null,{"$f":"IF(M33=\"\",\"\",VLOOKUP(M33,class[],2,FALSE))","v":""},null,null,null,{"$f":"IF(Q33=\"\",\"\",VLOOKUP(Q33,indicating_direction[],2,FALSE))","v":""},null,null,null,{"$f":"IF(U33=\"\",\"\",VLOOKUP(U33,legend_material[],2,FALSE))","v":""},null,{"$f":"IF(W33=\"\",\"\",VLOOKUP(W33,legend_colour[],2,FALSE))","v":""},null,{"$f":"IF(Y33=\"\",\"\",VLOOKUP(Y33,background_material[],2,FALSE))","v":""},null,{"$f":"IF(AA33=\"\",\"\",VLOOKUP(AA33,background_colour[],2,FALSE))","v":""},null,null,{"$f":"IF(AD33=\"\",\"\",VLOOKUP(AD33,substrate_material[],2,FALSE))","v":""},null,{"$f":"IF(AF33=\"\",\"\",VLOOKUP(AF33,frame[],2,FALSE))","v":""},null,{"$f":"IF(AH33=\"\",\"\",VLOOKUP(AH33,side[],2,FALSE))","v":""},null,null,null,null,null,null,{"$f":"IF(AO33=\"\",\"\",VLOOKUP(AO33,install_reason[],2,FALSE))","v":""},null,{"$f":"IF(AQ33=\"\",\"\",VLOOKUP(AQ33,owner[],2,FALSE))","v":""},null,null,{"$f":"IF(AT33=\"\",\"\",VLOOKUP(AT33,likelihood[],2,FALSE))","v":""},null,{"$f":"IF(AV33=\"\",\"\",VLOOKUP(AV33,consequence[],2,FALSE))","v":""},null,{"$f":"IF(AX33=\"\",\"\",VLOOKUP(AX33,risk[],2,FALSE))","v":""},null,{"$f":"IF(AZ33=\"\",\"\",VLOOKUP(AZ33,rul_reset[],2,FALSE))","v":""},null,{"$f":"IF(BB33=\"\",\"\",VLOOKUP(BB33,use_default[],2,FALSE))","v":""},null,{"$f":"IF(BD33=\"\",\"\",VLOOKUP(BD33,condition[],2,FALSE))","v":""},null,null,{"$f":"IF(BG33=\"\",\"\",VLOOKUP(BG33,organisation[],2,FALSE))","v":""},null,null,null,null,null,{"$f":"IF(BM33=\"\",\"\",VLOOKUP(BM33,replace_reason[],2,FALSE))","v":""}]
[{"$error":"#VALUE!"},null,null,null,{"$f":"IF(D34=\"\", \"\", VLOOKUP(D34,gps_by[],2,FALSE))","v":""},null,null,null,null,{"$f":"IF(I34=\"\", \"\", VLOOKUP(I34,gps_method_id[],2,FALSE))","v":""},null,{"$f":"IF(K34=\"\",\"\",VLOOKUP(K34,types[],2,FALSE))","v":""},null,{"$f":"IF(M34=\"\",\"\",VLOOKUP(M34,class[],2,FALSE))","v":""},null,null,null,{"$f":"IF(Q34=\"\",\"\",VLOOKUP(Q34,indicating_direction[],2,FALSE))","v":""},null,null,null,{"$f":"IF(U34=\"\",\"\",VLOOKUP(U34,legend_material[],2,FALSE))","v":""},null,{"$f":"IF(W34=\"\",\"\",VLOOKUP(W34,legend_colour[],2,FALSE))","v":""},null,{"$f":"IF(Y34=\"\",\"\",VLOOKUP(Y34,background_material[],2,FALSE))","v":""},null,{"$f":"IF(AA34=\"\",\"\",VLOOKUP(AA34,background_colour[],2,FALSE))","v":""},null,null,{"$f":"IF(AD34=\"\",\"\",VLOOKUP(AD34,substrate_material[],2,FALSE))","v":""},null,{"$f":"IF(AF34=\"\",\"\",VLOOKUP(AF34,frame[],2,FALSE))","v":""},null,{"$f":"IF(AH34=\"\",\"\",VLOOKUP(AH34,side[],2,FALSE))","v":""},null,null,null,null,null,null,{"$f":"IF(AO34=\"\",\"\",VLOOKUP(AO34,install_reason[],2,FALSE))","v":""},null,{"$f":"IF(AQ34=\"\",\"\",VLOOKUP(AQ34,owner[],2,FALSE))","v":""},null,null,{"$f":"IF(AT34=\"\",\"\",VLOOKUP(AT34,likelihood[],2,FALSE))","v":""},null,{"$f":"IF(AV34=\"\",\"\",VLOOKUP(AV34,consequence[],2,FALSE))","v":""},null,{"$f":"IF(AX34=\"\",\"\",VLOOKUP(AX34,risk[],2,FALSE))","v":""},null,{"$f":"IF(AZ34=\"\",\"\",VLOOKUP(AZ34,rul_reset[],2,FALSE))","v":""},null,{"$f":"IF(BB34=\"\",\"\",VLOOKUP(BB34,use_default[],2,FALSE))","v":""},null,{"$f":"IF(BD34=\"\",\"\",VLOOKUP(BD34,condition[],2,FALSE))","v":""},null,null,{"$f":"IF(BG34=\"\",\"\",VLOOKUP(BG34,organisation[],2,FALSE))","v":""},null,null,null,null,null,{"$f":"IF(BM34=\"\",\"\",VLOOKUP(BM34,replace_reason[],2,FALSE))","v":""}]
[{"$error":"#VALUE!"},null,null,null,{"$f":"IF(D35=\"\", \"\", VLOOKUP(D35,gps_by[],2,FALSE))","v":""},null,null,null,null,{"$f":"IF(I35=\"\", \"\", VLOOKUP(I35,gps_method_id[],2,FALSE))","v":""},null,{"$f":"IF(K35=\"\",\"\",VLOOKUP(K35,types[],2,FALSE))","v":""},null,{"$f":"IF(M35=\"\",\"\",VLOOKUP(M35,class[],2,FALSE))","v":""},null,null,null,{"$f":"IF(Q35=\"\",\"\",VLOOKUP(Q35,indicating_direction[],2,FALSE))","v":""},null,null,null,{"$f":"IF(U35=\"\",\"\",VLOOKUP(U35,legend_material[],2,FALSE))","v":""},null,{"$f":"IF(W35=\"\",\"\",VLOOKUP(W35,legend_colour[],2,FALSE))","v":""},null,{"$f":"IF(Y35=\"\",\"\",VLOOKUP(Y35,background_material[],2,FALSE))","v":""},null,{"$f":"IF(AA35=\"\",\"\",VLOOKUP(AA35,background_colour[],2,FALSE))","v":""},null,null,{"$f":"IF(AD35=\"\",\"\",VLOOKUP(AD35,substrate_material[],2,FALSE))","v":""},null,{"$f":"IF(AF35=\"\",\"\",VLOOKUP(AF35,frame[],2,FALSE))","v":""},null,{"$f":"IF(AH35=\"\",\"\",VLOOKUP(AH35,side[],2,FALSE))","v":""},null,null,null,null,null,null,{"$f":"IF(AO35=\"\",\"\",VLOOKUP(AO35,install_reason[],2,FALSE))","v":""},null,{"$f":"IF(AQ35=\"\",\"\",VLOOKUP(AQ35,owner[],2,FALSE))","v":""},null,null,{"$f":"IF(AT35=\"\",\"\",VLOOKUP(AT35,likelihood[],2,FALSE))","v":""},null,{"$f":"IF(AV35=\"\",\"\",VLOOKUP(AV35,consequence[],2,FALSE))","v":""},null,{"$f":"IF(AX35=\"\",\"\",VLOOKUP(AX35,risk[],2,FALSE))","v":""},null,{"$f":"IF(AZ35=\"\",\"\",VLOOKUP(AZ35,rul_reset[],2,FALSE))","v":""},null,{"$f":"IF(BB35=\"\",\"\",VLOOKUP(BB35,use_default[],2,FALSE))","v":""},null,{"$f":"IF(BD35=\"\",\"\",VLOOKUP(BD35,condition[],2,FALSE))","v":""},null,null,{"$f":"IF(BG35=\"\",\"\",VLOOKUP(BG35,organisation[],2,FALSE))","v":""},null,null,null,null,null,{"$f":"IF(BM35=\"\",\"\",VLOOKUP(BM35,replace_reason[],2,FALSE))","v":""}]
[{"$error":"#VALUE!"},null,null,null,{"$f":"IF(D36=\"\", \"\", VLOOKUP(D36,gps_by[],2,FALSE))","v":""},null,null,null,null,{"$f":"IF(I36=\"\", \"\", VLOOKUP(I36,gps_method_id[],2,FALSE))","v":""},null,{"$f":"IF(K36=\"\",\"\",VLOOKUP(K36,types[],2,FALSE))","v":""},null,{"$f":"IF(M36=\"\",\"\",VLOOKUP(M36,class[],2,FALSE))","v":""},null,null,null,{"$f":"IF(Q36=\"\",\"\",VLOOKUP(Q36,indicating_direction[],2,FALSE))","v":""},null,null,null,{"$f":"IF(U36=\"\",\"\",VLOOKUP(U36,legend_material[],2,FALSE))","v":""},null,{"$f":"IF(W36=\"\",\"\",VLOOKUP(W36,legend_colour[],2,FALSE))","v":""},null,{"$f":"IF(Y36=\"\",\"\",VLOOKUP(Y36,background_material[],2,FALSE))","v":""},null,{"$f":"IF(AA36=\"\",\"\",VLOOKUP(AA36,background_colour[],2,FALSE))","v":""},null,null,{"$f":"IF(AD36=\"\",\"\",VLOOKUP(AD36,substrate_material[],2,FALSE))","v":""},null,{"$f":"IF(AF36=\"\",\"\",VLOOKUP(AF36,frame[],2,FALSE))","v":""},null,{"$f":"IF(AH36=\"\",\"\",VLOOKUP(AH36,side[],2,FALSE))","v":""},null,null,null,null,null,null,{"$f":"IF(AO36=\"\",\"\",VLOOKUP(AO36,install_reason[],2,FALSE))","v":""},null,{"$f":"IF(AQ36=\"\",\"\",VLOOKUP(AQ36,owner[],2,FALSE))","v":""},null,null,{"$f":"IF(AT36=\"\",\"\",VLOOKUP(AT36,likelihood[],2,FALSE))","v":""},null,{"$f":"IF(AV36=\"\",\"\",VLOOKUP(AV36,consequence[],2,FALSE))","v":""},null,{"$f":"IF(AX36=\"\",\"\",VLOOKUP(AX36,risk[],2,FALSE))","v":""},null,{"$f":"IF(AZ36=\"\",\"\",VLOOKUP(AZ36,rul_reset[],2,FALSE))","v":""},null,{"$f":"IF(BB36=\"\",\"\",VLOOKUP(BB36,use_default[],2,FALSE))","v":""},null,{"$f":"IF(BD36=\"\",\"\",VLOOKUP(BD36,condition[],2,FALSE))","v":""},null,null,{"$f":"IF(BG36=\"\",\"\",VLOOKUP(BG36,organisation[],2,FALSE))","v":""},null,null,null,null,null,{"$f":"IF(BM36=\"\",\"\",VLOOKUP(BM36,replace_reason[],2,FALSE))","v":""}]
[{"$error":"#VALUE!"},null,null,null,{"$f":"IF(D37=\"\", \"\", VLOOKUP(D37,gps_by[],2,FALSE))","v":""},null,null,null,null,{"$f":"IF(I37=\"\", \"\", VLOOKUP(I37,gps_method_id[],2,FALSE))","v":""},null,{"$f":"IF(K37=\"\",\"\",VLOOKUP(K37,types[],2,FALSE))","v":""},null,{"$f":"IF(M37=\"\",\"\",VLOOKUP(M37,class[],2,FALSE))","v":""},null,null,null,{"$f":"IF(Q37=\"\",\"\",VLOOKUP(Q37,indicating_direction[],2,FALSE))","v":""},null,null,null,{"$f":"IF(U37=\"\",\"\",VLOOKUP(U37,legend_material[],2,FALSE))","v":""},null,{"$f":"IF(W37=\"\",\"\",VLOOKUP(W37,legend_colour[],2,FALSE))","v":""},null,{"$f":"IF(Y37=\"\",\"\",VLOOKUP(Y37,background_material[],2,FALSE))","v":""},null,{"$f":"IF(AA37=\"\",\"\",VLOOKUP(AA37,background_colour[],2,FALSE))","v":""},null,null,{"$f":"IF(AD37=\"\",\"\",VLOOKUP(AD37,substrate_material[],2,FALSE))","v":""},null,{"$f":"IF(AF37=\"\",\"\",VLOOKUP(AF37,frame[],2,FALSE))","v":""},null,{"$f":"IF(AH37=\"\",\"\",VLOOKUP(AH37,side[],2,FALSE))","v":""},null,null,null,null,null,null,{"$f":"IF(AO37=\"\",\"\",VLOOKUP(AO37,install_reason[],2,FALSE))","v":""},null,{"$f":"IF(AQ37=\"\",\"\",VLOOKUP(AQ37,owner[],2,FALSE))","v":""},null,null,{"$f":"IF(AT37=\"\",\"\",VLOOKUP(AT37,likelihood[],2,FALSE))","v":""},null,{"$f":"IF(AV37=\"\",\"\",VLOOKUP(AV37,consequence[],2,FALSE))","v":""},null,{"$f":"IF(AX37=\"\",\"\",VLOOKUP(AX37,risk[],2,FALSE))","v":""},null,{"$f":"IF(AZ37=\"\",\"\",VLOOKUP(AZ37,rul_reset[],2,FALSE))","v":""},null,{"$f":"IF(BB37=\"\",\"\",VLOOKUP(BB37,use_default[],2,FALSE))","v":""},null,{"$f":"IF(BD37=\"\",\"\",VLOOKUP(BD37,condition[],2,FALSE))","v":""},null,null,{"$f":"IF(BG37=\"\",\"\",VLOOKUP(BG37,organisation[],2,FALSE))","v":""},null,null,null,null,null,{"$f":"IF(BM37=\"\",\"\",VLOOKUP(BM37,replace_reason[],2,FALSE))","v":""}]
[{"$error":"#VALUE!"},null,null,null,{"$f":"IF(D38=\"\", \"\", VLOOKUP(D38,gps_by[],2,FALSE))","v":""},null,null,null,null,{"$f":"IF(I38=\"\", \"\", VLOOKUP(I38,gps_method_id[],2,FALSE))","v":""},null,{"$f":"IF(K38=\"\",\"\",VLOOKUP(K38,types[],2,FALSE))","v":""},null,{"$f":"IF(M38=\"\",\"\",VLOOKUP(M38,class[],2,FALSE))","v":""},null,null,null,{"$f":"IF(Q38=\"\",\"\",VLOOKUP(Q38,indicating_direction[],2,FALSE))","v":""},null,null,null,{"$f":"IF(U38=\"\",\"\",VLOOKUP(U38,legend_material[],2,FALSE))","v":""},null,{"$f":"IF(W38=\"\",\"\",VLOOKUP(W38,legend_colour[],2,FALSE))","v":""},null,{"$f":"IF(Y38=\"\",\"\",VLOOKUP(Y38,background_material[],2,FALSE))","v":""},null,{"$f":"IF(AA38=\"\",\"\",VLOOKUP(AA38,background_colour[],2,FALSE))","v":""},null,null,{"$f":"IF(AD38=\"\",\"\",VLOOKUP(AD38,substrate_material[],2,FALSE))","v":""},null,{"$f":"IF(AF38=\"\",\"\",VLOOKUP(AF38,frame[],2,FALSE))","v":""},null,{"$f":"IF(AH38=\"\",\"\",VLOOKUP(AH38,side[],2,FALSE))","v":""},null,null,null,null,null,null,{"$f":"IF(AO38=\"\",\"\",VLOOKUP(AO38,install_reason[],2,FALSE))","v":""},null,{"$f":"IF(AQ38=\"\",\"\",VLOOKUP(AQ38,owner[],2,FALSE))","v":""},null,null,{"$f":"IF(AT38=\"\",\"\",VLOOKUP(AT38,likelihood[],2,FALSE))","v":""},null,{"$f":"IF(AV38=\"\",\"\",VLOOKUP(AV38,consequence[],2,FALSE))","v":""},null,{"$f":"IF(AX38=\"\",\"\",VLOOKUP(AX38,risk[],2,FALSE))","v":""},null,{"$f":"IF(AZ38=\"\",\"\",VLOOKUP(AZ38,rul_reset[],2,FALSE))","v":""},null,{"$f":"IF(BB38=\"\",\"\",VLOOKUP(BB38,use_default[],2,FALSE))","v":""},null,{"$f":"IF(BD38=\"\",\"\",VLOOKUP(BD38,condition[],2,FALSE))","v":""},null,null,{"$f":"IF(BG38=\"\",\"\",VLOOKUP(BG38,organisation[],2,FALSE))","v":""},null,null,null,null,null,{"$f":"IF(BM38=\"\",\"\",VLOOKUP(BM38,replace_reason[],2,FALSE))","v":""}]
[{"$error":"#VALUE!"},null,null,null,{"$f":"IF(D39=\"\", \"\", VLOOKUP(D39,gps_by[],2,FALSE))","v":""},null,null,null,null,{"$f":"IF(I39=\"\", \"\", VLOOKUP(I39,gps_method_id[],2,FALSE))","v":""},null,{"$f":"IF(K39=\"\",\"\",VLOOKUP(K39,types[],2,FALSE))","v":""},null,{"$f":"IF(M39=\"\",\"\",VLOOKUP(M39,class[],2,FALSE))","v":""},null,null,null,{"$f":"IF(Q39=\"\",\"\",VLOOKUP(Q39,indicating_direction[],2,FALSE))","v":""},null,null,null,{"$f":"IF(U39=\"\",\"\",VLOOKUP(U39,legend_material[],2,FALSE))","v":""},null,{"$f":"IF(W39=\"\",\"\",VLOOKUP(W39,legend_colour[],2,FALSE))","v":""},null,{"$f":"IF(Y39=\"\",\"\",VLOOKUP(Y39,background_material[],2,FALSE))","v":""},null,{"$f":"IF(AA39=\"\",\"\",VLOOKUP(AA39,background_colour[],2,FALSE))","v":""},null,null,{"$f":"IF(AD39=\"\",\"\",VLOOKUP(AD39,substrate_material[],2,FALSE))","v":""},null,{"$f":"IF(AF39=\"\",\"\",VLOOKUP(AF39,frame[],2,FALSE))","v":""},null,{"$f":"IF(AH39=\"\",\"\",VLOOKUP(AH39,side[],2,FALSE))","v":""},null,null,null,null,null,null,{"$f":"IF(AO39=\"\",\"\",VLOOKUP(AO39,install_reason[],2,FALSE))","v":""},null,{"$f":"IF(AQ39=\"\",\"\",VLOOKUP(AQ39,owner[],2,FALSE))","v":""},null,null,{"$f":"IF(AT39=\"\",\"\",VLOOKUP(AT39,likelihood[],2,FALSE))","v":""},null,{"$f":"IF(AV39=\"\",\"\",VLOOKUP(AV39,consequence[],2,FALSE))","v":""},null,{"$f":"IF(AX39=\"\",\"\",VLOOKUP(AX39,risk[],2,FALSE))","v":""},null,{"$f":"IF(AZ39=\"\",\"\",VLOOKUP(AZ39,rul_reset[],2,FALSE))","v":""},null,{"$f":"IF(BB39=\"\",\"\",VLOOKUP(BB39,use_default[],2,FALSE))","v":""},null,{"$f":"IF(BD39=\"\",\"\",VLOOKUP(BD39,condition[],2,FALSE))","v":""},null,null,{"$f":"IF(BG39=\"\",\"\",VLOOKUP(BG39,organisation[],2,FALSE))","v":""},null,null,null,null,null,{"$f":"IF(BM39=\"\",\"\",VLOOKUP(BM39,replace_reason[],2,FALSE))","v":""}]
[{"$error":"#VALUE!"},null,null,null,{"$f":"IF(D40=\"\", \"\", VLOOKUP(D40,gps_by[],2,FALSE))","v":""},null,null,null,null,{"$f":"IF(I40=\"\", \"\", VLOOKUP(I40,gps_method_id[],2,FALSE))","v":""},null,{"$f":"IF(K40=\"\",\"\",VLOOKUP(K40,types[],2,FALSE))","v":""},null,{"$f":"IF(M40=\"\",\"\",VLOOKUP(M40,class[],2,FALSE))","v":""},null,null,null,{"$f":"IF(Q40=\"\",\"\",VLOOKUP(Q40,indicating_direction[],2,FALSE))","v":""},null,null,null,{"$f":"IF(U40=\"\",\"\",VLOOKUP(U40,legend_material[],2,FALSE))","v":""},null,{"$f":"IF(W40=\"\",\"\",VLOOKUP(W40,legend_colour[],2,FALSE))","v":""},null,{"$f":"IF(Y40=\"\",\"\",VLOOKUP(Y40,background_material[],2,FALSE))","v":""},null,{"$f":"IF(AA40=\"\",\"\",VLOOKUP(AA40,background_colour[],2,FALSE))","v":""},null,null,{"$f":"IF(AD40=\"\",\"\",VLOOKUP(AD40,substrate_material[],2,FALSE))","v":""},null,{"$f":"IF(AF40=\"\",\"\",VLOOKUP(AF40,frame[],2,FALSE))","v":""},null,{"$f":"IF(AH40=\"\",\"\",VLOOKUP(AH40,side[],2,FALSE))","v":""},null,null,null,null,null,null,{"$f":"IF(AO40=\"\",\"\",VLOOKUP(AO40,install_reason[],2,FALSE))","v":""},null,{"$f":"IF(AQ40=\"\",\"\",VLOOKUP(AQ40,owner[],2,FALSE))","v":""},null,null,{"$f":"IF(AT40=\"\",\"\",VLOOKUP(AT40,likelihood[],2,FALSE))","v":""},null,{"$f":"IF(AV40=\"\",\"\",VLOOKUP(AV40,consequence[],2,FALSE))","v":""},null,{"$f":"IF(AX40=\"\",\"\",VLOOKUP(AX40,risk[],2,FALSE))","v":""},null,{"$f":"IF(AZ40=\"\",\"\",VLOOKUP(AZ40,rul_reset[],2,FALSE))","v":""},null,{"$f":"IF(BB40=\"\",\"\",VLOOKUP(BB40,use_default[],2,FALSE))","v":""},null,{"$f":"IF(BD40=\"\",\"\",VLOOKUP(BD40,condition[],2,FALSE))","v":""},null,null,{"$f":"IF(BG40=\"\",\"\",VLOOKUP(BG40,organisation[],2,FALSE))","v":""},null,null,null,null,null,{"$f":"IF(BM40=\"\",\"\",VLOOKUP(BM40,replace_reason[],2,FALSE))","v":""}]
[{"$error":"#VALUE!"},null,null,null,{"$f":"IF(D41=\"\", \"\", VLOOKUP(D41,gps_by[],2,FALSE))","v":""},null,null,null,null,{"$f":"IF(I41=\"\", \"\", VLOOKUP(I41,gps_method_id[],2,FALSE))","v":""},null,{"$f":"IF(K41=\"\",\"\",VLOOKUP(K41,types[],2,FALSE))","v":""},null,{"$f":"IF(M41=\"\",\"\",VLOOKUP(M41,class[],2,FALSE))","v":""},null,null,null,{"$f":"IF(Q41=\"\",\"\",VLOOKUP(Q41,indicating_direction[],2,FALSE))","v":""},null,null,null,{"$f":"IF(U41=\"\",\"\",VLOOKUP(U41,legend_material[],2,FALSE))","v":""},null,{"$f":"IF(W41=\"\",\"\",VLOOKUP(W41,legend_colour[],2,FALSE))","v":""},null,{"$f":"IF(Y41=\"\",\"\",VLOOKUP(Y41,background_material[],2,FALSE))","v":""},null,{"$f":"IF(AA41=\"\",\"\",VLOOKUP(AA41,background_colour[],2,FALSE))","v":""},null,null,{"$f":"IF(AD41=\"\",\"\",VLOOKUP(AD41,substrate_material[],2,FALSE))","v":""},null,{"$f":"IF(AF41=\"\",\"\",VLOOKUP(AF41,frame[],2,FALSE))","v":""},null,{"$f":"IF(AH41=\"\",\"\",VLOOKUP(AH41,side[],2,FALSE))","v":""},null,null,null,null,null,null,{"$f":"IF(AO41=\"\",\"\",VLOOKUP(AO41,install_reason[],2,FALSE))","v":""},null,{"$f":"IF(AQ41=\"\",\"\",VLOOKUP(AQ41,owner[],2,FALSE))","v":""},null,null,{"$f":"IF(AT41=\"\",\"\",VLOOKUP(AT41,likelihood[],2,FALSE))","v":""},null,{"$f":"IF(AV41=\"\",\"\",VLOOKUP(AV41,consequence[],2,FALSE))","v":""},null,{"$f":"IF(AX41=\"\",\"\",VLOOKUP(AX41,risk[],2,FALSE))","v":""},null,{"$f":"IF(AZ41=\"\",\"\",VLOOKUP(AZ41,rul_reset[],2,FALSE))","v":""},null,{"$f":"IF(BB41=\"\",\"\",VLOOKUP(BB41,use_default[],2,FALSE))","v":""},null,{"$f":"IF(BD41=\"\",\"\",VLOOKUP(BD41,condition[],2,FALSE))","v":""},null,null,{"$f":"IF(BG41=\"\",\"\",VLOOKUP(BG41,organisation[],2,FALSE))","v":""},null,null,null,null,null,{"$f":"IF(BM41=\"\",\"\",VLOOKUP(BM41,replace_reason[],2,FALSE))","v":""}]
[{"$error":"#VALUE!"},null,null,null,{"$f":"IF(D42=\"\", \"\", VLOOKUP(D42,gps_by[],2,FALSE))","v":""},null,null,null,null,{"$f":"IF(I42=\"\", \"\", VLOOKUP(I42,gps_method_id[],2,FALSE))","v":""},null,{"$f":"IF(K42=\"\",\"\",VLOOKUP(K42,types[],2,FALSE))","v":""},null,{"$f":"IF(M42=\"\",\"\",VLOOKUP(M42,class[],2,FALSE))","v":""},null,null,null,{"$f":"IF(Q42=\"\",\"\",VLOOKUP(Q42,indicating_direction[],2,FALSE))","v":""},null,null,null,{"$f":"IF(U42=\"\",\"\",VLOOKUP(U42,legend_material[],2,FALSE))","v":""},null,{"$f":"IF(W42=\"\",\"\",VLOOKUP(W42,legend_colour[],2,FALSE))","v":""},null,{"$f":"IF(Y42=\"\",\"\",VLOOKUP(Y42,background_material[],2,FALSE))","v":""},null,{"$f":"IF(AA42=\"\",\"\",VLOOKUP(AA42,background_colour[],2,FALSE))","v":""},null,null,{"$f":"IF(AD42=\"\",\"\",VLOOKUP(AD42,substrate_material[],2,FALSE))","v":""},null,{"$f":"IF(AF42=\"\",\"\",VLOOKUP(AF42,frame[],2,FALSE))","v":""},null,{"$f":"IF(AH42=\"\",\"\",VLOOKUP(AH42,side[],2,FALSE))","v":""},null,null,null,null,null,null,{"$f":"IF(AO42=\"\",\"\",VLOOKUP(AO42,install_reason[],2,FALSE))","v":""},null,{"$f":"IF(AQ42=\"\",\"\",VLOOKUP(AQ42,owner[],2,FALSE))","v":""},null,null,{"$f":"IF(AT42=\"\",\"\",VLOOKUP(AT42,likelihood[],2,FALSE))","v":""},null,{"$f":"IF(AV42=\"\",\"\",VLOOKUP(AV42,consequence[],2,FALSE))","v":""},null,{"$f":"IF(AX42=\"\",\"\",VLOOKUP(AX42,risk[],2,FALSE))","v":""},null,{"$f":"IF(AZ42=\"\",\"\",VLOOKUP(AZ42,rul_reset[],2,FALSE))","v":""},null,{"$f":"IF(BB42=\"\",\"\",VLOOKUP(BB42,use_default[],2,FALSE))","v":""},null,{"$f":"IF(BD42=\"\",\"\",VLOOKUP(BD42,condition[],2,FALSE))","v":""},null,null,{"$f":"IF(BG42=\"\",\"\",VLOOKUP(BG42,organisation[],2,FALSE))","v":""},null,null,null,null,null,{"$f":"IF(BM42=\"\",\"\",VLOOKUP(BM42,replace_reason[],2,FALSE))","v":""}]
[{"$error":"#VALUE!"},null,null,null,{"$f":"IF(D43=\"\", \"\", VLOOKUP(D43,gps_by[],2,FALSE))","v":""},null,null,null,null,{"$f":"IF(I43=\"\", \"\", VLOOKUP(I43,gps_method_id[],2,FALSE))","v":""},null,{"$f":"IF(K43=\"\",\"\",VLOOKUP(K43,types[],2,FALSE))","v":""},null,{"$f":"IF(M43=\"\",\"\",VLOOKUP(M43,class[],2,FALSE))","v":""},null,null,null,{"$f":"IF(Q43=\"\",\"\",VLOOKUP(Q43,indicating_direction[],2,FALSE))","v":""},null,null,null,{"$f":"IF(U43=\"\",\"\",VLOOKUP(U43,legend_material[],2,FALSE))","v":""},null,{"$f":"IF(W43=\"\",\"\",VLOOKUP(W43,legend_colour[],2,FALSE))","v":""},null,{"$f":"IF(Y43=\"\",\"\",VLOOKUP(Y43,background_material[],2,FALSE))","v":""},null,{"$f":"IF(AA43=\"\",\"\",VLOOKUP(AA43,background_colour[],2,FALSE))","v":""},null,null,{"$f":"IF(AD43=\"\",\"\",VLOOKUP(AD43,substrate_material[],2,FALSE))","v":""},null,{"$f":"IF(AF43=\"\",\"\",VLOOKUP(AF43,frame[],2,FALSE))","v":""},null,{"$f":"IF(AH43=\"\",\"\",VLOOKUP(AH43,side[],2,FALSE))","v":""},null,null,null,null,null,null,{"$f":"IF(AO43=\"\",\"\",VLOOKUP(AO43,install_reason[],2,FALSE))","v":""},null,{"$f":"IF(AQ43=\"\",\"\",VLOOKUP(AQ43,owner[],2,FALSE))","v":""},null,null,{"$f":"IF(AT43=\"\",\"\",VLOOKUP(AT43,likelihood[],2,FALSE))","v":""},null,{"$f":"IF(AV43=\"\",\"\",VLOOKUP(AV43,consequence[],2,FALSE))","v":""},null,{"$f":"IF(AX43=\"\",\"\",VLOOKUP(AX43,risk[],2,FALSE))","v":""},null,{"$f":"IF(AZ43=\"\",\"\",VLOOKUP(AZ43,rul_reset[],2,FALSE))","v":""},null,{"$f":"IF(BB43=\"\",\"\",VLOOKUP(BB43,use_default[],2,FALSE))","v":""},null,{"$f":"IF(BD43=\"\",\"\",VLOOKUP(BD43,condition[],2,FALSE))","v":""},null,null,{"$f":"IF(BG43=\"\",\"\",VLOOKUP(BG43,organisation[],2,FALSE))","v":""},null,null,null,null,null,{"$f":"IF(BM43=\"\",\"\",VLOOKUP(BM43,replace_reason[],2,FALSE))","v":""}]
[{"$error":"#VALUE!"},null,null,null,{"$f":"IF(D44=\"\", \"\", VLOOKUP(D44,gps_by[],2,FALSE))","v":""},null,null,null,null,{"$f":"IF(I44=\"\", \"\", VLOOKUP(I44,gps_method_id[],2,FALSE))","v":""},null,{"$f":"IF(K44=\"\",\"\",VLOOKUP(K44,types[],2,FALSE))","v":""},null,{"$f":"IF(M44=\"\",\"\",VLOOKUP(M44,class[],2,FALSE))","v":""},null,null,null,{"$f":"IF(Q44=\"\",\"\",VLOOKUP(Q44,indicating_direction[],2,FALSE))","v":""},null,null,null,{"$f":"IF(U44=\"\",\"\",VLOOKUP(U44,legend_material[],2,FALSE))","v":""},null,{"$f":"IF(W44=\"\",\"\",VLOOKUP(W44,legend_colour[],2,FALSE))","v":""},null,{"$f":"IF(Y44=\"\",\"\",VLOOKUP(Y44,background_material[],2,FALSE))","v":""},null,{"$f":"IF(AA44=\"\",\"\",VLOOKUP(AA44,background_colour[],2,FALSE))","v":""},null,null,{"$f":"IF(AD44=\"\",\"\",VLOOKUP(AD44,substrate_material[],2,FALSE))","v":""},null,{"$f":"IF(AF44=\"\",\"\",VLOOKUP(AF44,frame[],2,FALSE))","v":""},null,{"$f":"IF(AH44=\"\",\"\",VLOOKUP(AH44,side[],2,FALSE))","v":""},null,null,null,null,null,null,{"$f":"IF(AO44=\"\",\"\",VLOOKUP(AO44,install_reason[],2,FALSE))","v":""},null,{"$f":"IF(AQ44=\"\",\"\",VLOOKUP(AQ44,owner[],2,FALSE))","v":""},null,null,{"$f":"IF(AT44=\"\",\"\",VLOOKUP(AT44,likelihood[],2,FALSE))","v":""},null,{"$f":"IF(AV44=\"\",\"\",VLOOKUP(AV44,consequence[],2,FALSE))","v":""},null,{"$f":"IF(AX44=\"\",\"\",VLOOKUP(AX44,risk[],2,FALSE))","v":""},null,{"$f":"IF(AZ44=\"\",\"\",VLOOKUP(AZ44,rul_reset[],2,FALSE))","v":""},null,{"$f":"IF(BB44=\"\",\"\",VLOOKUP(BB44,use_default[],2,FALSE))","v":""},null,{"$f":"IF(BD44=\"\",\"\",VLOOKUP(BD44,condition[],2,FALSE))","v":""},null,null,{"$f":"IF(BG44=\"\",\"\",VLOOKUP(BG44,organisation[],2,FALSE))","v":""},null,null,null,null,null,{"$f":"IF(BM44=\"\",\"\",VLOOKUP(BM44,replace_reason[],2,FALSE))","v":""}]
[{"$error":"#VALUE!"},null,null,null,{"$f":"IF(D45=\"\", \"\", VLOOKUP(D45,gps_by[],2,FALSE))","v":""},null,null,null,null,{"$f":"IF(I45=\"\", \"\", VLOOKUP(I45,gps_method_id[],2,FALSE))","v":""},null,{"$f":"IF(K45=\"\",\"\",VLOOKUP(K45,types[],2,FALSE))","v":""},null,{"$f":"IF(M45=\"\",\"\",VLOOKUP(M45,class[],2,FALSE))","v":""},null,null,null,{"$f":"IF(Q45=\"\",\"\",VLOOKUP(Q45,indicating_direction[],2,FALSE))","v":""},null,null,null,{"$f":"IF(U45=\"\",\"\",VLOOKUP(U45,legend_material[],2,FALSE))","v":""},null,{"$f":"IF(W45=\"\",\"\",VLOOKUP(W45,legend_colour[],2,FALSE))","v":""},null,{"$f":"IF(Y45=\"\",\"\",VLOOKUP(Y45,background_material[],2,FALSE))","v":""},null,{"$f":"IF(AA45=\"\",\"\",VLOOKUP(AA45,background_colour[],2,FALSE))","v":""},null,null,{"$f":"IF(AD45=\"\",\"\",VLOOKUP(AD45,substrate_material[],2,FALSE))","v":""},null,{"$f":"IF(AF45=\"\",\"\",VLOOKUP(AF45,frame[],2,FALSE))","v":""},null,{"$f":"IF(AH45=\"\",\"\",VLOOKUP(AH45,side[],2,FALSE))","v":""},null,null,null,null,null,null,{"$f":"IF(AO45=\"\",\"\",VLOOKUP(AO45,install_reason[],2,FALSE))","v":""},null,{"$f":"IF(AQ45=\"\",\"\",VLOOKUP(AQ45,owner[],2,FALSE))","v":""},null,null,{"$f":"IF(AT45=\"\",\"\",VLOOKUP(AT45,likelihood[],2,FALSE))","v":""},null,{"$f":"IF(AV45=\"\",\"\",VLOOKUP(AV45,consequence[],2,FALSE))","v":""},null,{"$f":"IF(AX45=\"\",\"\",VLOOKUP(AX45,risk[],2,FALSE))","v":""},null,{"$f":"IF(AZ45=\"\",\"\",VLOOKUP(AZ45,rul_reset[],2,FALSE))","v":""},null,{"$f":"IF(BB45=\"\",\"\",VLOOKUP(BB45,use_default[],2,FALSE))","v":""},null,{"$f":"IF(BD45=\"\",\"\",VLOOKUP(BD45,condition[],2,FALSE))","v":""},null,null,{"$f":"IF(BG45=\"\",\"\",VLOOKUP(BG45,organisation[],2,FALSE))","v":""},null,null,null,null,null,{"$f":"IF(BM45=\"\",\"\",VLOOKUP(BM45,replace_reason[],2,FALSE))","v":""}]
[{"$error":"#VALUE!"},null,null,null,{"$f":"IF(D46=\"\", \"\", VLOOKUP(D46,gps_by[],2,FALSE))","v":""},null,null,null,null,{"$f":"IF(I46=\"\", \"\", VLOOKUP(I46,gps_method_id[],2,FALSE))","v":""},null,{"$f":"IF(K46=\"\",\"\",VLOOKUP(K46,types[],2,FALSE))","v":""},null,{"$f":"IF(M46=\"\",\"\",VLOOKUP(M46,class[],2,FALSE))","v":""},null,null,null,{"$f":"IF(Q46=\"\",\"\",VLOOKUP(Q46,indicating_direction[],2,FALSE))","v":""},null,null,null,{"$f":"IF(U46=\"\",\"\",VLOOKUP(U46,legend_material[],2,FALSE))","v":""},null,{"$f":"IF(W46=\"\",\"\",VLOOKUP(W46,legend_colour[],2,FALSE))","v":""},null,{"$f":"IF(Y46=\"\",\"\",VLOOKUP(Y46,background_material[],2,FALSE))","v":""},null,{"$f":"IF(AA46=\"\",\"\",VLOOKUP(AA46,background_colour[],2,FALSE))","v":""},null,null,{"$f":"IF(AD46=\"\",\"\",VLOOKUP(AD46,substrate_material[],2,FALSE))","v":""},null,{"$f":"IF(AF46=\"\",\"\",VLOOKUP(AF46,frame[],2,FALSE))","v":""},null,{"$f":"IF(AH46=\"\",\"\",VLOOKUP(AH46,side[],2,FALSE))","v":""},null,null,null,null,null,null,{"$f":"IF(AO46=\"\",\"\",VLOOKUP(AO46,install_reason[],2,FALSE))","v":""},null,{"$f":"IF(AQ46=\"\",\"\",VLOOKUP(AQ46,owner[],2,FALSE))","v":""},null,null,{"$f":"IF(AT46=\"\",\"\",VLOOKUP(AT46,likelihood[],2,FALSE))","v":""},null,{"$f":"IF(AV46=\"\",\"\",VLOOKUP(AV46,consequence[],2,FALSE))","v":""},null,{"$f":"IF(AX46=\"\",\"\",VLOOKUP(AX46,risk[],2,FALSE))","v":""},null,{"$f":"IF(AZ46=\"\",\"\",VLOOKUP(AZ46,rul_reset[],2,FALSE))","v":""},null,{"$f":"IF(BB46=\"\",\"\",VLOOKUP(BB46,use_default[],2,FALSE))","v":""},null,{"$f":"IF(BD46=\"\",\"\",VLOOKUP(BD46,condition[],2,FALSE))","v":""},null,null,{"$f":"IF(BG46=\"\",\"\",VLOOKUP(BG46,organisation[],2,FALSE))","v":""},null,null,null,null,null,{"$f":"IF(BM46=\"\",\"\",VLOOKUP(BM46,replace_reason[],2,FALSE))","v":""}]
[{"$error":"#VALUE!"},null,null,null,{"$f":"IF(D47=\"\", \"\", VLOOKUP(D47,gps_by[],2,FALSE))","v":""},null,null,null,null,{"$f":"IF(I47=\"\", \"\", VLOOKUP(I47,gps_method_id[],2,FALSE))","v":""},null,{"$f":"IF(K47=\"\",\"\",VLOOKUP(K47,types[],2,FALSE))","v":""},null,{"$f":"IF(M47=\"\",\"\",VLOOKUP(M47,class[],2,FALSE))","v":""},null,null,null,{"$f":"IF(Q47=\"\",\"\",VLOOKUP(Q47,indicating_direction[],2,FALSE))","v":""},null,null,null,{"$f":"IF(U47=\"\",\"\",VLOOKUP(U47,legend_material[],2,FALSE))","v":""},null,{"$f":"IF(W47=\"\",\"\",VLOOKUP(W47,legend_colour[],2,FALSE))","v":""},null,{"$f":"IF(Y47=\"\",\"\",VLOOKUP(Y47,background_material[],2,FALSE))","v":""},null,{"$f":"IF(AA47=\"\",\"\",VLOOKUP(AA47,background_colour[],2,FALSE))","v":""},null,null,{"$f":"IF(AD47=\"\",\"\",VLOOKUP(AD47,substrate_material[],2,FALSE))","v":""},null,{"$f":"IF(AF47=\"\",\"\",VLOOKUP(AF47,frame[],2,FALSE))","v":""},null,{"$f":"IF(AH47=\"\",\"\",VLOOKUP(AH47,side[],2,FALSE))","v":""},null,null,null,null,null,null,{"$f":"IF(AO47=\"\",\"\",VLOOKUP(AO47,install_reason[],2,FALSE))","v":""},null,{"$f":"IF(AQ47=\"\",\"\",VLOOKUP(AQ47,owner[],2,FALSE))","v":""},null,null,{"$f":"IF(AT47=\"\",\"\",VLOOKUP(AT47,likelihood[],2,FALSE))","v":""},null,{"$f":"IF(AV47=\"\",\"\",VLOOKUP(AV47,consequence[],2,FALSE))","v":""},null,{"$f":"IF(AX47=\"\",\"\",VLOOKUP(AX47,risk[],2,FALSE))","v":""},null,{"$f":"IF(AZ47=\"\",\"\",VLOOKUP(AZ47,rul_reset[],2,FALSE))","v":""},null,{"$f":"IF(BB47=\"\",\"\",VLOOKUP(BB47,use_default[],2,FALSE))","v":""},null,{"$f":"IF(BD47=\"\",\"\",VLOOKUP(BD47,condition[],2,FALSE))","v":""},null,null,{"$f":"IF(BG47=\"\",\"\",VLOOKUP(BG47,organisation[],2,FALSE))","v":""},null,null,null,null,null,{"$f":"IF(BM47=\"\",\"\",VLOOKUP(BM47,replace_reason[],2,FALSE))","v":""}]
[{"$error":"#VALUE!"},null,null,null,{"$f":"IF(D48=\"\", \"\", VLOOKUP(D48,gps_by[],2,FALSE))","v":""},null,null,null,null,{"$f":"IF(I48=\"\", \"\", VLOOKUP(I48,gps_method_id[],2,FALSE))","v":""},null,{"$f":"IF(K48=\"\",\"\",VLOOKUP(K48,types[],2,FALSE))","v":""},null,{"$f":"IF(M48=\"\",\"\",VLOOKUP(M48,class[],2,FALSE))","v":""},null,null,null,{"$f":"IF(Q48=\"\",\"\",VLOOKUP(Q48,indicating_direction[],2,FALSE))","v":""},null,null,null,{"$f":"IF(U48=\"\",\"\",VLOOKUP(U48,legend_material[],2,FALSE))","v":""},null,{"$f":"IF(W48=\"\",\"\",VLOOKUP(W48,legend_colour[],2,FALSE))","v":""},null,{"$f":"IF(Y48=\"\",\"\",VLOOKUP(Y48,background_material[],2,FALSE))","v":""},null,{"$f":"IF(AA48=\"\",\"\",VLOOKUP(AA48,background_colour[],2,FALSE))","v":""},null,null,{"$f":"IF(AD48=\"\",\"\",VLOOKUP(AD48,substrate_material[],2,FALSE))","v":""},null,{"$f":"IF(AF48=\"\",\"\",VLOOKUP(AF48,frame[],2,FALSE))","v":""},null,{"$f":"IF(AH48=\"\",\"\",VLOOKUP(AH48,side[],2,FALSE))","v":""},null,null,null,null,null,null,{"$f":"IF(AO48=\"\",\"\",VLOOKUP(AO48,install_reason[],2,FALSE))","v":""},null,{"$f":"IF(AQ48=\"\",\"\",VLOOKUP(AQ48,owner[],2,FALSE))","v":""},null,null,{"$f":"IF(AT48=\"\",\"\",VLOOKUP(AT48,likelihood[],2,FALSE))","v":""},null,{"$f":"IF(AV48=\"\",\"\",VLOOKUP(AV48,consequence[],2,FALSE))","v":""},null,{"$f":"IF(AX48=\"\",\"\",VLOOKUP(AX48,risk[],2,FALSE))","v":""},null,{"$f":"IF(AZ48=\"\",\"\",VLOOKUP(AZ48,rul_reset[],2,FALSE))","v":""},null,{"$f":"IF(BB48=\"\",\"\",VLOOKUP(BB48,use_default[],2,FALSE))","v":""},null,{"$f":"IF(BD48=\"\",\"\",VLOOKUP(BD48,condition[],2,FALSE))","v":""},null,null,{"$f":"IF(BG48=\"\",\"\",VLOOKUP(BG48,organisation[],2,FALSE))","v":""},null,null,null,null,null,{"$f":"IF(BM48=\"\",\"\",VLOOKUP(BM48,replace_reason[],2,FALSE))","v":""}]
[{"$error":"#VALUE!"},null,null,null,{"$f":"IF(D49=\"\", \"\", VLOOKUP(D49,gps_by[],2,FALSE))","v":""},null,null,null,null,{"$f":"IF(I49=\"\", \"\", VLOOKUP(I49,gps_method_id[],2,FALSE))","v":""},null,{"$f":"IF(K49=\"\",\"\",VLOOKUP(K49,types[],2,FALSE))","v":""},null,{"$f":"IF(M49=\"\",\"\",VLOOKUP(M49,class[],2,FALSE))","v":""},null,null,null,{"$f":"IF(Q49=\"\",\"\",VLOOKUP(Q49,indicating_direction[],2,FALSE))","v":""},null,null,null,{"$f":"IF(U49=\"\",\"\",VLOOKUP(U49,legend_material[],2,FALSE))","v":""},null,{"$f":"IF(W49=\"\",\"\",VLOOKUP(W49,legend_colour[],2,FALSE))","v":""},null,{"$f":"IF(Y49=\"\",\"\",VLOOKUP(Y49,background_material[],2,FALSE))","v":""},null,{"$f":"IF(AA49=\"\",\"\",VLOOKUP(AA49,background_colour[],2,FALSE))","v":""},null,null,{"$f":"IF(AD49=\"\",\"\",VLOOKUP(AD49,substrate_material[],2,FALSE))","v":""},null,{"$f":"IF(AF49=\"\",\"\",VLOOKUP(AF49,frame[],2,FALSE))","v":""},null,{"$f":"IF(AH49=\"\",\"\",VLOOKUP(AH49,side[],2,FALSE))","v":""},null,null,null,null,null,null,{"$f":"IF(AO49=\"\",\"\",VLOOKUP(AO49,install_reason[],2,FALSE))","v":""},null,{"$f":"IF(AQ49=\"\",\"\",VLOOKUP(AQ49,owner[],2,FALSE))","v":""},null,null,{"$f":"IF(AT49=\"\",\"\",VLOOKUP(AT49,likelihood[],2,FALSE))","v":""},null,{"$f":"IF(AV49=\"\",\"\",VLOOKUP(AV49,consequence[],2,FALSE))","v":""},null,{"$f":"IF(AX49=\"\",\"\",VLOOKUP(AX49,risk[],2,FALSE))","v":""},null,{"$f":"IF(AZ49=\"\",\"\",VLOOKUP(AZ49,rul_reset[],2,FALSE))","v":""},null,{"$f":"IF(BB49=\"\",\"\",VLOOKUP(BB49,use_default[],2,FALSE))","v":""},null,{"$f":"IF(BD49=\"\",\"\",VLOOKUP(BD49,condition[],2,FALSE))","v":""},null,null,{"$f":"IF(BG49=\"\",\"\",VLOOKUP(BG49,organisation[],2,FALSE))","v":""},null,null,null,null,null,{"$f":"IF(BM49=\"\",\"\",VLOOKUP(BM49,replace_reason[],2,FALSE))","v":""}]
[{"$error":"#VALUE!"},null,null,null,{"$f":"IF(D50=\"\", \"\", VLOOKUP(D50,gps_by[],2,FALSE))","v":""},null,null,null,null,{"$f":"IF(I50=\"\", \"\", VLOOKUP(I50,gps_method_id[],2,FALSE))","v":""},null,{"$f":"IF(K50=\"\",\"\",VLOOKUP(K50,types[],2,FALSE))","v":""},null,{"$f":"IF(M50=\"\",\"\",VLOOKUP(M50,class[],2,FALSE))","v":""},null,null,null,{"$f":"IF(Q50=\"\",\"\",VLOOKUP(Q50,indicating_direction[],2,FALSE))","v":""},null,null,null,{"$f":"IF(U50=\"\",\"\",VLOOKUP(U50,legend_material[],2,FALSE))","v":""},null,{"$f":"IF(W50=\"\",\"\",VLOOKUP(W50,legend_colour[],2,FALSE))","v":""},null,{"$f":"IF(Y50=\"\",\"\",VLOOKUP(Y50,background_material[],2,FALSE))","v":""},null,{"$f":"IF(AA50=\"\",\"\",VLOOKUP(AA50,background_colour[],2,FALSE))","v":""},null,null,{"$f":"IF(AD50=\"\",\"\",VLOOKUP(AD50,substrate_material[],2,FALSE))","v":""},null,{"$f":"IF(AF50=\"\",\"\",VLOOKUP(AF50,frame[],2,FALSE))","v":""},null,{"$f":"IF(AH50=\"\",\"\",VLOOKUP(AH50,side[],2,FALSE))","v":""},null,null,null,null,null,null,{"$f":"IF(AO50=\"\",\"\",VLOOKUP(AO50,install_reason[],2,FALSE))","v":""},null,{"$f":"IF(AQ50=\"\",\"\",VLOOKUP(AQ50,owner[],2,FALSE))","v":""},null,null,{"$f":"IF(AT50=\"\",\"\",VLOOKUP(AT50,likelihood[],2,FALSE))","v":""},null,{"$f":"IF(AV50=\"\",\"\",VLOOKUP(AV50,consequence[],2,FALSE))","v":""},null,{"$f":"IF(AX50=\"\",\"\",VLOOKUP(AX50,risk[],2,FALSE))","v":""},null,{"$f":"IF(AZ50=\"\",\"\",VLOOKUP(AZ50,rul_reset[],2,FALSE))","v":""},null,{"$f":"IF(BB50=\"\",\"\",VLOOKUP(BB50,use_default[],2,FALSE))","v":""},null,{"$f":"IF(BD50=\"\",\"\",VLOOKUP(BD50,condition[],2,FALSE))","v":""},null,null,{"$f":"IF(BG50=\"\",\"\",VLOOKUP(BG50,organisation[],2,FALSE))","v":""},null,null,null,null,null,{"$f":"IF(BM50=\"\",\"\",VLOOKUP(BM50,replace_reason[],2,FALSE))","v":""}]
[{"$error":"#VALUE!"},null,null,null,{"$f":"IF(D51=\"\", \"\", VLOOKUP(D51,gps_by[],2,FALSE))","v":""},null,null,null,null,{"$f":"IF(I51=\"\", \"\", VLOOKUP(I51,gps_method_id[],2,FALSE))","v":""},null,{"$f":"IF(K51=\"\",\"\",VLOOKUP(K51,types[],2,FALSE))","v":""},null,{"$f":"IF(M51=\"\",\"\",VLOOKUP(M51,class[],2,FALSE))","v":""},null,null,null,{"$f":"IF(Q51=\"\",\"\",VLOOKUP(Q51,indicating_direction[],2,FALSE))","v":""},null,null,null,{"$f":"IF(U51=\"\",\"\",VLOOKUP(U51,legend_material[],2,FALSE))","v":""},null,{"$f":"IF(W51=\"\",\"\",VLOOKUP(W51,legend_colour[],2,FALSE))","v":""},null,{"$f":"IF(Y51=\"\",\"\",VLOOKUP(Y51,background_material[],2,FALSE))","v":""},null,{"$f":"IF(AA51=\"\",\"\",VLOOKUP(AA51,background_colour[],2,FALSE))","v":""},null,null,{"$f":"IF(AD51=\"\",\"\",VLOOKUP(AD51,substrate_material[],2,FALSE))","v":""},null,{"$f":"IF(AF51=\"\",\"\",VLOOKUP(AF51,frame[],2,FALSE))","v":""},null,{"$f":"IF(AH51=\"\",\"\",VLOOKUP(AH51,side[],2,FALSE))","v":""},null,null,null,null,null,null,{"$f":"IF(AO51=\"\",\"\",VLOOKUP(AO51,install_reason[],2,FALSE))","v":""},null,{"$f":"IF(AQ51=\"\",\"\",VLOOKUP(AQ51,owner[],2,FALSE))","v":""},null,null,{"$f":"IF(AT51=\"\",\"\",VLOOKUP(AT51,likelihood[],2,FALSE))","v":""},null,{"$f":"IF(AV51=\"\",\"\",VLOOKUP(AV51,consequence[],2,FALSE))","v":""},null,{"$f":"IF(AX51=\"\",\"\",VLOOKUP(AX51,risk[],2,FALSE))","v":""},null,{"$f":"IF(AZ51=\"\",\"\",VLOOKUP(AZ51,rul_reset[],2,FALSE))","v":""},null,{"$f":"IF(BB51=\"\",\"\",VLOOKUP(BB51,use_default[],2,FALSE))","v":""},null,{"$f":"IF(BD51=\"\",\"\",VLOOKUP(BD51,condition[],2,FALSE))","v":""},null,null,{"$f":"IF(BG51=\"\",\"\",VLOOKUP(BG51,organisation[],2,FALSE))","v":""},null,null,null,null,null,{"$f":"IF(BM51=\"\",\"\",VLOOKUP(BM51,replace_reason[],2,FALSE))","v":""}]
[{"$error":"#VALUE!"},null,null,null,{"$f":"IF(D52=\"\", \"\", VLOOKUP(D52,gps_by[],2,FALSE))","v":""},null,null,null,null,{"$f":"IF(I52=\"\", \"\", VLOOKUP(I52,gps_method_id[],2,FALSE))","v":""},null,{"$f":"IF(K52=\"\",\"\",VLOOKUP(K52,types[],2,FALSE))","v":""},null,{"$f":"IF(M52=\"\",\"\",VLOOKUP(M52,class[],2,FALSE))","v":""},null,null,null,{"$f":"IF(Q52=\"\",\"\",VLOOKUP(Q52,indicating_direction[],2,FALSE))","v":""},null,null,null,{"$f":"IF(U52=\"\",\"\",VLOOKUP(U52,legend_material[],2,FALSE))","v":""},null,{"$f":"IF(W52=\"\",\"\",VLOOKUP(W52,legend_colour[],2,FALSE))","v":""},null,{"$f":"IF(Y52=\"\",\"\",VLOOKUP(Y52,background_material[],2,FALSE))","v":""},null,{"$f":"IF(AA52=\"\",\"\",VLOOKUP(AA52,background_colour[],2,FALSE))","v":""},null,null,{"$f":"IF(AD52=\"\",\"\",VLOOKUP(AD52,substrate_material[],2,FALSE))","v":""},null,{"$f":"IF(AF52=\"\",\"\",VLOOKUP(AF52,frame[],2,FALSE))","v":""},null,{"$f":"IF(AH52=\"\",\"\",VLOOKUP(AH52,side[],2,FALSE))","v":""},null,null,null,null,null,null,{"$f":"IF(AO52=\"\",\"\",VLOOKUP(AO52,install_reason[],2,FALSE))","v":""},null,{"$f":"IF(AQ52=\"\",\"\",VLOOKUP(AQ52,owner[],2,FALSE))","v":""},null,null,{"$f":"IF(AT52=\"\",\"\",VLOOKUP(AT52,likelihood[],2,FALSE))","v":""},null,{"$f":"IF(AV52=\"\",\"\",VLOOKUP(AV52,consequence[],2,FALSE))","v":""},null,{"$f":"IF(AX52=\"\",\"\",VLOOKUP(AX52,risk[],2,FALSE))","v":""},null,{"$f":"IF(AZ52=\"\",\"\",VLOOKUP(AZ52,rul_reset[],2,FALSE))","v":""},null,{"$f":"IF(BB52=\"\",\"\",VLOOKUP(BB52,use_default[],2,FALSE))","v":""},null,{"$f":"IF(BD52=\"\",\"\",VLOOKUP(BD52,condition[],2,FALSE))","v":""},null,null,{"$f":"IF(BG52=\"\",\"\",VLOOKUP(BG52,organisation[],2,FALSE))","v":""},null,null,null,null,null,{"$f":"IF(BM52=\"\",\"\",VLOOKUP(BM52,replace_reason[],2,FALSE))","v":""}]
[{"$error":"#VALUE!"},null,null,null,{"$f":"IF(D53=\"\", \"\", VLOOKUP(D53,gps_by[],2,FALSE))","v":""},null,null,null,null,{"$f":"IF(I53=\"\", \"\", VLOOKUP(I53,gps_method_id[],2,FALSE))","v":""},null,{"$f":"IF(K53=\"\",\"\",VLOOKUP(K53,types[],2,FALSE))","v":""},null,{"$f":"IF(M53=\"\",\"\",VLOOKUP(M53,class[],2,FALSE))","v":""},null,null,null,{"$f":"IF(Q53=\"\",\"\",VLOOKUP(Q53,indicating_direction[],2,FALSE))","v":""},null,null,null,{"$f":"IF(U53=\"\",\"\",VLOOKUP(U53,legend_material[],2,FALSE))","v":""},null,{"$f":"IF(W53=\"\",\"\",VLOOKUP(W53,legend_colour[],2,FALSE))","v":""},null,{"$f":"IF(Y53=\"\",\"\",VLOOKUP(Y53,background_material[],2,FALSE))","v":""},null,{"$f":"IF(AA53=\"\",\"\",VLOOKUP(AA53,background_colour[],2,FALSE))","v":""},null,null,{"$f":"IF(AD53=\"\",\"\",VLOOKUP(AD53,substrate_material[],2,FALSE))","v":""},null,{"$f":"IF(AF53=\"\",\"\",VLOOKUP(AF53,frame[],2,FALSE))","v":""},null,{"$f":"IF(AH53=\"\",\"\",VLOOKUP(AH53,side[],2,FALSE))","v":""},null,null,null,null,null,null,{"$f":"IF(AO53=\"\",\"\",VLOOKUP(AO53,install_reason[],2,FALSE))","v":""},null,{"$f":"IF(AQ53=\"\",\"\",VLOOKUP(AQ53,owner[],2,FALSE))","v":""},null,null,{"$f":"IF(AT53=\"\",\"\",VLOOKUP(AT53,likelihood[],2,FALSE))","v":""},null,{"$f":"IF(AV53=\"\",\"\",VLOOKUP(AV53,consequence[],2,FALSE))","v":""},null,{"$f":"IF(AX53=\"\",\"\",VLOOKUP(AX53,risk[],2,FALSE))","v":""},null,{"$f":"IF(AZ53=\"\",\"\",VLOOKUP(AZ53,rul_reset[],2,FALSE))","v":""},null,{"$f":"IF(BB53=\"\",\"\",VLOOKUP(BB53,use_default[],2,FALSE))","v":""},null,{"$f":"IF(BD53=\"\",\"\",VLOOKUP(BD53,condition[],2,FALSE))","v":""},null,null,{"$f":"IF(BG53=\"\",\"\",VLOOKUP(BG53,organisation[],2,FALSE))","v":""},null,null,null,null,null,{"$f":"IF(BM53=\"\",\"\",VLOOKUP(BM53,replace_reason[],2,FALSE))","v":""}]
[{"$error":"#VALUE!"},null,null,null,{"$f":"IF(D54=\"\", \"\", VLOOKUP(D54,gps_by[],2,FALSE))","v":""},null,null,null,null,{"$f":"IF(I54=\"\", \"\", VLOOKUP(I54,gps_method_id[],2,FALSE))","v":""},null,{"$f":"IF(K54=\"\",\"\",VLOOKUP(K54,types[],2,FALSE))","v":""},null,{"$f":"IF(M54=\"\",\"\",VLOOKUP(M54,class[],2,FALSE))","v":""},null,null,null,{"$f":"IF(Q54=\"\",\"\",VLOOKUP(Q54,indicating_direction[],2,FALSE))","v":""},null,null,null,{"$f":"IF(U54=\"\",\"\",VLOOKUP(U54,legend_material[],2,FALSE))","v":""},null,{"$f":"IF(W54=\"\",\"\",VLOOKUP(W54,legend_colour[],2,FALSE))","v":""},null,{"$f":"IF(Y54=\"\",\"\",VLOOKUP(Y54,background_material[],2,FALSE))","v":""},null,{"$f":"IF(AA54=\"\",\"\",VLOOKUP(AA54,background_colour[],2,FALSE))","v":""},null,null,{"$f":"IF(AD54=\"\",\"\",VLOOKUP(AD54,substrate_material[],2,FALSE))","v":""},null,{"$f":"IF(AF54=\"\",\"\",VLOOKUP(AF54,frame[],2,FALSE))","v":""},null,{"$f":"IF(AH54=\"\",\"\",VLOOKUP(AH54,side[],2,FALSE))","v":""},null,null,null,null,null,null,{"$f":"IF(AO54=\"\",\"\",VLOOKUP(AO54,install_reason[],2,FALSE))","v":""},null,{"$f":"IF(AQ54=\"\",\"\",VLOOKUP(AQ54,owner[],2,FALSE))","v":""},null,null,{"$f":"IF(AT54=\"\",\"\",VLOOKUP(AT54,likelihood[],2,FALSE))","v":""},null,{"$f":"IF(AV54=\"\",\"\",VLOOKUP(AV54,consequence[],2,FALSE))","v":""},null,{"$f":"IF(AX54=\"\",\"\",VLOOKUP(AX54,risk[],2,FALSE))","v":""},null,{"$f":"IF(AZ54=\"\",\"\",VLOOKUP(AZ54,rul_reset[],2,FALSE))","v":""},null,{"$f":"IF(BB54=\"\",\"\",VLOOKUP(BB54,use_default[],2,FALSE))","v":""},null,{"$f":"IF(BD54=\"\",\"\",VLOOKUP(BD54,condition[],2,FALSE))","v":""},null,null,{"$f":"IF(BG54=\"\",\"\",VLOOKUP(BG54,organisation[],2,FALSE))","v":""},null,null,null,null,null,{"$f":"IF(BM54=\"\",\"\",VLOOKUP(BM54,replace_reason[],2,FALSE))","v":""}]
[{"$error":"#VALUE!"},null,null,null,{"$f":"IF(D55=\"\", \"\", VLOOKUP(D55,gps_by[],2,FALSE))","v":""},null,null,null,null,{"$f":"IF(I55=\"\", \"\", VLOOKUP(I55,gps_method_id[],2,FALSE))","v":""},null,{"$f":"IF(K55=\"\",\"\",VLOOKUP(K55,types[],2,FALSE))","v":""},null,{"$f":"IF(M55=\"\",\"\",VLOOKUP(M55,class[],2,FALSE))","v":""},null,null,null,{"$f":"IF(Q55=\"\",\"\",VLOOKUP(Q55,indicating_direction[],2,FALSE))","v":""},null,null,null,{"$f":"IF(U55=\"\",\"\",VLOOKUP(U55,legend_material[],2,FALSE))","v":""},null,{"$f":"IF(W55=\"\",\"\",VLOOKUP(W55,legend_colour[],2,FALSE))","v":""},null,{"$f":"IF(Y55=\"\",\"\",VLOOKUP(Y55,background_material[],2,FALSE))","v":""},null,{"$f":"IF(AA55=\"\",\"\",VLOOKUP(AA55,background_colour[],2,FALSE))","v":""},null,null,{"$f":"IF(AD55=\"\",\"\",VLOOKUP(AD55,substrate_material[],2,FALSE))","v":""},null,{"$f":"IF(AF55=\"\",\"\",VLOOKUP(AF55,frame[],2,FALSE))","v":""},null,{"$f":"IF(AH55=\"\",\"\",VLOOKUP(AH55,side[],2,FALSE))","v":""},null,null,null,null,null,null,{"$f":"IF(AO55=\"\",\"\",VLOOKUP(AO55,install_reason[],2,FALSE))","v":""},null,{"$f":"IF(AQ55=\"\",\"\",VLOOKUP(AQ55,owner[],2,FALSE))","v":""},null,null,{"$f":"IF(AT55=\"\",\"\",VLOOKUP(AT55,likelihood[],2,FALSE))","v":""},null,{"$f":"IF(AV55=\"\",\"\",VLOOKUP(AV55,consequence[],2,FALSE))","v":""},null,{"$f":"IF(AX55=\"\",\"\",VLOOKUP(AX55,risk[],2,FALSE))","v":""},null,{"$f":"IF(AZ55=\"\",\"\",VLOOKUP(AZ55,rul_reset[],2,FALSE))","v":""},null,{"$f":"IF(BB55=\"\",\"\",VLOOKUP(BB55,use_default[],2,FALSE))","v":""},null,{"$f":"IF(BD55=\"\",\"\",VLOOKUP(BD55,condition[],2,FALSE))","v":""},null,null,{"$f":"IF(BG55=\"\",\"\",VLOOKUP(BG55,organisation[],2,FALSE))","v":""},null,null,null,null,null,{"$f":"IF(BM55=\"\",\"\",VLOOKUP(BM55,replace_reason[],2,FALSE))","v":""}]
[{"$error":"#VALUE!"},null,null,null,{"$f":"IF(D56=\"\", \"\", VLOOKUP(D56,gps_by[],2,FALSE))","v":""},null,null,null,null,{"$f":"IF(I56=\"\", \"\", VLOOKUP(I56,gps_method_id[],2,FALSE))","v":""},null,{"$f":"IF(K56=\"\",\"\",VLOOKUP(K56,types[],2,FALSE))","v":""},null,{"$f":"IF(M56=\"\",\"\",VLOOKUP(M56,class[],2,FALSE))","v":""},null,null,null,{"$f":"IF(Q56=\"\",\"\",VLOOKUP(Q56,indicating_direction[],2,FALSE))","v":""},null,null,null,{"$f":"IF(U56=\"\",\"\",VLOOKUP(U56,legend_material[],2,FALSE))","v":""},null,{"$f":"IF(W56=\"\",\"\",VLOOKUP(W56,legend_colour[],2,FALSE))","v":""},null,{"$f":"IF(Y56=\"\",\"\",VLOOKUP(Y56,background_material[],2,FALSE))","v":""},null,{"$f":"IF(AA56=\"\",\"\",VLOOKUP(AA56,background_colour[],2,FALSE))","v":""},null,null,{"$f":"IF(AD56=\"\",\"\",VLOOKUP(AD56,substrate_material[],2,FALSE))","v":""},null,{"$f":"IF(AF56=\"\",\"\",VLOOKUP(AF56,frame[],2,FALSE))","v":""},null,{"$f":"IF(AH56=\"\",\"\",VLOOKUP(AH56,side[],2,FALSE))","v":""},null,null,null,null,null,null,{"$f":"IF(AO56=\"\",\"\",VLOOKUP(AO56,install_reason[],2,FALSE))","v":""},null,{"$f":"IF(AQ56=\"\",\"\",VLOOKUP(AQ56,owner[],2,FALSE))","v":""},null,null,{"$f":"IF(AT56=\"\",\"\",VLOOKUP(AT56,likelihood[],2,FALSE))","v":""},null,{"$f":"IF(AV56=\"\",\"\",VLOOKUP(AV56,consequence[],2,FALSE))","v":""},null,{"$f":"IF(AX56=\"\",\"\",VLOOKUP(AX56,risk[],2,FALSE))","v":""},null,{"$f":"IF(AZ56=\"\",\"\",VLOOKUP(AZ56,rul_reset[],2,FALSE))","v":""},null,{"$f":"IF(BB56=\"\",\"\",VLOOKUP(BB56,use_default[],2,FALSE))","v":""},null,{"$f":"IF(BD56=\"\",\"\",VLOOKUP(BD56,condition[],2,FALSE))","v":""},null,null,{"$f":"IF(BG56=\"\",\"\",VLOOKUP(BG56,organisation[],2,FALSE))","v":""},null,null,null,null,null,{"$f":"IF(BM56=\"\",\"\",VLOOKUP(BM56,replace_reason[],2,FALSE))","v":""}]
[{"$error":"#VALUE!"},null,null,null,{"$f":"IF(D57=\"\", \"\", VLOOKUP(D57,gps_by[],2,FALSE))","v":""},null,null,null,null,{"$f":"IF(I57=\"\", \"\", VLOOKUP(I57,gps_method_id[],2,FALSE))","v":""},null,{"$f":"IF(K57=\"\",\"\",VLOOKUP(K57,types[],2,FALSE))","v":""},null,{"$f":"IF(M57=\"\",\"\",VLOOKUP(M57,class[],2,FALSE))","v":""},null,null,null,{"$f":"IF(Q57=\"\",\"\",VLOOKUP(Q57,indicating_direction[],2,FALSE))","v":""},null,null,null,{"$f":"IF(U57=\"\",\"\",VLOOKUP(U57,legend_material[],2,FALSE))","v":""},null,{"$f":"IF(W57=\"\",\"\",VLOOKUP(W57,legend_colour[],2,FALSE))","v":""},null,{"$f":"IF(Y57=\"\",\"\",VLOOKUP(Y57,background_material[],2,FALSE))","v":""},null,{"$f":"IF(AA57=\"\",\"\",VLOOKUP(AA57,background_colour[],2,FALSE))","v":""},null,null,{"$f":"IF(AD57=\"\",\"\",VLOOKUP(AD57,substrate_material[],2,FALSE))","v":""},null,{"$f":"IF(AF57=\"\",\"\",VLOOKUP(AF57,frame[],2,FALSE))","v":""},null,{"$f":"IF(AH57=\"\",\"\",VLOOKUP(AH57,side[],2,FALSE))","v":""},null,null,null,null,null,null,{"$f":"IF(AO57=\"\",\"\",VLOOKUP(AO57,install_reason[],2,FALSE))","v":""},null,{"$f":"IF(AQ57=\"\",\"\",VLOOKUP(AQ57,owner[],2,FALSE))","v":""},null,null,{"$f":"IF(AT57=\"\",\"\",VLOOKUP(AT57,likelihood[],2,FALSE))","v":""},null,{"$f":"IF(AV57=\"\",\"\",VLOOKUP(AV57,consequence[],2,FALSE))","v":""},null,{"$f":"IF(AX57=\"\",\"\",VLOOKUP(AX57,risk[],2,FALSE))","v":""},null,{"$f":"IF(AZ57=\"\",\"\",VLOOKUP(AZ57,rul_reset[],2,FALSE))","v":""},null,{"$f":"IF(BB57=\"\",\"\",VLOOKUP(BB57,use_default[],2,FALSE))","v":""},null,{"$f":"IF(BD57=\"\",\"\",VLOOKUP(BD57,condition[],2,FALSE))","v":""},null,null,{"$f":"IF(BG57=\"\",\"\",VLOOKUP(BG57,organisation[],2,FALSE))","v":""},null,null,null,null,null,{"$f":"IF(BM57=\"\",\"\",VLOOKUP(BM57,replace_reason[],2,FALSE))","v":""}]
[{"$error":"#VALUE!"},null,null,null,{"$f":"IF(D58=\"\", \"\", VLOOKUP(D58,gps_by[],2,FALSE))","v":""},null,null,null,null,{"$f":"IF(I58=\"\", \"\", VLOOKUP(I58,gps_method_id[],2,FALSE))","v":""},null,{"$f":"IF(K58=\"\",\"\",VLOOKUP(K58,types[],2,FALSE))","v":""},null,{"$f":"IF(M58=\"\",\"\",VLOOKUP(M58,class[],2,FALSE))","v":""},null,null,null,{"$f":"IF(Q58=\"\",\"\",VLOOKUP(Q58,indicating_direction[],2,FALSE))","v":""},null,null,null,{"$f":"IF(U58=\"\",\"\",VLOOKUP(U58,legend_material[],2,FALSE))","v":""},null,{"$f":"IF(W58=\"\",\"\",VLOOKUP(W58,legend_colour[],2,FALSE))","v":""},null,{"$f":"IF(Y58=\"\",\"\",VLOOKUP(Y58,background_material[],2,FALSE))","v":""},null,{"$f":"IF(AA58=\"\",\"\",VLOOKUP(AA58,background_colour[],2,FALSE))","v":""},null,null,{"$f":"IF(AD58=\"\",\"\",VLOOKUP(AD58,substrate_material[],2,FALSE))","v":""},null,{"$f":"IF(AF58=\"\",\"\",VLOOKUP(AF58,frame[],2,FALSE))","v":""},null,{"$f":"IF(AH58=\"\",\"\",VLOOKUP(AH58,side[],2,FALSE))","v":""},null,null,null,null,null,null,{"$f":"IF(AO58=\"\",\"\",VLOOKUP(AO58,install_reason[],2,FALSE))","v":""},null,{"$f":"IF(AQ58=\"\",\"\",VLOOKUP(AQ58,owner[],2,FALSE))","v":""},null,null,{"$f":"IF(AT58=\"\",\"\",VLOOKUP(AT58,likelihood[],2,FALSE))","v":""},null,{"$f":"IF(AV58=\"\",\"\",VLOOKUP(AV58,consequence[],2,FALSE))","v":""},null,{"$f":"IF(AX58=\"\",\"\",VLOOKUP(AX58,risk[],2,FALSE))","v":""},null,{"$f":"IF(AZ58=\"\",\"\",VLOOKUP(AZ58,rul_reset[],2,FALSE))","v":""},null,{"$f":"IF(BB58=\"\",\"\",VLOOKUP(BB58,use_default[],2,FALSE))","v":""},null,{"$f":"IF(BD58=\"\",\"\",VLOOKUP(BD58,condition[],2,FALSE))","v":""},null,null,{"$f":"IF(BG58=\"\",\"\",VLOOKUP(BG58,organisation[],2,FALSE))","v":""},null,null,null,null,null,{"$f":"IF(BM58=\"\",\"\",VLOOKUP(BM58,replace_reason[],2,FALSE))","v":""}]
[{"$error":"#VALUE!"},null,null,null,{"$f":"IF(D59=\"\", \"\", VLOOKUP(D59,gps_by[],2,FALSE))","v":""},null,null,null,null,{"$f":"IF(I59=\"\", \"\", VLOOKUP(I59,gps_method_id[],2,FALSE))","v":""},null,{"$f":"IF(K59=\"\",\"\",VLOOKUP(K59,types[],2,FALSE))","v":""},null,{"$f":"IF(M59=\"\",\"\",VLOOKUP(M59,class[],2,FALSE))","v":""},null,null,null,{"$f":"IF(Q59=\"\",\"\",VLOOKUP(Q59,indicating_direction[],2,FALSE))","v":""},null,null,null,{"$f":"IF(U59=\"\",\"\",VLOOKUP(U59,legend_material[],2,FALSE))","v":""},null,{"$f":"IF(W59=\"\",\"\",VLOOKUP(W59,legend_colour[],2,FALSE))","v":""},null,{"$f":"IF(Y59=\"\",\"\",VLOOKUP(Y59,background_material[],2,FALSE))","v":""},null,{"$f":"IF(AA59=\"\",\"\",VLOOKUP(AA59,background_colour[],2,FALSE))","v":""},null,null,{"$f":"IF(AD59=\"\",\"\",VLOOKUP(AD59,substrate_material[],2,FALSE))","v":""},null,{"$f":"IF(AF59=\"\",\"\",VLOOKUP(AF59,frame[],2,FALSE))","v":""},null,{"$f":"IF(AH59=\"\",\"\",VLOOKUP(AH59,side[],2,FALSE))","v":""},null,null,null,null,null,null,{"$f":"IF(AO59=\"\",\"\",VLOOKUP(AO59,install_reason[],2,FALSE))","v":""},null,{"$f":"IF(AQ59=\"\",\"\",VLOOKUP(AQ59,owner[],2,FALSE))","v":""},null,null,{"$f":"IF(AT59=\"\",\"\",VLOOKUP(AT59,likelihood[],2,FALSE))","v":""},null,{"$f":"IF(AV59=\"\",\"\",VLOOKUP(AV59,consequence[],2,FALSE))","v":""},null,{"$f":"IF(AX59=\"\",\"\",VLOOKUP(AX59,risk[],2,FALSE))","v":""},null,{"$f":"IF(AZ59=\"\",\"\",VLOOKUP(AZ59,rul_reset[],2,FALSE))","v":""},null,{"$f":"IF(BB59=\"\",\"\",VLOOKUP(BB59,use_default[],2,FALSE))","v":""},null,{"$f":"IF(BD59=\"\",\"\",VLOOKUP(BD59,condition[],2,FALSE))","v":""},null,null,{"$f":"IF(BG59=\"\",\"\",VLOOKUP(BG59,organisation[],2,FALSE))","v":""},null,null,null,null,null,{"$f":"IF(BM59=\"\",\"\",VLOOKUP(BM59,replace_reason[],2,FALSE))","v":""}]
[{"$error":"#VALUE!"},null,null,null,{"$f":"IF(D60=\"\", \"\", VLOOKUP(D60,gps_by[],2,FALSE))","v":""},null,null,null,null,{"$f":"IF(I60=\"\", \"\", VLOOKUP(I60,gps_method_id[],2,FALSE))","v":""},null,{"$f":"IF(K60=\"\",\"\",VLOOKUP(K60,types[],2,FALSE))","v":""},null,{"$f":"IF(M60=\"\",\"\",VLOOKUP(M60,class[],2,FALSE))","v":""},null,null,null,{"$f":"IF(Q60=\"\",\"\",VLOOKUP(Q60,indicating_direction[],2,FALSE))","v":""},null,null,null,{"$f":"IF(U60=\"\",\"\",VLOOKUP(U60,legend_material[],2,FALSE))","v":""},null,{"$f":"IF(W60=\"\",\"\",VLOOKUP(W60,legend_colour[],2,FALSE))","v":""},null,{"$f":"IF(Y60=\"\",\"\",VLOOKUP(Y60,background_material[],2,FALSE))","v":""},null,{"$f":"IF(AA60=\"\",\"\",VLOOKUP(AA60,background_colour[],2,FALSE))","v":""},null,null,{"$f":"IF(AD60=\"\",\"\",VLOOKUP(AD60,substrate_material[],2,FALSE))","v":""},null,{"$f":"IF(AF60=\"\",\"\",VLOOKUP(AF60,frame[],2,FALSE))","v":""},null,{"$f":"IF(AH60=\"\",\"\",VLOOKUP(AH60,side[],2,FALSE))","v":""},null,null,null,null,null,null,{"$f":"IF(AO60=\"\",\"\",VLOOKUP(AO60,install_reason[],2,FALSE))","v":""},null,{"$f":"IF(AQ60=\"\",\"\",VLOOKUP(AQ60,owner[],2,FALSE))","v":""},null,null,{"$f":"IF(AT60=\"\",\"\",VLOOKUP(AT60,likelihood[],2,FALSE))","v":""},null,{"$f":"IF(AV60=\"\",\"\",VLOOKUP(AV60,consequence[],2,FALSE))","v":""},null,{"$f":"IF(AX60=\"\",\"\",VLOOKUP(AX60,risk[],2,FALSE))","v":""},null,{"$f":"IF(AZ60=\"\",\"\",VLOOKUP(AZ60,rul_reset[],2,FALSE))","v":""},null,{"$f":"IF(BB60=\"\",\"\",VLOOKUP(BB60,use_default[],2,FALSE))","v":""},null,{"$f":"IF(BD60=\"\",\"\",VLOOKUP(BD60,condition[],2,FALSE))","v":""},null,null,{"$f":"IF(BG60=\"\",\"\",VLOOKUP(BG60,organisation[],2,FALSE))","v":""},null,null,null,null,null,{"$f":"IF(BM60=\"\",\"\",VLOOKUP(BM60,replace_reason[],2,FALSE))","v":""}]
[{"$error":"#VALUE!"},null,null,null,{"$f":"IF(D61=\"\", \"\", VLOOKUP(D61,gps_by[],2,FALSE))","v":""},null,null,null,null,{"$f":"IF(I61=\"\", \"\", VLOOKUP(I61,gps_method_id[],2,FALSE))","v":""},null,{"$f":"IF(K61=\"\",\"\",VLOOKUP(K61,types[],2,FALSE))","v":""},null,{"$f":"IF(M61=\"\",\"\",VLOOKUP(M61,class[],2,FALSE))","v":""},null,null,null,{"$f":"IF(Q61=\"\",\"\",VLOOKUP(Q61,indicating_direction[],2,FALSE))","v":""},null,null,null,{"$f":"IF(U61=\"\",\"\",VLOOKUP(U61,legend_material[],2,FALSE))","v":""},null,{"$f":"IF(W61=\"\",\"\",VLOOKUP(W61,legend_colour[],2,FALSE))","v":""},null,{"$f":"IF(Y61=\"\",\"\",VLOOKUP(Y61,background_material[],2,FALSE))","v":""},null,{"$f":"IF(AA61=\"\",\"\",VLOOKUP(AA61,background_colour[],2,FALSE))","v":""},null,null,{"$f":"IF(AD61=\"\",\"\",VLOOKUP(AD61,substrate_material[],2,FALSE))","v":""},null,{"$f":"IF(AF61=\"\",\"\",VLOOKUP(AF61,frame[],2,FALSE))","v":""},null,{"$f":"IF(AH61=\"\",\"\",VLOOKUP(AH61,side[],2,FALSE))","v":""},null,null,null,null,null,null,{"$f":"IF(AO61=\"\",\"\",VLOOKUP(AO61,install_reason[],2,FALSE))","v":""},null,{"$f":"IF(AQ61=\"\",\"\",VLOOKUP(AQ61,owner[],2,FALSE))","v":""},null,null,{"$f":"IF(AT61=\"\",\"\",VLOOKUP(AT61,likelihood[],2,FALSE))","v":""},null,{"$f":"IF(AV61=\"\",\"\",VLOOKUP(AV61,consequence[],2,FALSE))","v":""},null,{"$f":"IF(AX61=\"\",\"\",VLOOKUP(AX61,risk[],2,FALSE))","v":""},null,{"$f":"IF(AZ61=\"\",\"\",VLOOKUP(AZ61,rul_reset[],2,FALSE))","v":""},null,{"$f":"IF(BB61=\"\",\"\",VLOOKUP(BB61,use_default[],2,FALSE))","v":""},null,{"$f":"IF(BD61=\"\",\"\",VLOOKUP(BD61,condition[],2,FALSE))","v":""},null,null,{"$f":"IF(BG61=\"\",\"\",VLOOKUP(BG61,organisation[],2,FALSE))","v":""},null,null,null,null,null,{"$f":"IF(BM61=\"\",\"\",VLOOKUP(BM61,replace_reason[],2,FALSE))","v":""}]
[{"$error":"#VALUE!"},null,null,null,{"$f":"IF(D62=\"\", \"\", VLOOKUP(D62,gps_by[],2,FALSE))","v":""},null,null,null,null,{"$f":"IF(I62=\"\", \"\", VLOOKUP(I62,gps_method_id[],2,FALSE))","v":""},null,{"$f":"IF(K62=\"\",\"\",VLOOKUP(K62,types[],2,FALSE))","v":""},null,{"$f":"IF(M62=\"\",\"\",VLOOKUP(M62,class[],2,FALSE))","v":""},null,null,null,{"$f":"IF(Q62=\"\",\"\",VLOOKUP(Q62,indicating_direction[],2,FALSE))","v":""},null,null,null,{"$f":"IF(U62=\"\",\"\",VLOOKUP(U62,legend_material[],2,FALSE))","v":""},null,{"$f":"IF(W62=\"\",\"\",VLOOKUP(W62,legend_colour[],2,FALSE))","v":""},null,{"$f":"IF(Y62=\"\",\"\",VLOOKUP(Y62,background_material[],2,FALSE))","v":""},null,{"$f":"IF(AA62=\"\",\"\",VLOOKUP(AA62,background_colour[],2,FALSE))","v":""},null,null,{"$f":"IF(AD62=\"\",\"\",VLOOKUP(AD62,substrate_material[],2,FALSE))","v":""},null,{"$f":"IF(AF62=\"\",\"\",VLOOKUP(AF62,frame[],2,FALSE))","v":""},null,{"$f":"IF(AH62=\"\",\"\",VLOOKUP(AH62,side[],2,FALSE))","v":""},null,null,null,null,null,null,{"$f":"IF(AO62=\"\",\"\",VLOOKUP(AO62,install_reason[],2,FALSE))","v":""},null,{"$f":"IF(AQ62=\"\",\"\",VLOOKUP(AQ62,owner[],2,FALSE))","v":""},null,null,{"$f":"IF(AT62=\"\",\"\",VLOOKUP(AT62,likelihood[],2,FALSE))","v":""},null,{"$f":"IF(AV62=\"\",\"\",VLOOKUP(AV62,consequence[],2,FALSE))","v":""},null,{"$f":"IF(AX62=\"\",\"\",VLOOKUP(AX62,risk[],2,FALSE))","v":""},null,{"$f":"IF(AZ62=\"\",\"\",VLOOKUP(AZ62,rul_reset[],2,FALSE))","v":""},null,{"$f":"IF(BB62=\"\",\"\",VLOOKUP(BB62,use_default[],2,FALSE))","v":""},null,{"$f":"IF(BD62=\"\",\"\",VLOOKUP(BD62,condition[],2,FALSE))","v":""},null,null,{"$f":"IF(BG62=\"\",\"\",VLOOKUP(BG62,organisation[],2,FALSE))","v":""},null,null,null,null,null,{"$f":"IF(BM62=\"\",\"\",VLOOKUP(BM62,replace_reason[],2,FALSE))","v":""}]
[{"$error":"#VALUE!"},null,null,null,{"$f":"IF(D63=\"\", \"\", VLOOKUP(D63,gps_by[],2,FALSE))","v":""},null,null,null,null,{"$f":"IF(I63=\"\", \"\", VLOOKUP(I63,gps_method_id[],2,FALSE))","v":""},null,{"$f":"IF(K63=\"\",\"\",VLOOKUP(K63,types[],2,FALSE))","v":""},null,{"$f":"IF(M63=\"\",\"\",VLOOKUP(M63,class[],2,FALSE))","v":""},null,null,null,{"$f":"IF(Q63=\"\",\"\",VLOOKUP(Q63,indicating_direction[],2,FALSE))","v":""},null,null,null,{"$f":"IF(U63=\"\",\"\",VLOOKUP(U63,legend_material[],2,FALSE))","v":""},null,{"$f":"IF(W63=\"\",\"\",VLOOKUP(W63,legend_colour[],2,FALSE))","v":""},null,{"$f":"IF(Y63=\"\",\"\",VLOOKUP(Y63,background_material[],2,FALSE))","v":""},null,{"$f":"IF(AA63=\"\",\"\",VLOOKUP(AA63,background_colour[],2,FALSE))","v":""},null,null,{"$f":"IF(AD63=\"\",\"\",VLOOKUP(AD63,substrate_material[],2,FALSE))","v":""},null,{"$f":"IF(AF63=\"\",\"\",VLOOKUP(AF63,frame[],2,FALSE))","v":""},null,{"$f":"IF(AH63=\"\",\"\",VLOOKUP(AH63,side[],2,FALSE))","v":""},null,null,null,null,null,null,{"$f":"IF(AO63=\"\",\"\",VLOOKUP(AO63,install_reason[],2,FALSE))","v":""},null,{"$f":"IF(AQ63=\"\",\"\",VLOOKUP(AQ63,owner[],2,FALSE))","v":""},null,null,{"$f":"IF(AT63=\"\",\"\",VLOOKUP(AT63,likelihood[],2,FALSE))","v":""},null,{"$f":"IF(AV63=\"\",\"\",VLOOKUP(AV63,consequence[],2,FALSE))","v":""},null,{"$f":"IF(AX63=\"\",\"\",VLOOKUP(AX63,risk[],2,FALSE))","v":""},null,{"$f":"IF(AZ63=\"\",\"\",VLOOKUP(AZ63,rul_reset[],2,FALSE))","v":""},null,{"$f":"IF(BB63=\"\",\"\",VLOOKUP(BB63,use_default[],2,FALSE))","v":""},null,{"$f":"IF(BD63=\"\",\"\",VLOOKUP(BD63,condition[],2,FALSE))","v":""},null,null,{"$f":"IF(BG63=\"\",\"\",VLOOKUP(BG63,organisation[],2,FALSE))","v":""},null,null,null,null,null,{"$f":"IF(BM63=\"\",\"\",VLOOKUP(BM63,replace_reason[],2,FALSE))","v":""}]
[{"$error":"#VALUE!"},null,null,null,{"$f":"IF(D64=\"\", \"\", VLOOKUP(D64,gps_by[],2,FALSE))","v":""},null,null,null,null,{"$f":"IF(I64=\"\", \"\", VLOOKUP(I64,gps_method_id[],2,FALSE))","v":""},null,{"$f":"IF(K64=\"\",\"\",VLOOKUP(K64,types[],2,FALSE))","v":""},null,{"$f":"IF(M64=\"\",\"\",VLOOKUP(M64,class[],2,FALSE))","v":""},null,null,null,{"$f":"IF(Q64=\"\",\"\",VLOOKUP(Q64,indicating_direction[],2,FALSE))","v":""},null,null,null,{"$f":"IF(U64=\"\",\"\",VLOOKUP(U64,legend_material[],2,FALSE))","v":""},null,{"$f":"IF(W64=\"\",\"\",VLOOKUP(W64,legend_colour[],2,FALSE))","v":""},null,{"$f":"IF(Y64=\"\",\"\",VLOOKUP(Y64,background_material[],2,FALSE))","v":""},null,{"$f":"IF(AA64=\"\",\"\",VLOOKUP(AA64,background_colour[],2,FALSE))","v":""},null,null,{"$f":"IF(AD64=\"\",\"\",VLOOKUP(AD64,substrate_material[],2,FALSE))","v":""},null,{"$f":"IF(AF64=\"\",\"\",VLOOKUP(AF64,frame[],2,FALSE))","v":""},null,{"$f":"IF(AH64=\"\",\"\",VLOOKUP(AH64,side[],2,FALSE))","v":""},null,null,null,null,null,null,{"$f":"IF(AO64=\"\",\"\",VLOOKUP(AO64,install_reason[],2,FALSE))","v":""},null,{"$f":"IF(AQ64=\"\",\"\",VLOOKUP(AQ64,owner[],2,FALSE))","v":""},null,null,{"$f":"IF(AT64=\"\",\"\",VLOOKUP(AT64,likelihood[],2,FALSE))","v":""},null,{"$f":"IF(AV64=\"\",\"\",VLOOKUP(AV64,consequence[],2,FALSE))","v":""},null,{"$f":"IF(AX64=\"\",\"\",VLOOKUP(AX64,risk[],2,FALSE))","v":""},null,{"$f":"IF(AZ64=\"\",\"\",VLOOKUP(AZ64,rul_reset[],2,FALSE))","v":""},null,{"$f":"IF(BB64=\"\",\"\",VLOOKUP(BB64,use_default[],2,FALSE))","v":""},null,{"$f":"IF(BD64=\"\",\"\",VLOOKUP(BD64,condition[],2,FALSE))","v":""},null,null,{"$f":"IF(BG64=\"\",\"\",VLOOKUP(BG64,organisation[],2,FALSE))","v":""},null,null,null,null,null,{"$f":"IF(BM64=\"\",\"\",VLOOKUP(BM64,replace_reason[],2,FALSE))","v":""}]
[{"$error":"#VALUE!"},null,null,null,{"$f":"IF(D65=\"\", \"\", VLOOKUP(D65,gps_by[],2,FALSE))","v":""},null,null,null,null,{"$f":"IF(I65=\"\", \"\", VLOOKUP(I65,gps_method_id[],2,FALSE))","v":""},null,{"$f":"IF(K65=\"\",\"\",VLOOKUP(K65,types[],2,FALSE))","v":""},null,{"$f":"IF(M65=\"\",\"\",VLOOKUP(M65,class[],2,FALSE))","v":""},null,null,null,{"$f":"IF(Q65=\"\",\"\",VLOOKUP(Q65,indicating_direction[],2,FALSE))","v":""},null,null,null,{"$f":"IF(U65=\"\",\"\",VLOOKUP(U65,legend_material[],2,FALSE))","v":""},null,{"$f":"IF(W65=\"\",\"\",VLOOKUP(W65,legend_colour[],2,FALSE))","v":""},null,{"$f":"IF(Y65=\"\",\"\",VLOOKUP(Y65,background_material[],2,FALSE))","v":""},null,{"$f":"IF(AA65=\"\",\"\",VLOOKUP(AA65,background_colour[],2,FALSE))","v":""},null,null,{"$f":"IF(AD65=\"\",\"\",VLOOKUP(AD65,substrate_material[],2,FALSE))","v":""},null,{"$f":"IF(AF65=\"\",\"\",VLOOKUP(AF65,frame[],2,FALSE))","v":""},null,{"$f":"IF(AH65=\"\",\"\",VLOOKUP(AH65,side[],2,FALSE))","v":""},null,null,null,null,null,null,{"$f":"IF(AO65=\"\",\"\",VLOOKUP(AO65,install_reason[],2,FALSE))","v":""},null,{"$f":"IF(AQ65=\"\",\"\",VLOOKUP(AQ65,owner[],2,FALSE))","v":""},null,null,{"$f":"IF(AT65=\"\",\"\",VLOOKUP(AT65,likelihood[],2,FALSE))","v":""},null,{"$f":"IF(AV65=\"\",\"\",VLOOKUP(AV65,consequence[],2,FALSE))","v":""},null,{"$f":"IF(AX65=\"\",\"\",VLOOKUP(AX65,risk[],2,FALSE))","v":""},null,{"$f":"IF(AZ65=\"\",\"\",VLOOKUP(AZ65,rul_reset[],2,FALSE))","v":""},null,{"$f":"IF(BB65=\"\",\"\",VLOOKUP(BB65,use_default[],2,FALSE))","v":""},null,{"$f":"IF(BD65=\"\",\"\",VLOOKUP(BD65,condition[],2,FALSE))","v":""},null,null,{"$f":"IF(BG65=\"\",\"\",VLOOKUP(BG65,organisation[],2,FALSE))","v":""},null,null,null,null,null,{"$f":"IF(BM65=\"\",\"\",VLOOKUP(BM65,replace_reason[],2,FALSE))","v":""}]
[{"$error":"#VALUE!"},null,null,null,{"$f":"IF(D66=\"\", \"\", VLOOKUP(D66,gps_by[],2,FALSE))","v":""},null,null,null,null,{"$f":"IF(I66=\"\", \"\", VLOOKUP(I66,gps_method_id[],2,FALSE))","v":""},null,{"$f":"IF(K66=\"\",\"\",VLOOKUP(K66,types[],2,FALSE))","v":""},null,{"$f":"IF(M66=\"\",\"\",VLOOKUP(M66,class[],2,FALSE))","v":""},null,null,null,{"$f":"IF(Q66=\"\",\"\",VLOOKUP(Q66,indicating_direction[],2,FALSE))","v":""},null,null,null,{"$f":"IF(U66=\"\",\"\",VLOOKUP(U66,legend_material[],2,FALSE))","v":""},null,{"$f":"IF(W66=\"\",\"\",VLOOKUP(W66,legend_colour[],2,FALSE))","v":""},null,{"$f":"IF(Y66=\"\",\"\",VLOOKUP(Y66,background_material[],2,FALSE))","v":""},null,{"$f":"IF(AA66=\"\",\"\",VLOOKUP(AA66,background_colour[],2,FALSE))","v":""},null,null,{"$f":"IF(AD66=\"\",\"\",VLOOKUP(AD66,substrate_material[],2,FALSE))","v":""},null,{"$f":"IF(AF66=\"\",\"\",VLOOKUP(AF66,frame[],2,FALSE))","v":""},null,{"$f":"IF(AH66=\"\",\"\",VLOOKUP(AH66,side[],2,FALSE))","v":""},null,null,null,null,null,null,{"$f":"IF(AO66=\"\",\"\",VLOOKUP(AO66,install_reason[],2,FALSE))","v":""},null,{"$f":"IF(AQ66=\"\",\"\",VLOOKUP(AQ66,owner[],2,FALSE))","v":""},null,null,{"$f":"IF(AT66=\"\",\"\",VLOOKUP(AT66,likelihood[],2,FALSE))","v":""},null,{"$f":"IF(AV66=\"\",\"\",VLOOKUP(AV66,consequence[],2,FALSE))","v":""},null,{"$f":"IF(AX66=\"\",\"\",VLOOKUP(AX66,risk[],2,FALSE))","v":""},null,{"$f":"IF(AZ66=\"\",\"\",VLOOKUP(AZ66,rul_reset[],2,FALSE))","v":""},null,{"$f":"IF(BB66=\"\",\"\",VLOOKUP(BB66,use_default[],2,FALSE))","v":""},null,{"$f":"IF(BD66=\"\",\"\",VLOOKUP(BD66,condition[],2,FALSE))","v":""},null,null,{"$f":"IF(BG66=\"\",\"\",VLOOKUP(BG66,organisation[],2,FALSE))","v":""},null,null,null,null,null,{"$f":"IF(BM66=\"\",\"\",VLOOKUP(BM66,replace_reason[],2,FALSE))","v":""}]
[{"$error":"#VALUE!"},null,null,null,{"$f":"IF(D67=\"\", \"\", VLOOKUP(D67,gps_by[],2,FALSE))","v":""},null,null,null,null,{"$f":"IF(I67=\"\", \"\", VLOOKUP(I67,gps_method_id[],2,FALSE))","v":""},null,{"$f":"IF(K67=\"\",\"\",VLOOKUP(K67,types[],2,FALSE))","v":""},null,{"$f":"IF(M67=\"\",\"\",VLOOKUP(M67,class[],2,FALSE))","v":""},null,null,null,{"$f":"IF(Q67=\"\",\"\",VLOOKUP(Q67,indicating_direction[],2,FALSE))","v":""},null,null,null,{"$f":"IF(U67=\"\",\"\",VLOOKUP(U67,legend_material[],2,FALSE))","v":""},null,{"$f":"IF(W67=\"\",\"\",VLOOKUP(W67,legend_colour[],2,FALSE))","v":""},null,{"$f":"IF(Y67=\"\",\"\",VLOOKUP(Y67,background_material[],2,FALSE))","v":""},null,{"$f":"IF(AA67=\"\",\"\",VLOOKUP(AA67,background_colour[],2,FALSE))","v":""},null,null,{"$f":"IF(AD67=\"\",\"\",VLOOKUP(AD67,substrate_material[],2,FALSE))","v":""},null,{"$f":"IF(AF67=\"\",\"\",VLOOKUP(AF67,frame[],2,FALSE))","v":""},null,{"$f":"IF(AH67=\"\",\"\",VLOOKUP(AH67,side[],2,FALSE))","v":""},null,null,null,null,null,null,{"$f":"IF(AO67=\"\",\"\",VLOOKUP(AO67,install_reason[],2,FALSE))","v":""},null,{"$f":"IF(AQ67=\"\",\"\",VLOOKUP(AQ67,owner[],2,FALSE))","v":""},null,null,{"$f":"IF(AT67=\"\",\"\",VLOOKUP(AT67,likelihood[],2,FALSE))","v":""},null,{"$f":"IF(AV67=\"\",\"\",VLOOKUP(AV67,consequence[],2,FALSE))","v":""},null,{"$f":"IF(AX67=\"\",\"\",VLOOKUP(AX67,risk[],2,FALSE))","v":""},null,{"$f":"IF(AZ67=\"\",\"\",VLOOKUP(AZ67,rul_reset[],2,FALSE))","v":""},null,{"$f":"IF(BB67=\"\",\"\",VLOOKUP(BB67,use_default[],2,FALSE))","v":""},null,{"$f":"IF(BD67=\"\",\"\",VLOOKUP(BD67,condition[],2,FALSE))","v":""},null,null,{"$f":"IF(BG67=\"\",\"\",VLOOKUP(BG67,organisation[],2,FALSE))","v":""},null,null,null,null,null,{"$f":"IF(BM67=\"\",\"\",VLOOKUP(BM67,replace_reason[],2,FALSE))","v":""}]
[{"$error":"#VALUE!"},null,null,null,{"$f":"IF(D68=\"\", \"\", VLOOKUP(D68,gps_by[],2,FALSE))","v":""},null,null,null,null,{"$f":"IF(I68=\"\", \"\", VLOOKUP(I68,gps_method_id[],2,FALSE))","v":""},null,{"$f":"IF(K68=\"\",\"\",VLOOKUP(K68,types[],2,FALSE))","v":""},null,{"$f":"IF(M68=\"\",\"\",VLOOKUP(M68,class[],2,FALSE))","v":""},null,null,null,{"$f":"IF(Q68=\"\",\"\",VLOOKUP(Q68,indicating_direction[],2,FALSE))","v":""},null,null,null,{"$f":"IF(U68=\"\",\"\",VLOOKUP(U68,legend_material[],2,FALSE))","v":""},null,{"$f":"IF(W68=\"\",\"\",VLOOKUP(W68,legend_colour[],2,FALSE))","v":""},null,{"$f":"IF(Y68=\"\",\"\",VLOOKUP(Y68,background_material[],2,FALSE))","v":""},null,{"$f":"IF(AA68=\"\",\"\",VLOOKUP(AA68,background_colour[],2,FALSE))","v":""},null,null,{"$f":"IF(AD68=\"\",\"\",VLOOKUP(AD68,substrate_material[],2,FALSE))","v":""},null,{"$f":"IF(AF68=\"\",\"\",VLOOKUP(AF68,frame[],2,FALSE))","v":""},null,{"$f":"IF(AH68=\"\",\"\",VLOOKUP(AH68,side[],2,FALSE))","v":""},null,null,null,null,null,null,{"$f":"IF(AO68=\"\",\"\",VLOOKUP(AO68,install_reason[],2,FALSE))","v":""},null,{"$f":"IF(AQ68=\"\",\"\",VLOOKUP(AQ68,owner[],2,FALSE))","v":""},null,null,{"$f":"IF(AT68=\"\",\"\",VLOOKUP(AT68,likelihood[],2,FALSE))","v":""},null,{"$f":"IF(AV68=\"\",\"\",VLOOKUP(AV68,consequence[],2,FALSE))","v":""},null,{"$f":"IF(AX68=\"\",\"\",VLOOKUP(AX68,risk[],2,FALSE))","v":""},null,{"$f":"IF(AZ68=\"\",\"\",VLOOKUP(AZ68,rul_reset[],2,FALSE))","v":""},null,{"$f":"IF(BB68=\"\",\"\",VLOOKUP(BB68,use_default[],2,FALSE))","v":""},null,{"$f":"IF(BD68=\"\",\"\",VLOOKUP(BD68,condition[],2,FALSE))","v":""},null,null,{"$f":"IF(BG68=\"\",\"\",VLOOKUP(BG68,organisation[],2,FALSE))","v":""},null,null,null,null,null,{"$f":"IF(BM68=\"\",\"\",VLOOKUP(BM68,replace_reason[],2,FALSE))","v":""}]
[{"$f":"_xlfn.FILTERXML(_xlfn.WEBSERVICE(\"https://nds-beta.mobileroad.org/xy_sh?rp=\"&B69&\"/\"&C69&\"&xml=true\"),\"/lrms/id_road\")","v":{"$error":"#VALUE!"}},null,null,null,{"$f":"IF(D69=\"\", \"\", VLOOKUP(D69,gps_by[],2,FALSE))","v":""},null,null,null,null,{"$f":"IF(I69=\"\", \"\", VLOOKUP(I69,gps_method_id[],2,FALSE))","v":""},null,{"$f":"IF(K69=\"\",\"\",VLOOKUP(K69,types[],2,FALSE))","v":""},null,{"$f":"IF(M69=\"\",\"\",VLOOKUP(M69,class[],2,FALSE))","v":""},null,null,null,{"$f":"IF(Q69=\"\",\"\",VLOOKUP(Q69,indicating_direction[],2,FALSE))","v":""},null,null,null,{"$f":"IF(U69=\"\",\"\",VLOOKUP(U69,legend_material[],2,FALSE))","v":""},null,{"$f":"IF(W69=\"\",\"\",VLOOKUP(W69,legend_colour[],2,FALSE))","v":""},null,{"$f":"IF(Y69=\"\",\"\",VLOOKUP(Y69,background_material[],2,FALSE))","v":""},null,{"$f":"IF(AA69=\"\",\"\",VLOOKUP(AA69,background_colour[],2,FALSE))","v":""},null,null,{"$f":"IF(AD69=\"\",\"\",VLOOKUP(AD69,substrate_material[],2,FALSE))","v":""},null,{"$f":"IF(AF69=\"\",\"\",VLOOKUP(AF69,frame[],2,FALSE))","v":""},null,{"$f":"IF(AH69=\"\",\"\",VLOOKUP(AH69,side[],2,FALSE))","v":""},null,null,null,null,null,null,{"$f":"IF(AO69=\"\",\"\",VLOOKUP(AO69,install_reason[],2,FALSE))","v":""},null,{"$f":"IF(AQ69=\"\",\"\",VLOOKUP(AQ69,owner[],2,FALSE))","v":""},null,null,{"$f":"IF(AT69=\"\",\"\",VLOOKUP(AT69,likelihood[],2,FALSE))","v":""},null,{"$f":"IF(AV69=\"\",\"\",VLOOKUP(AV69,consequence[],2,FALSE))","v":""},null,{"$f":"IF(AX69=\"\",\"\",VLOOKUP(AX69,risk[],2,FALSE))","v":""},null,{"$f":"IF(AZ69=\"\",\"\",VLOOKUP(AZ69,rul_reset[],2,FALSE))","v":""},null,{"$f":"IF(BB69=\"\",\"\",VLOOKUP(BB69,use_default[],2,FALSE))","v":""},null,{"$f":"IF(BD69=\"\",\"\",VLOOKUP(BD69,condition[],2,FALSE))","v":""},null,null,{"$f":"IF(BG69=\"\",\"\",VLOOKUP(BG69,organisation[],2,FALSE))","v":""},null,null,null,null,null,{"$f":"IF(BM69=\"\",\"\",VLOOKUP(BM69,replace_reason[],2,FALSE))","v":""}]
[{"$error":"#VALUE!"},null,null,null,{"$f":"IF(D70=\"\", \"\", VLOOKUP(D70,gps_by[],2,FALSE))","v":""},null,null,null,null,{"$f":"IF(I70=\"\", \"\", VLOOKUP(I70,gps_method_id[],2,FALSE))","v":""},null,{"$f":"IF(K70=\"\",\"\",VLOOKUP(K70,types[],2,FALSE))","v":""},null,{"$f":"IF(M70=\"\",\"\",VLOOKUP(M70,class[],2,FALSE))","v":""},null,null,null,{"$f":"IF(Q70=\"\",\"\",VLOOKUP(Q70,indicating_direction[],2,FALSE))","v":""},null,null,null,{"$f":"IF(U70=\"\",\"\",VLOOKUP(U70,legend_material[],2,FALSE))","v":""},null,{"$f":"IF(W70=\"\",\"\",VLOOKUP(W70,legend_colour[],2,FALSE))","v":""},null,{"$f":"IF(Y70=\"\",\"\",VLOOKUP(Y70,background_material[],2,FALSE))","v":""},null,{"$f":"IF(AA70=\"\",\"\",VLOOKUP(AA70,background_colour[],2,FALSE))","v":""},null,null,{"$f":"IF(AD70=\"\",\"\",VLOOKUP(AD70,substrate_material[],2,FALSE))","v":""},null,{"$f":"IF(AF70=\"\",\"\",VLOOKUP(AF70,frame[],2,FALSE))","v":""},null,{"$f":"IF(AH70=\"\",\"\",VLOOKUP(AH70,side[],2,FALSE))","v":""},null,null,null,null,null,null,{"$f":"IF(AO70=\"\",\"\",VLOOKUP(AO70,install_reason[],2,FALSE))","v":""},null,{"$f":"IF(AQ70=\"\",\"\",VLOOKUP(AQ70,owner[],2,FALSE))","v":""},null,null,{"$f":"IF(AT70=\"\",\"\",VLOOKUP(AT70,likelihood[],2,FALSE))","v":""},null,{"$f":"IF(AV70=\"\",\"\",VLOOKUP(AV70,consequence[],2,FALSE))","v":""},null,{"$f":"IF(AX70=\"\",\"\",VLOOKUP(AX70,risk[],2,FALSE))","v":""},null,{"$f":"IF(AZ70=\"\",\"\",VLOOKUP(AZ70,rul_reset[],2,FALSE))","v":""},null,{"$f":"IF(BB70=\"\",\"\",VLOOKUP(BB70,use_default[],2,FALSE))","v":""},null,{"$f":"IF(BD70=\"\",\"\",VLOOKUP(BD70,condition[],2,FALSE))","v":""},null,null,{"$f":"IF(BG70=\"\",\"\",VLOOKUP(BG70,organisation[],2,FALSE))","v":""},null,null,null,null,null,{"$f":"IF(BM70=\"\",\"\",VLOOKUP(BM70,replace_reason[],2,FALSE))","v":""}]
[{"$error":"#VALUE!"},null,null,null,{"$f":"IF(D71=\"\", \"\", VLOOKUP(D71,gps_by[],2,FALSE))","v":""},null,null,null,null,{"$f":"IF(I71=\"\", \"\", VLOOKUP(I71,gps_method_id[],2,FALSE))","v":""},null,{"$f":"IF(K71=\"\",\"\",VLOOKUP(K71,types[],2,FALSE))","v":""},null,{"$f":"IF(M71=\"\",\"\",VLOOKUP(M71,class[],2,FALSE))","v":""},null,null,null,{"$f":"IF(Q71=\"\",\"\",VLOOKUP(Q71,indicating_direction[],2,FALSE))","v":""},null,null,null,{"$f":"IF(U71=\"\",\"\",VLOOKUP(U71,legend_material[],2,FALSE))","v":""},null,{"$f":"IF(W71=\"\",\"\",VLOOKUP(W71,legend_colour[],2,FALSE))","v":""},null,{"$f":"IF(Y71=\"\",\"\",VLOOKUP(Y71,background_material[],2,FALSE))","v":""},null,{"$f":"IF(AA71=\"\",\"\",VLOOKUP(AA71,background_colour[],2,FALSE))","v":""},null,null,{"$f":"IF(AD71=\"\",\"\",VLOOKUP(AD71,substrate_material[],2,FALSE))","v":""},null,{"$f":"IF(AF71=\"\",\"\",VLOOKUP(AF71,frame[],2,FALSE))","v":""},null,{"$f":"IF(AH71=\"\",\"\",VLOOKUP(AH71,side[],2,FALSE))","v":""},null,null,null,null,null,null,{"$f":"IF(AO71=\"\",\"\",VLOOKUP(AO71,install_reason[],2,FALSE))","v":""},null,{"$f":"IF(AQ71=\"\",\"\",VLOOKUP(AQ71,owner[],2,FALSE))","v":""},null,null,{"$f":"IF(AT71=\"\",\"\",VLOOKUP(AT71,likelihood[],2,FALSE))","v":""},null,{"$f":"IF(AV71=\"\",\"\",VLOOKUP(AV71,consequence[],2,FALSE))","v":""},null,{"$f":"IF(AX71=\"\",\"\",VLOOKUP(AX71,risk[],2,FALSE))","v":""},null,{"$f":"IF(AZ71=\"\",\"\",VLOOKUP(AZ71,rul_reset[],2,FALSE))","v":""},null,{"$f":"IF(BB71=\"\",\"\",VLOOKUP(BB71,use_default[],2,FALSE))","v":""},null,{"$f":"IF(BD71=\"\",\"\",VLOOKUP(BD71,condition[],2,FALSE))","v":""},null,null,{"$f":"IF(BG71=\"\",\"\",VLOOKUP(BG71,organisation[],2,FALSE))","v":""},null,null,null,null,null,{"$f":"IF(BM71=\"\",\"\",VLOOKUP(BM71,replace_reason[],2,FALSE))","v":""}]
[{"$error":"#VALUE!"},null,null,null,{"$f":"IF(D72=\"\", \"\", VLOOKUP(D72,gps_by[],2,FALSE))","v":""},null,null,null,null,{"$f":"IF(I72=\"\", \"\", VLOOKUP(I72,gps_method_id[],2,FALSE))","v":""},null,{"$f":"IF(K72=\"\",\"\",VLOOKUP(K72,types[],2,FALSE))","v":""},null,{"$f":"IF(M72=\"\",\"\",VLOOKUP(M72,class[],2,FALSE))","v":""},null,null,null,{"$f":"IF(Q72=\"\",\"\",VLOOKUP(Q72,indicating_direction[],2,FALSE))","v":""},null,null,null,{"$f":"IF(U72=\"\",\"\",VLOOKUP(U72,legend_material[],2,FALSE))","v":""},null,{"$f":"IF(W72=\"\",\"\",VLOOKUP(W72,legend_colour[],2,FALSE))","v":""},null,{"$f":"IF(Y72=\"\",\"\",VLOOKUP(Y72,background_material[],2,FALSE))","v":""},null,{"$f":"IF(AA72=\"\",\"\",VLOOKUP(AA72,background_colour[],2,FALSE))","v":""},null,null,{"$f":"IF(AD72=\"\",\"\",VLOOKUP(AD72,substrate_material[],2,FALSE))","v":""},null,{"$f":"IF(AF72=\"\",\"\",VLOOKUP(AF72,frame[],2,FALSE))","v":""},null,{"$f":"IF(AH72=\"\",\"\",VLOOKUP(AH72,side[],2,FALSE))","v":""},null,null,null,null,null,null,{"$f":"IF(AO72=\"\",\"\",VLOOKUP(AO72,install_reason[],2,FALSE))","v":""},null,{"$f":"IF(AQ72=\"\",\"\",VLOOKUP(AQ72,owner[],2,FALSE))","v":""},null,null,{"$f":"IF(AT72=\"\",\"\",VLOOKUP(AT72,likelihood[],2,FALSE))","v":""},null,{"$f":"IF(AV72=\"\",\"\",VLOOKUP(AV72,consequence[],2,FALSE))","v":""},null,{"$f":"IF(AX72=\"\",\"\",VLOOKUP(AX72,risk[],2,FALSE))","v":""},null,{"$f":"IF(AZ72=\"\",\"\",VLOOKUP(AZ72,rul_reset[],2,FALSE))","v":""},null,{"$f":"IF(BB72=\"\",\"\",VLOOKUP(BB72,use_default[],2,FALSE))","v":""},null,{"$f":"IF(BD72=\"\",\"\",VLOOKUP(BD72,condition[],2,FALSE))","v":""},null,null,{"$f":"IF(BG72=\"\",\"\",VLOOKUP(BG72,organisation[],2,FALSE))","v":""},null,null,null,null,null,{"$f":"IF(BM72=\"\",\"\",VLOOKUP(BM72,replace_reason[],2,FALSE))","v":""}]
[{"$error":"#VALUE!"},null,null,null,{"$f":"IF(D73=\"\", \"\", VLOOKUP(D73,gps_by[],2,FALSE))","v":""},null,null,null,null,{"$f":"IF(I73=\"\", \"\", VLOOKUP(I73,gps_method_id[],2,FALSE))","v":""},null,{"$f":"IF(K73=\"\",\"\",VLOOKUP(K73,types[],2,FALSE))","v":""},null,{"$f":"IF(M73=\"\",\"\",VLOOKUP(M73,class[],2,FALSE))","v":""},null,null,null,{"$f":"IF(Q73=\"\",\"\",VLOOKUP(Q73,indicating_direction[],2,FALSE))","v":""},null,null,null,{"$f":"IF(U73=\"\",\"\",VLOOKUP(U73,legend_material[],2,FALSE))","v":""},null,{"$f":"IF(W73=\"\",\"\",VLOOKUP(W73,legend_colour[],2,FALSE))","v":""},null,{"$f":"IF(Y73=\"\",\"\",VLOOKUP(Y73,background_material[],2,FALSE))","v":""},null,{"$f":"IF(AA73=\"\",\"\",VLOOKUP(AA73,background_colour[],2,FALSE))","v":""},null,null,{"$f":"IF(AD73=\"\",\"\",VLOOKUP(AD73,substrate_material[],2,FALSE))","v":""},null,{"$f":"IF(AF73=\"\",\"\",VLOOKUP(AF73,frame[],2,FALSE))","v":""},null,{"$f":"IF(AH73=\"\",\"\",VLOOKUP(AH73,side[],2,FALSE))","v":""},null,null,null,null,null,null,{"$f":"IF(AO73=\"\",\"\",VLOOKUP(AO73,install_reason[],2,FALSE))","v":""},null,{"$f":"IF(AQ73=\"\",\"\",VLOOKUP(AQ73,owner[],2,FALSE))","v":""},null,null,{"$f":"IF(AT73=\"\",\"\",VLOOKUP(AT73,likelihood[],2,FALSE))","v":""},null,{"$f":"IF(AV73=\"\",\"\",VLOOKUP(AV73,consequence[],2,FALSE))","v":""},null,{"$f":"IF(AX73=\"\",\"\",VLOOKUP(AX73,risk[],2,FALSE))","v":""},null,{"$f":"IF(AZ73=\"\",\"\",VLOOKUP(AZ73,rul_reset[],2,FALSE))","v":""},null,{"$f":"IF(BB73=\"\",\"\",VLOOKUP(BB73,use_default[],2,FALSE))","v":""},null,{"$f":"IF(BD73=\"\",\"\",VLOOKUP(BD73,condition[],2,FALSE))","v":""},null,null,{"$f":"IF(BG73=\"\",\"\",VLOOKUP(BG73,organisation[],2,FALSE))","v":""},null,null,null,null,null,{"$f":"IF(BM73=\"\",\"\",VLOOKUP(BM73,replace_reason[],2,FALSE))","v":""}]
[{"$error":"#VALUE!"},null,null,null,{"$f":"IF(D74=\"\", \"\", VLOOKUP(D74,gps_by[],2,FALSE))","v":""},null,null,null,null,{"$f":"IF(I74=\"\", \"\", VLOOKUP(I74,gps_method_id[],2,FALSE))","v":""},null,{"$f":"IF(K74=\"\",\"\",VLOOKUP(K74,types[],2,FALSE))","v":""},null,{"$f":"IF(M74=\"\",\"\",VLOOKUP(M74,class[],2,FALSE))","v":""},null,null,null,{"$f":"IF(Q74=\"\",\"\",VLOOKUP(Q74,indicating_direction[],2,FALSE))","v":""},null,null,null,{"$f":"IF(U74=\"\",\"\",VLOOKUP(U74,legend_material[],2,FALSE))","v":""},null,{"$f":"IF(W74=\"\",\"\",VLOOKUP(W74,legend_colour[],2,FALSE))","v":""},null,{"$f":"IF(Y74=\"\",\"\",VLOOKUP(Y74,background_material[],2,FALSE))","v":""},null,{"$f":"IF(AA74=\"\",\"\",VLOOKUP(AA74,background_colour[],2,FALSE))","v":""},null,null,{"$f":"IF(AD74=\"\",\"\",VLOOKUP(AD74,substrate_material[],2,FALSE))","v":""},null,{"$f":"IF(AF74=\"\",\"\",VLOOKUP(AF74,frame[],2,FALSE))","v":""},null,{"$f":"IF(AH74=\"\",\"\",VLOOKUP(AH74,side[],2,FALSE))","v":""},null,null,null,null,null,null,{"$f":"IF(AO74=\"\",\"\",VLOOKUP(AO74,install_reason[],2,FALSE))","v":""},null,{"$f":"IF(AQ74=\"\",\"\",VLOOKUP(AQ74,owner[],2,FALSE))","v":""},null,null,{"$f":"IF(AT74=\"\",\"\",VLOOKUP(AT74,likelihood[],2,FALSE))","v":""},null,{"$f":"IF(AV74=\"\",\"\",VLOOKUP(AV74,consequence[],2,FALSE))","v":""},null,{"$f":"IF(AX74=\"\",\"\",VLOOKUP(AX74,risk[],2,FALSE))","v":""},null,{"$f":"IF(AZ74=\"\",\"\",VLOOKUP(AZ74,rul_reset[],2,FALSE))","v":""},null,{"$f":"IF(BB74=\"\",\"\",VLOOKUP(BB74,use_default[],2,FALSE))","v":""},null,{"$f":"IF(BD74=\"\",\"\",VLOOKUP(BD74,condition[],2,FALSE))","v":""},null,null,{"$f":"IF(BG74=\"\",\"\",VLOOKUP(BG74,organisation[],2,FALSE))","v":""},null,null,null,null,null,{"$f":"IF(BM74=\"\",\"\",VLOOKUP(BM74,replace_reason[],2,FALSE))","v":""}]
[{"$error":"#VALUE!"},null,null,null,{"$f":"IF(D75=\"\", \"\", VLOOKUP(D75,gps_by[],2,FALSE))","v":""},null,null,null,null,{"$f":"IF(I75=\"\", \"\", VLOOKUP(I75,gps_method_id[],2,FALSE))","v":""},null,{"$f":"IF(K75=\"\",\"\",VLOOKUP(K75,types[],2,FALSE))","v":""},null,{"$f":"IF(M75=\"\",\"\",VLOOKUP(M75,class[],2,FALSE))","v":""},null,null,null,{"$f":"IF(Q75=\"\",\"\",VLOOKUP(Q75,indicating_direction[],2,FALSE))","v":""},null,null,null,{"$f":"IF(U75=\"\",\"\",VLOOKUP(U75,legend_material[],2,FALSE))","v":""},null,{"$f":"IF(W75=\"\",\"\",VLOOKUP(W75,legend_colour[],2,FALSE))","v":""},null,{"$f":"IF(Y75=\"\",\"\",VLOOKUP(Y75,background_material[],2,FALSE))","v":""},null,{"$f":"IF(AA75=\"\",\"\",VLOOKUP(AA75,background_colour[],2,FALSE))","v":""},null,null,{"$f":"IF(AD75=\"\",\"\",VLOOKUP(AD75,substrate_material[],2,FALSE))","v":""},null,{"$f":"IF(AF75=\"\",\"\",VLOOKUP(AF75,frame[],2,FALSE))","v":""},null,{"$f":"IF(AH75=\"\",\"\",VLOOKUP(AH75,side[],2,FALSE))","v":""},null,null,null,null,null,null,{"$f":"IF(AO75=\"\",\"\",VLOOKUP(AO75,install_reason[],2,FALSE))","v":""},null,{"$f":"IF(AQ75=\"\",\"\",VLOOKUP(AQ75,owner[],2,FALSE))","v":""},null,null,{"$f":"IF(AT75=\"\",\"\",VLOOKUP(AT75,likelihood[],2,FALSE))","v":""},null,{"$f":"IF(AV75=\"\",\"\",VLOOKUP(AV75,consequence[],2,FALSE))","v":""},null,{"$f":"IF(AX75=\"\",\"\",VLOOKUP(AX75,risk[],2,FALSE))","v":""},null,{"$f":"IF(AZ75=\"\",\"\",VLOOKUP(AZ75,rul_reset[],2,FALSE))","v":""},null,{"$f":"IF(BB75=\"\",\"\",VLOOKUP(BB75,use_default[],2,FALSE))","v":""},null,{"$f":"IF(BD75=\"\",\"\",VLOOKUP(BD75,condition[],2,FALSE))","v":""},null,null,{"$f":"IF(BG75=\"\",\"\",VLOOKUP(BG75,organisation[],2,FALSE))","v":""},null,null,null,null,null,{"$f":"IF(BM75=\"\",\"\",VLOOKUP(BM75,replace_reason[],2,FALSE))","v":""}]
[{"$error":"#VALUE!"},null,null,null,{"$f":"IF(D76=\"\", \"\", VLOOKUP(D76,gps_by[],2,FALSE))","v":""},null,null,null,null,{"$f":"IF(I76=\"\", \"\", VLOOKUP(I76,gps_method_id[],2,FALSE))","v":""},null,{"$f":"IF(K76=\"\",\"\",VLOOKUP(K76,types[],2,FALSE))","v":""},null,{"$f":"IF(M76=\"\",\"\",VLOOKUP(M76,class[],2,FALSE))","v":""},null,null,null,{"$f":"IF(Q76=\"\",\"\",VLOOKUP(Q76,indicating_direction[],2,FALSE))","v":""},null,null,null,{"$f":"IF(U76=\"\",\"\",VLOOKUP(U76,legend_material[],2,FALSE))","v":""},null,{"$f":"IF(W76=\"\",\"\",VLOOKUP(W76,legend_colour[],2,FALSE))","v":""},null,{"$f":"IF(Y76=\"\",\"\",VLOOKUP(Y76,background_material[],2,FALSE))","v":""},null,{"$f":"IF(AA76=\"\",\"\",VLOOKUP(AA76,background_colour[],2,FALSE))","v":""},null,null,{"$f":"IF(AD76=\"\",\"\",VLOOKUP(AD76,substrate_material[],2,FALSE))","v":""},null,{"$f":"IF(AF76=\"\",\"\",VLOOKUP(AF76,frame[],2,FALSE))","v":""},null,{"$f":"IF(AH76=\"\",\"\",VLOOKUP(AH76,side[],2,FALSE))","v":""},null,null,null,null,null,null,{"$f":"IF(AO76=\"\",\"\",VLOOKUP(AO76,install_reason[],2,FALSE))","v":""},null,{"$f":"IF(AQ76=\"\",\"\",VLOOKUP(AQ76,owner[],2,FALSE))","v":""},null,null,{"$f":"IF(AT76=\"\",\"\",VLOOKUP(AT76,likelihood[],2,FALSE))","v":""},null,{"$f":"IF(AV76=\"\",\"\",VLOOKUP(AV76,consequence[],2,FALSE))","v":""},null,{"$f":"IF(AX76=\"\",\"\",VLOOKUP(AX76,risk[],2,FALSE))","v":""},null,{"$f":"IF(AZ76=\"\",\"\",VLOOKUP(AZ76,rul_reset[],2,FALSE))","v":""},null,{"$f":"IF(BB76=\"\",\"\",VLOOKUP(BB76,use_default[],2,FALSE))","v":""},null,{"$f":"IF(BD76=\"\",\"\",VLOOKUP(BD76,condition[],2,FALSE))","v":""},null,null,{"$f":"IF(BG76=\"\",\"\",VLOOKUP(BG76,organisation[],2,FALSE))","v":""},null,null,null,null,null,{"$f":"IF(BM76=\"\",\"\",VLOOKUP(BM76,replace_reason[],2,FALSE))","v":""}]
[{"$error":"#VALUE!"},null,null,null,{"$f":"IF(D77=\"\", \"\", VLOOKUP(D77,gps_by[],2,FALSE))","v":""},null,null,null,null,{"$f":"IF(I77=\"\", \"\", VLOOKUP(I77,gps_method_id[],2,FALSE))","v":""},null,{"$f":"IF(K77=\"\",\"\",VLOOKUP(K77,types[],2,FALSE))","v":""},null,{"$f":"IF(M77=\"\",\"\",VLOOKUP(M77,class[],2,FALSE))","v":""},null,null,null,{"$f":"IF(Q77=\"\",\"\",VLOOKUP(Q77,indicating_direction[],2,FALSE))","v":""},null,null,null,{"$f":"IF(U77=\"\",\"\",VLOOKUP(U77,legend_material[],2,FALSE))","v":""},null,{"$f":"IF(W77=\"\",\"\",VLOOKUP(W77,legend_colour[],2,FALSE))","v":""},null,{"$f":"IF(Y77=\"\",\"\",VLOOKUP(Y77,background_material[],2,FALSE))","v":""},null,{"$f":"IF(AA77=\"\",\"\",VLOOKUP(AA77,background_colour[],2,FALSE))","v":""},null,null,{"$f":"IF(AD77=\"\",\"\",VLOOKUP(AD77,substrate_material[],2,FALSE))","v":""},null,{"$f":"IF(AF77=\"\",\"\",VLOOKUP(AF77,frame[],2,FALSE))","v":""},null,{"$f":"IF(AH77=\"\",\"\",VLOOKUP(AH77,side[],2,FALSE))","v":""},null,null,null,null,null,null,{"$f":"IF(AO77=\"\",\"\",VLOOKUP(AO77,install_reason[],2,FALSE))","v":""},null,{"$f":"IF(AQ77=\"\",\"\",VLOOKUP(AQ77,owner[],2,FALSE))","v":""},null,null,{"$f":"IF(AT77=\"\",\"\",VLOOKUP(AT77,likelihood[],2,FALSE))","v":""},null,{"$f":"IF(AV77=\"\",\"\",VLOOKUP(AV77,consequence[],2,FALSE))","v":""},null,{"$f":"IF(AX77=\"\",\"\",VLOOKUP(AX77,risk[],2,FALSE))","v":""},null,{"$f":"IF(AZ77=\"\",\"\",VLOOKUP(AZ77,rul_reset[],2,FALSE))","v":""},null,{"$f":"IF(BB77=\"\",\"\",VLOOKUP(BB77,use_default[],2,FALSE))","v":""},null,{"$f":"IF(BD77=\"\",\"\",VLOOKUP(BD77,condition[],2,FALSE))","v":""},null,null,{"$f":"IF(BG77=\"\",\"\",VLOOKUP(BG77,organisation[],2,FALSE))","v":""},null,null,null,null,null,{"$f":"IF(BM77=\"\",\"\",VLOOKUP(BM77,replace_reason[],2,FALSE))","v":""}]
[{"$error":"#VALUE!"},null,null,null,{"$f":"IF(D78=\"\", \"\", VLOOKUP(D78,gps_by[],2,FALSE))","v":""},null,null,null,null,{"$f":"IF(I78=\"\", \"\", VLOOKUP(I78,gps_method_id[],2,FALSE))","v":""},null,{"$f":"IF(K78=\"\",\"\",VLOOKUP(K78,types[],2,FALSE))","v":""},null,{"$f":"IF(M78=\"\",\"\",VLOOKUP(M78,class[],2,FALSE))","v":""},null,null,null,{"$f":"IF(Q78=\"\",\"\",VLOOKUP(Q78,indicating_direction[],2,FALSE))","v":""},null,null,null,{"$f":"IF(U78=\"\",\"\",VLOOKUP(U78,legend_material[],2,FALSE))","v":""},null,{"$f":"IF(W78=\"\",\"\",VLOOKUP(W78,legend_colour[],2,FALSE))","v":""},null,{"$f":"IF(Y78=\"\",\"\",VLOOKUP(Y78,background_material[],2,FALSE))","v":""},null,{"$f":"IF(AA78=\"\",\"\",VLOOKUP(AA78,background_colour[],2,FALSE))","v":""},null,null,{"$f":"IF(AD78=\"\",\"\",VLOOKUP(AD78,substrate_material[],2,FALSE))","v":""},null,{"$f":"IF(AF78=\"\",\"\",VLOOKUP(AF78,frame[],2,FALSE))","v":""},null,{"$f":"IF(AH78=\"\",\"\",VLOOKUP(AH78,side[],2,FALSE))","v":""},null,null,null,null,null,null,{"$f":"IF(AO78=\"\",\"\",VLOOKUP(AO78,install_reason[],2,FALSE))","v":""},null,{"$f":"IF(AQ78=\"\",\"\",VLOOKUP(AQ78,owner[],2,FALSE))","v":""},null,null,{"$f":"IF(AT78=\"\",\"\",VLOOKUP(AT78,likelihood[],2,FALSE))","v":""},null,{"$f":"IF(AV78=\"\",\"\",VLOOKUP(AV78,consequence[],2,FALSE))","v":""},null,{"$f":"IF(AX78=\"\",\"\",VLOOKUP(AX78,risk[],2,FALSE))","v":""},null,{"$f":"IF(AZ78=\"\",\"\",VLOOKUP(AZ78,rul_reset[],2,FALSE))","v":""},null,{"$f":"IF(BB78=\"\",\"\",VLOOKUP(BB78,use_default[],2,FALSE))","v":""},null,{"$f":"IF(BD78=\"\",\"\",VLOOKUP(BD78,condition[],2,FALSE))","v":""},null,null,{"$f":"IF(BG78=\"\",\"\",VLOOKUP(BG78,organisation[],2,FALSE))","v":""},null,null,null,null,null,{"$f":"IF(BM78=\"\",\"\",VLOOKUP(BM78,replace_reason[],2,FALSE))","v":""}]
[{"$error":"#VALUE!"},null,null,null,{"$f":"IF(D79=\"\", \"\", VLOOKUP(D79,gps_by[],2,FALSE))","v":""},null,null,null,null,{"$f":"IF(I79=\"\", \"\", VLOOKUP(I79,gps_method_id[],2,FALSE))","v":""},null,{"$f":"IF(K79=\"\",\"\",VLOOKUP(K79,types[],2,FALSE))","v":""},null,{"$f":"IF(M79=\"\",\"\",VLOOKUP(M79,class[],2,FALSE))","v":""},null,null,null,{"$f":"IF(Q79=\"\",\"\",VLOOKUP(Q79,indicating_direction[],2,FALSE))","v":""},null,null,null,{"$f":"IF(U79=\"\",\"\",VLOOKUP(U79,legend_material[],2,FALSE))","v":""},null,{"$f":"IF(W79=\"\",\"\",VLOOKUP(W79,legend_colour[],2,FALSE))","v":""},null,{"$f":"IF(Y79=\"\",\"\",VLOOKUP(Y79,background_material[],2,FALSE))","v":""},null,{"$f":"IF(AA79=\"\",\"\",VLOOKUP(AA79,background_colour[],2,FALSE))","v":""},null,null,{"$f":"IF(AD79=\"\",\"\",VLOOKUP(AD79,substrate_material[],2,FALSE))","v":""},null,{"$f":"IF(AF79=\"\",\"\",VLOOKUP(AF79,frame[],2,FALSE))","v":""},null,{"$f":"IF(AH79=\"\",\"\",VLOOKUP(AH79,side[],2,FALSE))","v":""},null,null,null,null,null,null,{"$f":"IF(AO79=\"\",\"\",VLOOKUP(AO79,install_reason[],2,FALSE))","v":""},null,{"$f":"IF(AQ79=\"\",\"\",VLOOKUP(AQ79,owner[],2,FALSE))","v":""},null,null,{"$f":"IF(AT79=\"\",\"\",VLOOKUP(AT79,likelihood[],2,FALSE))","v":""},null,{"$f":"IF(AV79=\"\",\"\",VLOOKUP(AV79,consequence[],2,FALSE))","v":""},null,{"$f":"IF(AX79=\"\",\"\",VLOOKUP(AX79,risk[],2,FALSE))","v":""},null,{"$f":"IF(AZ79=\"\",\"\",VLOOKUP(AZ79,rul_reset[],2,FALSE))","v":""},null,{"$f":"IF(BB79=\"\",\"\",VLOOKUP(BB79,use_default[],2,FALSE))","v":""},null,{"$f":"IF(BD79=\"\",\"\",VLOOKUP(BD79,condition[],2,FALSE))","v":""},null,null,{"$f":"IF(BG79=\"\",\"\",VLOOKUP(BG79,organisation[],2,FALSE))","v":""},null,null,null,null,null,{"$f":"IF(BM79=\"\",\"\",VLOOKUP(BM79,replace_reason[],2,FALSE))","v":""}]
[{"$error":"#VALUE!"},null,null,null,{"$f":"IF(D80=\"\", \"\", VLOOKUP(D80,gps_by[],2,FALSE))","v":""},null,null,null,null,{"$f":"IF(I80=\"\", \"\", VLOOKUP(I80,gps_method_id[],2,FALSE))","v":""},null,{"$f":"IF(K80=\"\",\"\",VLOOKUP(K80,types[],2,FALSE))","v":""},null,{"$f":"IF(M80=\"\",\"\",VLOOKUP(M80,class[],2,FALSE))","v":""},null,null,null,{"$f":"IF(Q80=\"\",\"\",VLOOKUP(Q80,indicating_direction[],2,FALSE))","v":""},null,null,null,{"$f":"IF(U80=\"\",\"\",VLOOKUP(U80,legend_material[],2,FALSE))","v":""},null,{"$f":"IF(W80=\"\",\"\",VLOOKUP(W80,legend_colour[],2,FALSE))","v":""},null,{"$f":"IF(Y80=\"\",\"\",VLOOKUP(Y80,background_material[],2,FALSE))","v":""},null,{"$f":"IF(AA80=\"\",\"\",VLOOKUP(AA80,background_colour[],2,FALSE))","v":""},null,null,{"$f":"IF(AD80=\"\",\"\",VLOOKUP(AD80,substrate_material[],2,FALSE))","v":""},null,{"$f":"IF(AF80=\"\",\"\",VLOOKUP(AF80,frame[],2,FALSE))","v":""},null,{"$f":"IF(AH80=\"\",\"\",VLOOKUP(AH80,side[],2,FALSE))","v":""},null,null,null,null,null,null,{"$f":"IF(AO80=\"\",\"\",VLOOKUP(AO80,install_reason[],2,FALSE))","v":""},null,{"$f":"IF(AQ80=\"\",\"\",VLOOKUP(AQ80,owner[],2,FALSE))","v":""},null,null,{"$f":"IF(AT80=\"\",\"\",VLOOKUP(AT80,likelihood[],2,FALSE))","v":""},null,{"$f":"IF(AV80=\"\",\"\",VLOOKUP(AV80,consequence[],2,FALSE))","v":""},null,{"$f":"IF(AX80=\"\",\"\",VLOOKUP(AX80,risk[],2,FALSE))","v":""},null,{"$f":"IF(AZ80=\"\",\"\",VLOOKUP(AZ80,rul_reset[],2,FALSE))","v":""},null,{"$f":"IF(BB80=\"\",\"\",VLOOKUP(BB80,use_default[],2,FALSE))","v":""},null,{"$f":"IF(BD80=\"\",\"\",VLOOKUP(BD80,condition[],2,FALSE))","v":""},null,null,{"$f":"IF(BG80=\"\",\"\",VLOOKUP(BG80,organisation[],2,FALSE))","v":""},null,null,null,null,null,{"$f":"IF(BM80=\"\",\"\",VLOOKUP(BM80,replace_reason[],2,FALSE))","v":""}]
[{"$error":"#VALUE!"},null,null,null,{"$f":"IF(D81=\"\", \"\", VLOOKUP(D81,gps_by[],2,FALSE))","v":""},null,null,null,null,{"$f":"IF(I81=\"\", \"\", VLOOKUP(I81,gps_method_id[],2,FALSE))","v":""},null,{"$f":"IF(K81=\"\",\"\",VLOOKUP(K81,types[],2,FALSE))","v":""},null,{"$f":"IF(M81=\"\",\"\",VLOOKUP(M81,class[],2,FALSE))","v":""},null,null,null,{"$f":"IF(Q81=\"\",\"\",VLOOKUP(Q81,indicating_direction[],2,FALSE))","v":""},null,null,null,{"$f":"IF(U81=\"\",\"\",VLOOKUP(U81,legend_material[],2,FALSE))","v":""},null,{"$f":"IF(W81=\"\",\"\",VLOOKUP(W81,legend_colour[],2,FALSE))","v":""},null,{"$f":"IF(Y81=\"\",\"\",VLOOKUP(Y81,background_material[],2,FALSE))","v":""},null,{"$f":"IF(AA81=\"\",\"\",VLOOKUP(AA81,background_colour[],2,FALSE))","v":""},null,null,{"$f":"IF(AD81=\"\",\"\",VLOOKUP(AD81,substrate_material[],2,FALSE))","v":""},null,{"$f":"IF(AF81=\"\",\"\",VLOOKUP(AF81,frame[],2,FALSE))","v":""},null,{"$f":"IF(AH81=\"\",\"\",VLOOKUP(AH81,side[],2,FALSE))","v":""},null,null,null,null,null,null,{"$f":"IF(AO81=\"\",\"\",VLOOKUP(AO81,install_reason[],2,FALSE))","v":""},null,{"$f":"IF(AQ81=\"\",\"\",VLOOKUP(AQ81,owner[],2,FALSE))","v":""},null,null,{"$f":"IF(AT81=\"\",\"\",VLOOKUP(AT81,likelihood[],2,FALSE))","v":""},null,{"$f":"IF(AV81=\"\",\"\",VLOOKUP(AV81,consequence[],2,FALSE))","v":""},null,{"$f":"IF(AX81=\"\",\"\",VLOOKUP(AX81,risk[],2,FALSE))","v":""},null,{"$f":"IF(AZ81=\"\",\"\",VLOOKUP(AZ81,rul_reset[],2,FALSE))","v":""},null,{"$f":"IF(BB81=\"\",\"\",VLOOKUP(BB81,use_default[],2,FALSE))","v":""},null,{"$f":"IF(BD81=\"\",\"\",VLOOKUP(BD81,condition[],2,FALSE))","v":""},null,null,{"$f":"IF(BG81=\"\",\"\",VLOOKUP(BG81,organisation[],2,FALSE))","v":""},null,null,null,null,null,{"$f":"IF(BM81=\"\",\"\",VLOOKUP(BM81,replace_reason[],2,FALSE))","v":""}]
[{"$error":"#VALUE!"},null,null,null,{"$f":"IF(D82=\"\", \"\", VLOOKUP(D82,gps_by[],2,FALSE))","v":""},null,null,null,null,{"$f":"IF(I82=\"\", \"\", VLOOKUP(I82,gps_method_id[],2,FALSE))","v":""},null,{"$f":"IF(K82=\"\",\"\",VLOOKUP(K82,types[],2,FALSE))","v":""},null,{"$f":"IF(M82=\"\",\"\",VLOOKUP(M82,class[],2,FALSE))","v":""},null,null,null,{"$f":"IF(Q82=\"\",\"\",VLOOKUP(Q82,indicating_direction[],2,FALSE))","v":""},null,null,null,{"$f":"IF(U82=\"\",\"\",VLOOKUP(U82,legend_material[],2,FALSE))","v":""},null,{"$f":"IF(W82=\"\",\"\",VLOOKUP(W82,legend_colour[],2,FALSE))","v":""},null,{"$f":"IF(Y82=\"\",\"\",VLOOKUP(Y82,background_material[],2,FALSE))","v":""},null,{"$f":"IF(AA82=\"\",\"\",VLOOKUP(AA82,background_colour[],2,FALSE))","v":""},null,null,{"$f":"IF(AD82=\"\",\"\",VLOOKUP(AD82,substrate_material[],2,FALSE))","v":""},null,{"$f":"IF(AF82=\"\",\"\",VLOOKUP(AF82,frame[],2,FALSE))","v":""},null,{"$f":"IF(AH82=\"\",\"\",VLOOKUP(AH82,side[],2,FALSE))","v":""},null,null,null,null,null,null,{"$f":"IF(AO82=\"\",\"\",VLOOKUP(AO82,install_reason[],2,FALSE))","v":""},null,{"$f":"IF(AQ82=\"\",\"\",VLOOKUP(AQ82,owner[],2,FALSE))","v":""},null,null,{"$f":"IF(AT82=\"\",\"\",VLOOKUP(AT82,likelihood[],2,FALSE))","v":""},null,{"$f":"IF(AV82=\"\",\"\",VLOOKUP(AV82,consequence[],2,FALSE))","v":""},null,{"$f":"IF(AX82=\"\",\"\",VLOOKUP(AX82,risk[],2,FALSE))","v":""},null,{"$f":"IF(AZ82=\"\",\"\",VLOOKUP(AZ82,rul_reset[],2,FALSE))","v":""},null,{"$f":"IF(BB82=\"\",\"\",VLOOKUP(BB82,use_default[],2,FALSE))","v":""},null,{"$f":"IF(BD82=\"\",\"\",VLOOKUP(BD82,condition[],2,FALSE))","v":""},null,null,{"$f":"IF(BG82=\"\",\"\",VLOOKUP(BG82,organisation[],2,FALSE))","v":""},null,null,null,null,null,{"$f":"IF(BM82=\"\",\"\",VLOOKUP(BM82,replace_reason[],2,FALSE))","v":""}]
[{"$error":"#VALUE!"},null,null,null,{"$f":"IF(D83=\"\", \"\", VLOOKUP(D83,gps_by[],2,FALSE))","v":""},null,null,null,null,{"$f":"IF(I83=\"\", \"\", VLOOKUP(I83,gps_method_id[],2,FALSE))","v":""},null,{"$f":"IF(K83=\"\",\"\",VLOOKUP(K83,types[],2,FALSE))","v":""},null,{"$f":"IF(M83=\"\",\"\",VLOOKUP(M83,class[],2,FALSE))","v":""},null,null,null,{"$f":"IF(Q83=\"\",\"\",VLOOKUP(Q83,indicating_direction[],2,FALSE))","v":""},null,null,null,{"$f":"IF(U83=\"\",\"\",VLOOKUP(U83,legend_material[],2,FALSE))","v":""},null,{"$f":"IF(W83=\"\",\"\",VLOOKUP(W83,legend_colour[],2,FALSE))","v":""},null,{"$f":"IF(Y83=\"\",\"\",VLOOKUP(Y83,background_material[],2,FALSE))","v":""},null,{"$f":"IF(AA83=\"\",\"\",VLOOKUP(AA83,background_colour[],2,FALSE))","v":""},null,null,{"$f":"IF(AD83=\"\",\"\",VLOOKUP(AD83,substrate_material[],2,FALSE))","v":""},null,{"$f":"IF(AF83=\"\",\"\",VLOOKUP(AF83,frame[],2,FALSE))","v":""},null,{"$f":"IF(AH83=\"\",\"\",VLOOKUP(AH83,side[],2,FALSE))","v":""},null,null,null,null,null,null,{"$f":"IF(AO83=\"\",\"\",VLOOKUP(AO83,install_reason[],2,FALSE))","v":""},null,{"$f":"IF(AQ83=\"\",\"\",VLOOKUP(AQ83,owner[],2,FALSE))","v":""},null,null,{"$f":"IF(AT83=\"\",\"\",VLOOKUP(AT83,likelihood[],2,FALSE))","v":""},null,{"$f":"IF(AV83=\"\",\"\",VLOOKUP(AV83,consequence[],2,FALSE))","v":""},null,{"$f":"IF(AX83=\"\",\"\",VLOOKUP(AX83,risk[],2,FALSE))","v":""},null,{"$f":"IF(AZ83=\"\",\"\",VLOOKUP(AZ83,rul_reset[],2,FALSE))","v":""},null,{"$f":"IF(BB83=\"\",\"\",VLOOKUP(BB83,use_default[],2,FALSE))","v":""},null,{"$f":"IF(BD83=\"\",\"\",VLOOKUP(BD83,condition[],2,FALSE))","v":""},null,null,{"$f":"IF(BG83=\"\",\"\",VLOOKUP(BG83,organisation[],2,FALSE))","v":""},null,null,null,null,null,{"$f":"IF(BM83=\"\",\"\",VLOOKUP(BM83,replace_reason[],2,FALSE))","v":""}]
[{"$error":"#VALUE!"},null,null,null,{"$f":"IF(D84=\"\", \"\", VLOOKUP(D84,gps_by[],2,FALSE))","v":""},null,null,null,null,{"$f":"IF(I84=\"\", \"\", VLOOKUP(I84,gps_method_id[],2,FALSE))","v":""},null,{"$f":"IF(K84=\"\",\"\",VLOOKUP(K84,types[],2,FALSE))","v":""},null,{"$f":"IF(M84=\"\",\"\",VLOOKUP(M84,class[],2,FALSE))","v":""},null,null,null,{"$f":"IF(Q84=\"\",\"\",VLOOKUP(Q84,indicating_direction[],2,FALSE))","v":""},null,null,null,{"$f":"IF(U84=\"\",\"\",VLOOKUP(U84,legend_material[],2,FALSE))","v":""},null,{"$f":"IF(W84=\"\",\"\",VLOOKUP(W84,legend_colour[],2,FALSE))","v":""},null,{"$f":"IF(Y84=\"\",\"\",VLOOKUP(Y84,background_material[],2,FALSE))","v":""},null,{"$f":"IF(AA84=\"\",\"\",VLOOKUP(AA84,background_colour[],2,FALSE))","v":""},null,null,{"$f":"IF(AD84=\"\",\"\",VLOOKUP(AD84,substrate_material[],2,FALSE))","v":""},null,{"$f":"IF(AF84=\"\",\"\",VLOOKUP(AF84,frame[],2,FALSE))","v":""},null,{"$f":"IF(AH84=\"\",\"\",VLOOKUP(AH84,side[],2,FALSE))","v":""},null,null,null,null,null,null,{"$f":"IF(AO84=\"\",\"\",VLOOKUP(AO84,install_reason[],2,FALSE))","v":""},null,{"$f":"IF(AQ84=\"\",\"\",VLOOKUP(AQ84,owner[],2,FALSE))","v":""},null,null,{"$f":"IF(AT84=\"\",\"\",VLOOKUP(AT84,likelihood[],2,FALSE))","v":""},null,{"$f":"IF(AV84=\"\",\"\",VLOOKUP(AV84,consequence[],2,FALSE))","v":""},null,{"$f":"IF(AX84=\"\",\"\",VLOOKUP(AX84,risk[],2,FALSE))","v":""},null,{"$f":"IF(AZ84=\"\",\"\",VLOOKUP(AZ84,rul_reset[],2,FALSE))","v":""},null,{"$f":"IF(BB84=\"\",\"\",VLOOKUP(BB84,use_default[],2,FALSE))","v":""},null,{"$f":"IF(BD84=\"\",\"\",VLOOKUP(BD84,condition[],2,FALSE))","v":""},null,null,{"$f":"IF(BG84=\"\",\"\",VLOOKUP(BG84,organisation[],2,FALSE))","v":""},null,null,null,null,null,{"$f":"IF(BM84=\"\",\"\",VLOOKUP(BM84,replace_reason[],2,FALSE))","v":""}]
[{"$error":"#VALUE!"},null,null,null,{"$f":"IF(D85=\"\", \"\", VLOOKUP(D85,gps_by[],2,FALSE))","v":""},null,null,null,null,{"$f":"IF(I85=\"\", \"\", VLOOKUP(I85,gps_method_id[],2,FALSE))","v":""},null,{"$f":"IF(K85=\"\",\"\",VLOOKUP(K85,types[],2,FALSE))","v":""},null,{"$f":"IF(M85=\"\",\"\",VLOOKUP(M85,class[],2,FALSE))","v":""},null,null,null,{"$f":"IF(Q85=\"\",\"\",VLOOKUP(Q85,indicating_direction[],2,FALSE))","v":""},null,null,null,{"$f":"IF(U85=\"\",\"\",VLOOKUP(U85,legend_material[],2,FALSE))","v":""},null,{"$f":"IF(W85=\"\",\"\",VLOOKUP(W85,legend_colour[],2,FALSE))","v":""},null,{"$f":"IF(Y85=\"\",\"\",VLOOKUP(Y85,background_material[],2,FALSE))","v":""},null,{"$f":"IF(AA85=\"\",\"\",VLOOKUP(AA85,background_colour[],2,FALSE))","v":""},null,null,{"$f":"IF(AD85=\"\",\"\",VLOOKUP(AD85,substrate_material[],2,FALSE))","v":""},null,{"$f":"IF(AF85=\"\",\"\",VLOOKUP(AF85,frame[],2,FALSE))","v":""},null,{"$f":"IF(AH85=\"\",\"\",VLOOKUP(AH85,side[],2,FALSE))","v":""},null,null,null,null,null,null,{"$f":"IF(AO85=\"\",\"\",VLOOKUP(AO85,install_reason[],2,FALSE))","v":""},null,{"$f":"IF(AQ85=\"\",\"\",VLOOKUP(AQ85,owner[],2,FALSE))","v":""},null,null,{"$f":"IF(AT85=\"\",\"\",VLOOKUP(AT85,likelihood[],2,FALSE))","v":""},null,{"$f":"IF(AV85=\"\",\"\",VLOOKUP(AV85,consequence[],2,FALSE))","v":""},null,{"$f":"IF(AX85=\"\",\"\",VLOOKUP(AX85,risk[],2,FALSE))","v":""},null,{"$f":"IF(AZ85=\"\",\"\",VLOOKUP(AZ85,rul_reset[],2,FALSE))","v":""},null,{"$f":"IF(BB85=\"\",\"\",VLOOKUP(BB85,use_default[],2,FALSE))","v":""},null,{"$f":"IF(BD85=\"\",\"\",VLOOKUP(BD85,condition[],2,FALSE))","v":""},null,null,{"$f":"IF(BG85=\"\",\"\",VLOOKUP(BG85,organisation[],2,FALSE))","v":""},null,null,null,null,null,{"$f":"IF(BM85=\"\",\"\",VLOOKUP(BM85,replace_reason[],2,FALSE))","v":""}]
[{"$error":"#VALUE!"},null,null,null,{"$f":"IF(D86=\"\", \"\", VLOOKUP(D86,gps_by[],2,FALSE))","v":""},null,null,null,null,{"$f":"IF(I86=\"\", \"\", VLOOKUP(I86,gps_method_id[],2,FALSE))","v":""},null,{"$f":"IF(K86=\"\",\"\",VLOOKUP(K86,types[],2,FALSE))","v":""},null,{"$f":"IF(M86=\"\",\"\",VLOOKUP(M86,class[],2,FALSE))","v":""},null,null,null,{"$f":"IF(Q86=\"\",\"\",VLOOKUP(Q86,indicating_direction[],2,FALSE))","v":""},null,null,null,{"$f":"IF(U86=\"\",\"\",VLOOKUP(U86,legend_material[],2,FALSE))","v":""},null,{"$f":"IF(W86=\"\",\"\",VLOOKUP(W86,legend_colour[],2,FALSE))","v":""},null,{"$f":"IF(Y86=\"\",\"\",VLOOKUP(Y86,background_material[],2,FALSE))","v":""},null,{"$f":"IF(AA86=\"\",\"\",VLOOKUP(AA86,background_colour[],2,FALSE))","v":""},null,null,{"$f":"IF(AD86=\"\",\"\",VLOOKUP(AD86,substrate_material[],2,FALSE))","v":""},null,{"$f":"IF(AF86=\"\",\"\",VLOOKUP(AF86,frame[],2,FALSE))","v":""},null,{"$f":"IF(AH86=\"\",\"\",VLOOKUP(AH86,side[],2,FALSE))","v":""},null,null,null,null,null,null,{"$f":"IF(AO86=\"\",\"\",VLOOKUP(AO86,install_reason[],2,FALSE))","v":""},null,{"$f":"IF(AQ86=\"\",\"\",VLOOKUP(AQ86,owner[],2,FALSE))","v":""},null,null,{"$f":"IF(AT86=\"\",\"\",VLOOKUP(AT86,likelihood[],2,FALSE))","v":""},null,{"$f":"IF(AV86=\"\",\"\",VLOOKUP(AV86,consequence[],2,FALSE))","v":""},null,{"$f":"IF(AX86=\"\",\"\",VLOOKUP(AX86,risk[],2,FALSE))","v":""},null,{"$f":"IF(AZ86=\"\",\"\",VLOOKUP(AZ86,rul_reset[],2,FALSE))","v":""},null,{"$f":"IF(BB86=\"\",\"\",VLOOKUP(BB86,use_default[],2,FALSE))","v":""},null,{"$f":"IF(BD86=\"\",\"\",VLOOKUP(BD86,condition[],2,FALSE))","v":""},null,null,{"$f":"IF(BG86=\"\",\"\",VLOOKUP(BG86,organisation[],2,FALSE))","v":""},null,null,null,null,null,{"$f":"IF(BM86=\"\",\"\",VLOOKUP(BM86,replace_reason[],2,FALSE))","v":""}]
[{"$error":"#VALUE!"},null,null,null,{"$f":"IF(D87=\"\", \"\", VLOOKUP(D87,gps_by[],2,FALSE))","v":""},null,null,null,null,{"$f":"IF(I87=\"\", \"\", VLOOKUP(I87,gps_method_id[],2,FALSE))","v":""},null,{"$f":"IF(K87=\"\",\"\",VLOOKUP(K87,types[],2,FALSE))","v":""},null,{"$f":"IF(M87=\"\",\"\",VLOOKUP(M87,class[],2,FALSE))","v":""},null,null,null,{"$f":"IF(Q87=\"\",\"\",VLOOKUP(Q87,indicating_direction[],2,FALSE))","v":""},null,null,null,{"$f":"IF(U87=\"\",\"\",VLOOKUP(U87,legend_material[],2,FALSE))","v":""},null,{"$f":"IF(W87=\"\",\"\",VLOOKUP(W87,legend_colour[],2,FALSE))","v":""},null,{"$f":"IF(Y87=\"\",\"\",VLOOKUP(Y87,background_material[],2,FALSE))","v":""},null,{"$f":"IF(AA87=\"\",\"\",VLOOKUP(AA87,background_colour[],2,FALSE))","v":""},null,null,{"$f":"IF(AD87=\"\",\"\",VLOOKUP(AD87,substrate_material[],2,FALSE))","v":""},null,{"$f":"IF(AF87=\"\",\"\",VLOOKUP(AF87,frame[],2,FALSE))","v":""},null,{"$f":"IF(AH87=\"\",\"\",VLOOKUP(AH87,side[],2,FALSE))","v":""},null,null,null,null,null,null,{"$f":"IF(AO87=\"\",\"\",VLOOKUP(AO87,install_reason[],2,FALSE))","v":""},null,{"$f":"IF(AQ87=\"\",\"\",VLOOKUP(AQ87,owner[],2,FALSE))","v":""},null,null,{"$f":"IF(AT87=\"\",\"\",VLOOKUP(AT87,likelihood[],2,FALSE))","v":""},null,{"$f":"IF(AV87=\"\",\"\",VLOOKUP(AV87,consequence[],2,FALSE))","v":""},null,{"$f":"IF(AX87=\"\",\"\",VLOOKUP(AX87,risk[],2,FALSE))","v":""},null,{"$f":"IF(AZ87=\"\",\"\",VLOOKUP(AZ87,rul_reset[],2,FALSE))","v":""},null,{"$f":"IF(BB87=\"\",\"\",VLOOKUP(BB87,use_default[],2,FALSE))","v":""},null,{"$f":"IF(BD87=\"\",\"\",VLOOKUP(BD87,condition[],2,FALSE))","v":""},null,null,{"$f":"IF(BG87=\"\",\"\",VLOOKUP(BG87,organisation[],2,FALSE))","v":""},null,null,null,null,null,{"$f":"IF(BM87=\"\",\"\",VLOOKUP(BM87,replace_reason[],2,FALSE))","v":""}]
[{"$error":"#VALUE!"},null,null,null,{"$f":"IF(D88=\"\", \"\", VLOOKUP(D88,gps_by[],2,FALSE))","v":""},null,null,null,null,{"$f":"IF(I88=\"\", \"\", VLOOKUP(I88,gps_method_id[],2,FALSE))","v":""},null,{"$f":"IF(K88=\"\",\"\",VLOOKUP(K88,types[],2,FALSE))","v":""},null,{"$f":"IF(M88=\"\",\"\",VLOOKUP(M88,class[],2,FALSE))","v":""},null,null,null,{"$f":"IF(Q88=\"\",\"\",VLOOKUP(Q88,indicating_direction[],2,FALSE))","v":""},null,null,null,{"$f":"IF(U88=\"\",\"\",VLOOKUP(U88,legend_material[],2,FALSE))","v":""},null,{"$f":"IF(W88=\"\",\"\",VLOOKUP(W88,legend_colour[],2,FALSE))","v":""},null,{"$f":"IF(Y88=\"\",\"\",VLOOKUP(Y88,background_material[],2,FALSE))","v":""},null,{"$f":"IF(AA88=\"\",\"\",VLOOKUP(AA88,background_colour[],2,FALSE))","v":""},null,null,{"$f":"IF(AD88=\"\",\"\",VLOOKUP(AD88,substrate_material[],2,FALSE))","v":""},null,{"$f":"IF(AF88=\"\",\"\",VLOOKUP(AF88,frame[],2,FALSE))","v":""},null,{"$f":"IF(AH88=\"\",\"\",VLOOKUP(AH88,side[],2,FALSE))","v":""},null,null,null,null,null,null,{"$f":"IF(AO88=\"\",\"\",VLOOKUP(AO88,install_reason[],2,FALSE))","v":""},null,{"$f":"IF(AQ88=\"\",\"\",VLOOKUP(AQ88,owner[],2,FALSE))","v":""},null,null,{"$f":"IF(AT88=\"\",\"\",VLOOKUP(AT88,likelihood[],2,FALSE))","v":""},null,{"$f":"IF(AV88=\"\",\"\",VLOOKUP(AV88,consequence[],2,FALSE))","v":""},null,{"$f":"IF(AX88=\"\",\"\",VLOOKUP(AX88,risk[],2,FALSE))","v":""},null,{"$f":"IF(AZ88=\"\",\"\",VLOOKUP(AZ88,rul_reset[],2,FALSE))","v":""},null,{"$f":"IF(BB88=\"\",\"\",VLOOKUP(BB88,use_default[],2,FALSE))","v":""},null,{"$f":"IF(BD88=\"\",\"\",VLOOKUP(BD88,condition[],2,FALSE))","v":""},null,null,{"$f":"IF(BG88=\"\",\"\",VLOOKUP(BG88,organisation[],2,FALSE))","v":""},null,null,null,null,null,{"$f":"IF(BM88=\"\",\"\",VLOOKUP(BM88,replace_reason[],2,FALSE))","v":""}]
[{"$error":"#VALUE!"},null,null,null,{"$f":"IF(D89=\"\", \"\", VLOOKUP(D89,gps_by[],2,FALSE))","v":""},null,null,null,null,{"$f":"IF(I89=\"\", \"\", VLOOKUP(I89,gps_method_id[],2,FALSE))","v":""},null,{"$f":"IF(K89=\"\",\"\",VLOOKUP(K89,types[],2,FALSE))","v":""},null,{"$f":"IF(M89=\"\",\"\",VLOOKUP(M89,class[],2,FALSE))","v":""},null,null,null,{"$f":"IF(Q89=\"\",\"\",VLOOKUP(Q89,indicating_direction[],2,FALSE))","v":""},null,null,null,{"$f":"IF(U89=\"\",\"\",VLOOKUP(U89,legend_material[],2,FALSE))","v":""},null,{"$f":"IF(W89=\"\",\"\",VLOOKUP(W89,legend_colour[],2,FALSE))","v":""},null,{"$f":"IF(Y89=\"\",\"\",VLOOKUP(Y89,background_material[],2,FALSE))","v":""},null,{"$f":"IF(AA89=\"\",\"\",VLOOKUP(AA89,background_colour[],2,FALSE))","v":""},null,null,{"$f":"IF(AD89=\"\",\"\",VLOOKUP(AD89,substrate_material[],2,FALSE))","v":""},null,{"$f":"IF(AF89=\"\",\"\",VLOOKUP(AF89,frame[],2,FALSE))","v":""},null,{"$f":"IF(AH89=\"\",\"\",VLOOKUP(AH89,side[],2,FALSE))","v":""},null,null,null,null,null,null,{"$f":"IF(AO89=\"\",\"\",VLOOKUP(AO89,install_reason[],2,FALSE))","v":""},null,{"$f":"IF(AQ89=\"\",\"\",VLOOKUP(AQ89,owner[],2,FALSE))","v":""},null,null,{"$f":"IF(AT89=\"\",\"\",VLOOKUP(AT89,likelihood[],2,FALSE))","v":""},null,{"$f":"IF(AV89=\"\",\"\",VLOOKUP(AV89,consequence[],2,FALSE))","v":""},null,{"$f":"IF(AX89=\"\",\"\",VLOOKUP(AX89,risk[],2,FALSE))","v":""},null,{"$f":"IF(AZ89=\"\",\"\",VLOOKUP(AZ89,rul_reset[],2,FALSE))","v":""},null,{"$f":"IF(BB89=\"\",\"\",VLOOKUP(BB89,use_default[],2,FALSE))","v":""},null,{"$f":"IF(BD89=\"\",\"\",VLOOKUP(BD89,condition[],2,FALSE))","v":""},null,null,{"$f":"IF(BG89=\"\",\"\",VLOOKUP(BG89,organisation[],2,FALSE))","v":""},null,null,null,null,null,{"$f":"IF(BM89=\"\",\"\",VLOOKUP(BM89,replace_reason[],2,FALSE))","v":""}]
[{"$error":"#VALUE!"},null,null,null,{"$f":"IF(D90=\"\", \"\", VLOOKUP(D90,gps_by[],2,FALSE))","v":""},null,null,null,null,{"$f":"IF(I90=\"\", \"\", VLOOKUP(I90,gps_method_id[],2,FALSE))","v":""},null,{"$f":"IF(K90=\"\",\"\",VLOOKUP(K90,types[],2,FALSE))","v":""},null,{"$f":"IF(M90=\"\",\"\",VLOOKUP(M90,class[],2,FALSE))","v":""},null,null,null,{"$f":"IF(Q90=\"\",\"\",VLOOKUP(Q90,indicating_direction[],2,FALSE))","v":""},null,null,null,{"$f":"IF(U90=\"\",\"\",VLOOKUP(U90,legend_material[],2,FALSE))","v":""},null,{"$f":"IF(W90=\"\",\"\",VLOOKUP(W90,legend_colour[],2,FALSE))","v":""},null,{"$f":"IF(Y90=\"\",\"\",VLOOKUP(Y90,background_material[],2,FALSE))","v":""},null,{"$f":"IF(AA90=\"\",\"\",VLOOKUP(AA90,background_colour[],2,FALSE))","v":""},null,null,{"$f":"IF(AD90=\"\",\"\",VLOOKUP(AD90,substrate_material[],2,FALSE))","v":""},null,{"$f":"IF(AF90=\"\",\"\",VLOOKUP(AF90,frame[],2,FALSE))","v":""},null,{"$f":"IF(AH90=\"\",\"\",VLOOKUP(AH90,side[],2,FALSE))","v":""},null,null,null,null,null,null,{"$f":"IF(AO90=\"\",\"\",VLOOKUP(AO90,install_reason[],2,FALSE))","v":""},null,{"$f":"IF(AQ90=\"\",\"\",VLOOKUP(AQ90,owner[],2,FALSE))","v":""},null,null,{"$f":"IF(AT90=\"\",\"\",VLOOKUP(AT90,likelihood[],2,FALSE))","v":""},null,{"$f":"IF(AV90=\"\",\"\",VLOOKUP(AV90,consequence[],2,FALSE))","v":""},null,{"$f":"IF(AX90=\"\",\"\",VLOOKUP(AX90,risk[],2,FALSE))","v":""},null,{"$f":"IF(AZ90=\"\",\"\",VLOOKUP(AZ90,rul_reset[],2,FALSE))","v":""},null,{"$f":"IF(BB90=\"\",\"\",VLOOKUP(BB90,use_default[],2,FALSE))","v":""},null,{"$f":"IF(BD90=\"\",\"\",VLOOKUP(BD90,condition[],2,FALSE))","v":""},null,null,{"$f":"IF(BG90=\"\",\"\",VLOOKUP(BG90,organisation[],2,FALSE))","v":""},null,null,null,null,null,{"$f":"IF(BM90=\"\",\"\",VLOOKUP(BM90,replace_reason[],2,FALSE))","v":""}]
[{"$error":"#VALUE!"},null,null,null,{"$f":"IF(D91=\"\", \"\", VLOOKUP(D91,gps_by[],2,FALSE))","v":""},null,null,null,null,{"$f":"IF(I91=\"\", \"\", VLOOKUP(I91,gps_method_id[],2,FALSE))","v":""},null,{"$f":"IF(K91=\"\",\"\",VLOOKUP(K91,types[],2,FALSE))","v":""},null,{"$f":"IF(M91=\"\",\"\",VLOOKUP(M91,class[],2,FALSE))","v":""},null,null,null,{"$f":"IF(Q91=\"\",\"\",VLOOKUP(Q91,indicating_direction[],2,FALSE))","v":""},null,null,null,{"$f":"IF(U91=\"\",\"\",VLOOKUP(U91,legend_material[],2,FALSE))","v":""},null,{"$f":"IF(W91=\"\",\"\",VLOOKUP(W91,legend_colour[],2,FALSE))","v":""},null,{"$f":"IF(Y91=\"\",\"\",VLOOKUP(Y91,background_material[],2,FALSE))","v":""},null,{"$f":"IF(AA91=\"\",\"\",VLOOKUP(AA91,background_colour[],2,FALSE))","v":""},null,null,{"$f":"IF(AD91=\"\",\"\",VLOOKUP(AD91,substrate_material[],2,FALSE))","v":""},null,{"$f":"IF(AF91=\"\",\"\",VLOOKUP(AF91,frame[],2,FALSE))","v":""},null,{"$f":"IF(AH91=\"\",\"\",VLOOKUP(AH91,side[],2,FALSE))","v":""},null,null,null,null,null,null,{"$f":"IF(AO91=\"\",\"\",VLOOKUP(AO91,install_reason[],2,FALSE))","v":""},null,{"$f":"IF(AQ91=\"\",\"\",VLOOKUP(AQ91,owner[],2,FALSE))","v":""},null,null,{"$f":"IF(AT91=\"\",\"\",VLOOKUP(AT91,likelihood[],2,FALSE))","v":""},null,{"$f":"IF(AV91=\"\",\"\",VLOOKUP(AV91,consequence[],2,FALSE))","v":""},null,{"$f":"IF(AX91=\"\",\"\",VLOOKUP(AX91,risk[],2,FALSE))","v":""},null,{"$f":"IF(AZ91=\"\",\"\",VLOOKUP(AZ91,rul_reset[],2,FALSE))","v":""},null,{"$f":"IF(BB91=\"\",\"\",VLOOKUP(BB91,use_default[],2,FALSE))","v":""},null,{"$f":"IF(BD91=\"\",\"\",VLOOKUP(BD91,condition[],2,FALSE))","v":""},null,null,{"$f":"IF(BG91=\"\",\"\",VLOOKUP(BG91,organisation[],2,FALSE))","v":""},null,null,null,null,null,{"$f":"IF(BM91=\"\",\"\",VLOOKUP(BM91,replace_reason[],2,FALSE))","v":""}]
[{"$error":"#VALUE!"},null,null,null,{"$f":"IF(D92=\"\", \"\", VLOOKUP(D92,gps_by[],2,FALSE))","v":""},null,null,null,null,{"$f":"IF(I92=\"\", \"\", VLOOKUP(I92,gps_method_id[],2,FALSE))","v":""},null,{"$f":"IF(K92=\"\",\"\",VLOOKUP(K92,types[],2,FALSE))","v":""},null,{"$f":"IF(M92=\"\",\"\",VLOOKUP(M92,class[],2,FALSE))","v":""},null,null,null,{"$f":"IF(Q92=\"\",\"\",VLOOKUP(Q92,indicating_direction[],2,FALSE))","v":""},null,null,null,{"$f":"IF(U92=\"\",\"\",VLOOKUP(U92,legend_material[],2,FALSE))","v":""},null,{"$f":"IF(W92=\"\",\"\",VLOOKUP(W92,legend_colour[],2,FALSE))","v":""},null,{"$f":"IF(Y92=\"\",\"\",VLOOKUP(Y92,background_material[],2,FALSE))","v":""},null,{"$f":"IF(AA92=\"\",\"\",VLOOKUP(AA92,background_colour[],2,FALSE))","v":""},null,null,{"$f":"IF(AD92=\"\",\"\",VLOOKUP(AD92,substrate_material[],2,FALSE))","v":""},null,{"$f":"IF(AF92=\"\",\"\",VLOOKUP(AF92,frame[],2,FALSE))","v":""},null,{"$f":"IF(AH92=\"\",\"\",VLOOKUP(AH92,side[],2,FALSE))","v":""},null,null,null,null,null,null,{"$f":"IF(AO92=\"\",\"\",VLOOKUP(AO92,install_reason[],2,FALSE))","v":""},null,{"$f":"IF(AQ92=\"\",\"\",VLOOKUP(AQ92,owner[],2,FALSE))","v":""},null,null,{"$f":"IF(AT92=\"\",\"\",VLOOKUP(AT92,likelihood[],2,FALSE))","v":""},null,{"$f":"IF(AV92=\"\",\"\",VLOOKUP(AV92,consequence[],2,FALSE))","v":""},null,{"$f":"IF(AX92=\"\",\"\",VLOOKUP(AX92,risk[],2,FALSE))","v":""},null,{"$f":"IF(AZ92=\"\",\"\",VLOOKUP(AZ92,rul_reset[],2,FALSE))","v":""},null,{"$f":"IF(BB92=\"\",\"\",VLOOKUP(BB92,use_default[],2,FALSE))","v":""},null,{"$f":"IF(BD92=\"\",\"\",VLOOKUP(BD92,condition[],2,FALSE))","v":""},null,null,{"$f":"IF(BG92=\"\",\"\",VLOOKUP(BG92,organisation[],2,FALSE))","v":""},null,null,null,null,null,{"$f":"IF(BM92=\"\",\"\",VLOOKUP(BM92,replace_reason[],2,FALSE))","v":""}]
[{"$error":"#VALUE!"},null,null,null,{"$f":"IF(D93=\"\", \"\", VLOOKUP(D93,gps_by[],2,FALSE))","v":""},null,null,null,null,{"$f":"IF(I93=\"\", \"\", VLOOKUP(I93,gps_method_id[],2,FALSE))","v":""},null,{"$f":"IF(K93=\"\",\"\",VLOOKUP(K93,types[],2,FALSE))","v":""},null,{"$f":"IF(M93=\"\",\"\",VLOOKUP(M93,class[],2,FALSE))","v":""},null,null,null,{"$f":"IF(Q93=\"\",\"\",VLOOKUP(Q93,indicating_direction[],2,FALSE))","v":""},null,null,null,{"$f":"IF(U93=\"\",\"\",VLOOKUP(U93,legend_material[],2,FALSE))","v":""},null,{"$f":"IF(W93=\"\",\"\",VLOOKUP(W93,legend_colour[],2,FALSE))","v":""},null,{"$f":"IF(Y93=\"\",\"\",VLOOKUP(Y93,background_material[],2,FALSE))","v":""},null,{"$f":"IF(AA93=\"\",\"\",VLOOKUP(AA93,background_colour[],2,FALSE))","v":""},null,null,{"$f":"IF(AD93=\"\",\"\",VLOOKUP(AD93,substrate_material[],2,FALSE))","v":""},null,{"$f":"IF(AF93=\"\",\"\",VLOOKUP(AF93,frame[],2,FALSE))","v":""},null,{"$f":"IF(AH93=\"\",\"\",VLOOKUP(AH93,side[],2,FALSE))","v":""},null,null,null,null,null,null,{"$f":"IF(AO93=\"\",\"\",VLOOKUP(AO93,install_reason[],2,FALSE))","v":""},null,{"$f":"IF(AQ93=\"\",\"\",VLOOKUP(AQ93,owner[],2,FALSE))","v":""},null,null,{"$f":"IF(AT93=\"\",\"\",VLOOKUP(AT93,likelihood[],2,FALSE))","v":""},null,{"$f":"IF(AV93=\"\",\"\",VLOOKUP(AV93,consequence[],2,FALSE))","v":""},null,{"$f":"IF(AX93=\"\",\"\",VLOOKUP(AX93,risk[],2,FALSE))","v":""},null,{"$f":"IF(AZ93=\"\",\"\",VLOOKUP(AZ93,rul_reset[],2,FALSE))","v":""},null,{"$f":"IF(BB93=\"\",\"\",VLOOKUP(BB93,use_default[],2,FALSE))","v":""},null,{"$f":"IF(BD93=\"\",\"\",VLOOKUP(BD93,condition[],2,FALSE))","v":""},null,null,{"$f":"IF(BG93=\"\",\"\",VLOOKUP(BG93,organisation[],2,FALSE))","v":""},null,null,null,null,null,{"$f":"IF(BM93=\"\",\"\",VLOOKUP(BM93,replace_reason[],2,FALSE))","v":""}]
[{"$error":"#VALUE!"},null,null,null,{"$f":"IF(D94=\"\", \"\", VLOOKUP(D94,gps_by[],2,FALSE))","v":""},null,null,null,null,{"$f":"IF(I94=\"\", \"\", VLOOKUP(I94,gps_method_id[],2,FALSE))","v":""},null,{"$f":"IF(K94=\"\",\"\",VLOOKUP(K94,types[],2,FALSE))","v":""},null,{"$f":"IF(M94=\"\",\"\",VLOOKUP(M94,class[],2,FALSE))","v":""},null,null,null,{"$f":"IF(Q94=\"\",\"\",VLOOKUP(Q94,indicating_direction[],2,FALSE))","v":""},null,null,null,{"$f":"IF(U94=\"\",\"\",VLOOKUP(U94,legend_material[],2,FALSE))","v":""},null,{"$f":"IF(W94=\"\",\"\",VLOOKUP(W94,legend_colour[],2,FALSE))","v":""},null,{"$f":"IF(Y94=\"\",\"\",VLOOKUP(Y94,background_material[],2,FALSE))","v":""},null,{"$f":"IF(AA94=\"\",\"\",VLOOKUP(AA94,background_colour[],2,FALSE))","v":""},null,null,{"$f":"IF(AD94=\"\",\"\",VLOOKUP(AD94,substrate_material[],2,FALSE))","v":""},null,{"$f":"IF(AF94=\"\",\"\",VLOOKUP(AF94,frame[],2,FALSE))","v":""},null,{"$f":"IF(AH94=\"\",\"\",VLOOKUP(AH94,side[],2,FALSE))","v":""},null,null,null,null,null,null,{"$f":"IF(AO94=\"\",\"\",VLOOKUP(AO94,install_reason[],2,FALSE))","v":""},null,{"$f":"IF(AQ94=\"\",\"\",VLOOKUP(AQ94,owner[],2,FALSE))","v":""},null,null,{"$f":"IF(AT94=\"\",\"\",VLOOKUP(AT94,likelihood[],2,FALSE))","v":""},null,{"$f":"IF(AV94=\"\",\"\",VLOOKUP(AV94,consequence[],2,FALSE))","v":""},null,{"$f":"IF(AX94=\"\",\"\",VLOOKUP(AX94,risk[],2,FALSE))","v":""},null,{"$f":"IF(AZ94=\"\",\"\",VLOOKUP(AZ94,rul_reset[],2,FALSE))","v":""},null,{"$f":"IF(BB94=\"\",\"\",VLOOKUP(BB94,use_default[],2,FALSE))","v":""},null,{"$f":"IF(BD94=\"\",\"\",VLOOKUP(BD94,condition[],2,FALSE))","v":""},null,null,{"$f":"IF(BG94=\"\",\"\",VLOOKUP(BG94,organisation[],2,FALSE))","v":""},null,null,null,null,null,{"$f":"IF(BM94=\"\",\"\",VLOOKUP(BM94,replace_reason[],2,FALSE))","v":""}]
[{"$error":"#VALUE!"},null,null,null,{"$f":"IF(D95=\"\", \"\", VLOOKUP(D95,gps_by[],2,FALSE))","v":""},null,null,null,null,{"$f":"IF(I95=\"\", \"\", VLOOKUP(I95,gps_method_id[],2,FALSE))","v":""},null,{"$f":"IF(K95=\"\",\"\",VLOOKUP(K95,types[],2,FALSE))","v":""},null,{"$f":"IF(M95=\"\",\"\",VLOOKUP(M95,class[],2,FALSE))","v":""},null,null,null,{"$f":"IF(Q95=\"\",\"\",VLOOKUP(Q95,indicating_direction[],2,FALSE))","v":""},null,null,null,{"$f":"IF(U95=\"\",\"\",VLOOKUP(U95,legend_material[],2,FALSE))","v":""},null,{"$f":"IF(W95=\"\",\"\",VLOOKUP(W95,legend_colour[],2,FALSE))","v":""},null,{"$f":"IF(Y95=\"\",\"\",VLOOKUP(Y95,background_material[],2,FALSE))","v":""},null,{"$f":"IF(AA95=\"\",\"\",VLOOKUP(AA95,background_colour[],2,FALSE))","v":""},null,null,{"$f":"IF(AD95=\"\",\"\",VLOOKUP(AD95,substrate_material[],2,FALSE))","v":""},null,{"$f":"IF(AF95=\"\",\"\",VLOOKUP(AF95,frame[],2,FALSE))","v":""},null,{"$f":"IF(AH95=\"\",\"\",VLOOKUP(AH95,side[],2,FALSE))","v":""},null,null,null,null,null,null,{"$f":"IF(AO95=\"\",\"\",VLOOKUP(AO95,install_reason[],2,FALSE))","v":""},null,{"$f":"IF(AQ95=\"\",\"\",VLOOKUP(AQ95,owner[],2,FALSE))","v":""},null,null,{"$f":"IF(AT95=\"\",\"\",VLOOKUP(AT95,likelihood[],2,FALSE))","v":""},null,{"$f":"IF(AV95=\"\",\"\",VLOOKUP(AV95,consequence[],2,FALSE))","v":""},null,{"$f":"IF(AX95=\"\",\"\",VLOOKUP(AX95,risk[],2,FALSE))","v":""},null,{"$f":"IF(AZ95=\"\",\"\",VLOOKUP(AZ95,rul_reset[],2,FALSE))","v":""},null,{"$f":"IF(BB95=\"\",\"\",VLOOKUP(BB95,use_default[],2,FALSE))","v":""},null,{"$f":"IF(BD95=\"\",\"\",VLOOKUP(BD95,condition[],2,FALSE))","v":""},null,null,{"$f":"IF(BG95=\"\",\"\",VLOOKUP(BG95,organisation[],2,FALSE))","v":""},null,null,null,null,null,{"$f":"IF(BM95=\"\",\"\",VLOOKUP(BM95,replace_reason[],2,FALSE))","v":""}]
[{"$error":"#VALUE!"},null,null,null,{"$f":"IF(D96=\"\", \"\", VLOOKUP(D96,gps_by[],2,FALSE))","v":""},null,null,null,null,{"$f":"IF(I96=\"\", \"\", VLOOKUP(I96,gps_method_id[],2,FALSE))","v":""},null,{"$f":"IF(K96=\"\",\"\",VLOOKUP(K96,types[],2,FALSE))","v":""},null,{"$f":"IF(M96=\"\",\"\",VLOOKUP(M96,class[],2,FALSE))","v":""},null,null,null,{"$f":"IF(Q96=\"\",\"\",VLOOKUP(Q96,indicating_direction[],2,FALSE))","v":""},null,null,null,{"$f":"IF(U96=\"\",\"\",VLOOKUP(U96,legend_material[],2,FALSE))","v":""},null,{"$f":"IF(W96=\"\",\"\",VLOOKUP(W96,legend_colour[],2,FALSE))","v":""},null,{"$f":"IF(Y96=\"\",\"\",VLOOKUP(Y96,background_material[],2,FALSE))","v":""},null,{"$f":"IF(AA96=\"\",\"\",VLOOKUP(AA96,background_colour[],2,FALSE))","v":""},null,null,{"$f":"IF(AD96=\"\",\"\",VLOOKUP(AD96,substrate_material[],2,FALSE))","v":""},null,{"$f":"IF(AF96=\"\",\"\",VLOOKUP(AF96,frame[],2,FALSE))","v":""},null,{"$f":"IF(AH96=\"\",\"\",VLOOKUP(AH96,side[],2,FALSE))","v":""},null,null,null,null,null,null,{"$f":"IF(AO96=\"\",\"\",VLOOKUP(AO96,install_reason[],2,FALSE))","v":""},null,{"$f":"IF(AQ96=\"\",\"\",VLOOKUP(AQ96,owner[],2,FALSE))","v":""},null,null,{"$f":"IF(AT96=\"\",\"\",VLOOKUP(AT96,likelihood[],2,FALSE))","v":""},null,{"$f":"IF(AV96=\"\",\"\",VLOOKUP(AV96,consequence[],2,FALSE))","v":""},null,{"$f":"IF(AX96=\"\",\"\",VLOOKUP(AX96,risk[],2,FALSE))","v":""},null,{"$f":"IF(AZ96=\"\",\"\",VLOOKUP(AZ96,rul_reset[],2,FALSE))","v":""},null,{"$f":"IF(BB96=\"\",\"\",VLOOKUP(BB96,use_default[],2,FALSE))","v":""},null,{"$f":"IF(BD96=\"\",\"\",VLOOKUP(BD96,condition[],2,FALSE))","v":""},null,null,{"$f":"IF(BG96=\"\",\"\",VLOOKUP(BG96,organisation[],2,FALSE))","v":""},null,null,null,null,null,{"$f":"IF(BM96=\"\",\"\",VLOOKUP(BM96,replace_reason[],2,FALSE))","v":""}]
[{"$error":"#VALUE!"},null,null,null,{"$f":"IF(D97=\"\", \"\", VLOOKUP(D97,gps_by[],2,FALSE))","v":""},null,null,null,null,{"$f":"IF(I97=\"\", \"\", VLOOKUP(I97,gps_method_id[],2,FALSE))","v":""},null,{"$f":"IF(K97=\"\",\"\",VLOOKUP(K97,types[],2,FALSE))","v":""},null,{"$f":"IF(M97=\"\",\"\",VLOOKUP(M97,class[],2,FALSE))","v":""},null,null,null,{"$f":"IF(Q97=\"\",\"\",VLOOKUP(Q97,indicating_direction[],2,FALSE))","v":""},null,null,null,{"$f":"IF(U97=\"\",\"\",VLOOKUP(U97,legend_material[],2,FALSE))","v":""},null,{"$f":"IF(W97=\"\",\"\",VLOOKUP(W97,legend_colour[],2,FALSE))","v":""},null,{"$f":"IF(Y97=\"\",\"\",VLOOKUP(Y97,background_material[],2,FALSE))","v":""},null,{"$f":"IF(AA97=\"\",\"\",VLOOKUP(AA97,background_colour[],2,FALSE))","v":""},null,null,{"$f":"IF(AD97=\"\",\"\",VLOOKUP(AD97,substrate_material[],2,FALSE))","v":""},null,{"$f":"IF(AF97=\"\",\"\",VLOOKUP(AF97,frame[],2,FALSE))","v":""},null,{"$f":"IF(AH97=\"\",\"\",VLOOKUP(AH97,side[],2,FALSE))","v":""},null,null,null,null,null,null,{"$f":"IF(AO97=\"\",\"\",VLOOKUP(AO97,install_reason[],2,FALSE))","v":""},null,{"$f":"IF(AQ97=\"\",\"\",VLOOKUP(AQ97,owner[],2,FALSE))","v":""},null,null,{"$f":"IF(AT97=\"\",\"\",VLOOKUP(AT97,likelihood[],2,FALSE))","v":""},null,{"$f":"IF(AV97=\"\",\"\",VLOOKUP(AV97,consequence[],2,FALSE))","v":""},null,{"$f":"IF(AX97=\"\",\"\",VLOOKUP(AX97,risk[],2,FALSE))","v":""},null,{"$f":"IF(AZ97=\"\",\"\",VLOOKUP(AZ97,rul_reset[],2,FALSE))","v":""},null,{"$f":"IF(BB97=\"\",\"\",VLOOKUP(BB97,use_default[],2,FALSE))","v":""},null,{"$f":"IF(BD97=\"\",\"\",VLOOKUP(BD97,condition[],2,FALSE))","v":""},null,null,{"$f":"IF(BG97=\"\",\"\",VLOOKUP(BG97,organisation[],2,FALSE))","v":""},null,null,null,null,null,{"$f":"IF(BM97=\"\",\"\",VLOOKUP(BM97,replace_reason[],2,FALSE))","v":""}]
[{"$error":"#VALUE!"},null,null,null,{"$f":"IF(D98=\"\", \"\", VLOOKUP(D98,gps_by[],2,FALSE))","v":""},null,null,null,null,{"$f":"IF(I98=\"\", \"\", VLOOKUP(I98,gps_method_id[],2,FALSE))","v":""},null,{"$f":"IF(K98=\"\",\"\",VLOOKUP(K98,types[],2,FALSE))","v":""},null,{"$f":"IF(M98=\"\",\"\",VLOOKUP(M98,class[],2,FALSE))","v":""},null,null,null,{"$f":"IF(Q98=\"\",\"\",VLOOKUP(Q98,indicating_direction[],2,FALSE))","v":""},null,null,null,{"$f":"IF(U98=\"\",\"\",VLOOKUP(U98,legend_material[],2,FALSE))","v":""},null,{"$f":"IF(W98=\"\",\"\",VLOOKUP(W98,legend_colour[],2,FALSE))","v":""},null,{"$f":"IF(Y98=\"\",\"\",VLOOKUP(Y98,background_material[],2,FALSE))","v":""},null,{"$f":"IF(AA98=\"\",\"\",VLOOKUP(AA98,background_colour[],2,FALSE))","v":""},null,null,{"$f":"IF(AD98=\"\",\"\",VLOOKUP(AD98,substrate_material[],2,FALSE))","v":""},null,{"$f":"IF(AF98=\"\",\"\",VLOOKUP(AF98,frame[],2,FALSE))","v":""},null,{"$f":"IF(AH98=\"\",\"\",VLOOKUP(AH98,side[],2,FALSE))","v":""},null,null,null,null,null,null,{"$f":"IF(AO98=\"\",\"\",VLOOKUP(AO98,install_reason[],2,FALSE))","v":""},null,{"$f":"IF(AQ98=\"\",\"\",VLOOKUP(AQ98,owner[],2,FALSE))","v":""},null,null,{"$f":"IF(AT98=\"\",\"\",VLOOKUP(AT98,likelihood[],2,FALSE))","v":""},null,{"$f":"IF(AV98=\"\",\"\",VLOOKUP(AV98,consequence[],2,FALSE))","v":""},null,{"$f":"IF(AX98=\"\",\"\",VLOOKUP(AX98,risk[],2,FALSE))","v":""},null,{"$f":"IF(AZ98=\"\",\"\",VLOOKUP(AZ98,rul_reset[],2,FALSE))","v":""},null,{"$f":"IF(BB98=\"\",\"\",VLOOKUP(BB98,use_default[],2,FALSE))","v":""},null,{"$f":"IF(BD98=\"\",\"\",VLOOKUP(BD98,condition[],2,FALSE))","v":""},null,null,{"$f":"IF(BG98=\"\",\"\",VLOOKUP(BG98,organisation[],2,FALSE))","v":""},null,null,null,null,null,{"$f":"IF(BM98=\"\",\"\",VLOOKUP(BM98,replace_reason[],2,FALSE))","v":""}]

{"sheet":"Lookups","index":1,"n_rows":459,"n_cols":65,"rows_kept":459,"cut":false,"hidden":false,"merged":[]}
["sign class description","sign class",null,"sign types description","sign types",null,"indicating direction description","indicating direction",null,"legend material description","legend material",null,"legend colour description","legend colour",null,"background material description","background material",null,"background colour description","background colour",null,"substrate material description","substrate material",null,"frame description","frame",null,"side description","side",null,"install reason description","install reason",null,"sign owner description","sign owner",null,"replace reason description","replace reason",null,"likelihood description","likelihood",null,"consequence description","consequence",null,"risk description","risk",null,"rul reset description","rul reset",null,"use default description","use default",null,"condition description","condition",null,"organisation description","organisation",null,"gps method id.description","gps method id.code",null,"gps by.description","gps by.code"]
["Guide","G",null,"Adopt A Highway","AAH",null,"Against","A",null,"Engineer Grade - Class 100","EG",null,"Black","BK",null,"Engineer Grade - Class 100","EG",null,"Black","BK",null,"Aluminium","AL",null,"Framed","F",null,"Centre","C",null,"Renewed","01",null,"Local Authority","LA",null,"Asset Renewal - end of life","01",null,"Rare","1",null,"Insignificant","1",null,"Very Low","1",null,"Not Reset","N",null,"Default","D",null,"Excellent","1",null,"3M","3M",null,"Aerial photography","A",null,"3M","3M"]
["Hazard Markings","H",null,"Bridge Route Position","BRP",null,"Both","B",null,"High Intensity - Glass Bead (Class 300)","HG",null,"Brown","BR",null,"High Intensity - Glass Bead (Class 300)","HG",null,"Brown","BR",null,"Plastic","PL",null,"Not framed","N",null,"Left","L",null,"Accident","02",null,"Private","PR",null,"Crash Damage","02",null,"Unlikely","2",null,"Minor","2",null,"Low","2",null,"Reset to Zero","R",null,"User","U",null,"Good","2",null,"Automobile Association","AA",null,"Default","D",null,"Automobile Association","AA"]
["Information signs","I",null,"Benchmark Site Marker","BSM",null,"For","F",null,"High Intensity - Prismatic (Class 400)","HP",null,"Blue","BU",null,"High Intensity - Prismatic (Class 400)","HP",null,"Blue","BU",null,"Steel","ST",null,null,null,null,"Right","R",null,"Missing","03",null,"NZ Transport Agency","TN",null,"Crash reduction study","03",null,"Possible","3",null,"Moderate","3",null,"Medium","3",null,null,null,null,null,null,null,"Average","3",null,"Auckland Council","ACC",null,"GPS device","G",null,"Auckland Council","ACC"]
["Information General","IG",null,"Confirmation Destination North","CD-N",null,"Left","L",null,"Non-reflective","NR",null,"Dark Green","DG",null,"Non-reflective","NR",null,"Dark Green","DG",null,"Timber (combination materials)","TI",null,null,null,null,null,null,null,"Damaged","04",null,null,null,null,"Non - compliant","04",null,"Likely","4",null,"Major","4",null,"High","4",null,null,null,null,null,null,null,"Poor","4",null,"Alarm Centre Installation Ltd","ACI",null,"Click on Map","M",null,"Alarm Centre Installation Ltd","ACI"]
["Information Miscellaneous","IM",null,"Confirmation Destination South","CD-S",null,"Not applicable","N",null,"Optimum Wide Observation Angle - Class 1100","OP",null,"Fluro Orange","FO",null,"Optimum Wide Observation Angle - Class 1100","OP",null,"Fluro Orange","FO",null,null,null,null,null,null,null,null,null,null,"Relocated","05",null,null,null,null,"Projects","05",null,"Almost Certain","5",null,"Extreme","5",null,"Extreme","5",null,null,null,null,null,null,null,"Very poor","5",null,"Agfirst","AGF",null,"Other","O",null,"Agfirst","AGF"]
["Information Motorway","IMW",null,"Calibration Site Marker","CSM",null,"Right","R",null,"Standard Wide Observation Angle - Class 900","SP",null,"Fluro Yellow","FY",null,"Standard Wide Observation Angle - Class 900","SP",null,"Fluro Yellow","FY",null,null,null,null,null,null,null,null,null,null,"Crash Reduction Study","06",null,null,null,null,null,null,null,"Unknown","U",null,"Unknown","U",null,"Unknown","U",null,null,null,null,null,null,null,null,null,null,"Auckland Motorway Alliance","AMA",null,"RAMM Generated","R",null,"Auckland Motorway Alliance","AMA"]
["Location Referencing (LRMS)","LR",null,"Calibration Site Sign","CSS",null,"Side","S",null,null,null,null,"NZ Green","NG",null,null,null,null,"NZ Green","NG",null,null,null,null,null,null,null,null,null,null,"Police Request","07",null,null,null,null,null,null,null,null,null,null,null,null,null,null,null,null,null,null,null,null,null,null,null,null,null,"Asset Management Engineers Ltd","AME",null,null,null,null,"Asset Management Engineers Ltd","AME"]
["Miscellaneous","M",null,"Department of Conservation","DOC",null,null,null,null,null,null,null,"Orange","OR",null,null,null,null,"Orange","OR",null,null,null,null,null,null,null,null,null,null,"Grafitti","08",null,null,null,null,null,null,null,null,null,null,null,null,null,null,null,null,null,null,null,null,null,null,null,null,null,"Asset Management Technicians Ltd","AMT",null,null,null,null,"Asset Management Technicians Ltd","AMT"]
["Motorist Services","MS",null,"Dumping of Rubbish Prohibited","DRP",null,null,null,null,null,null,null,"Red","RE",null,null,null,null,"Red","RE",null,null,null,null,null,null,null,null,null,null,"New","09",null,null,null,null,null,null,null,null,null,null,null,null,null,null,null,null,null,null,null,null,null,null,null,null,null,"Armitage Systems","ARM",null,null,null,null,"Armitage Systems","ARM"]
["Obsolete signs","OS",null,"Expressway Begins - Ground Mounted","EI-30",null,null,null,null,null,null,null,"Unpainted","UP",null,null,null,null,"Unpainted","UP",null,null,null,null,null,null,null,null,null,null,"Faded","10",null,null,null,null,null,null,null,null,null,null,null,null,null,null,null,null,null,null,null,null,null,null,null,null,null,"Aspect Solutions Ltd","ASL",null,null,null,null,"Aspect Solutions Ltd","ASL"]
["Permanent Warning","PW",null,"Expressway Begins (Named Expressway) - Ground Mounted","EI-30.1",null,null,null,null,null,null,null,"White","WH",null,null,null,null,"White","WH",null,null,null,null,null,null,null,null,null,null,"Bylaw Update","98",null,null,null,null,null,null,null,null,null,null,null,null,null,null,null,null,null,null,null,null,null,null,null,null,null,"Auckland System Management","ASM",null,null,null,null,"Auckland System Management","ASM"]
["Regulatory General","RG",null,"Expressway Ends 400m - Ground Mounted","EI-31",null,null,null,null,null,null,null,"Yellow","YE",null,null,null,null,"Yellow","YE",null,null,null,null,null,null,null,null,null,null,"Removed","99",null,null,null,null,null,null,null,null,null,null,null,null,null,null,null,null,null,null,null,null,null,null,null,null,null,"Auckland Transport","AT2",null,null,null,null,"Auckland Transport","AT2"]
["Regulatory Heavy Vehicle","RH",null,"Expressway Ends - Ground Mounted","EI-32",null,null,null,null,null,null,null,"Fluro Yellow-Green","YG",null,null,null,null,"Fluro Yellow-Green","YG",null,null,null,null,null,null,null,null,null,null,null,null,null,null,null,null,null,null,null,null,null,null,null,null,null,null,null,null,null,null,null,null,null,null,null,null,null,"Aspect Technology and Equipment Ltd","ATE",null,null,null,null,"Aspect Technology and Equipment Ltd","ATE"]
["Regulatory Parking","RP",null,"Expressway (On Ramp) - Ground Mounted","EI-33",null,null,null,null,null,null,null,null,null,null,null,null,null,null,null,null,null,null,null,null,null,null,null,null,null,null,null,null,null,null,null,null,null,null,null,null,null,null,null,null,null,null,null,null,null,null,null,null,null,null,null,null,"ARRB Transport Research Ltd","ATR",null,null,null,null,"ARRB Transport Research Ltd","ATR"]
["Tourist","T",null,"Expressway (Named Expressway On Ramp) - Ground Mount","EI-33.1",null,null,null,null,null,null,null,null,null,null,null,null,null,null,null,null,null,null,null,null,null,null,null,null,null,null,null,null,null,null,null,null,null,null,null,null,null,null,null,null,null,null,null,null,null,null,null,null,null,null,null,null,"Auckland University","AUN",null,null,null,null,"Auckland University","AUN"]
["Temporary Warning","TW",null,"Expressway Ends (Off Ramp) - Ground Mounted","EI-34",null,null,null,null,null,null,null,null,null,null,null,null,null,null,null,null,null,null,null,null,null,null,null,null,null,null,null,null,null,null,null,null,null,null,null,null,null,null,null,null,null,null,null,null,null,null,null,null,null,null,null,null,"Broadspectrum (NZ) Ltd","B(L",null,null,null,null,"Broadspectrum (NZ) Ltd","B(L"]
["Warning Miscellaneous","WM",null,"Fire Hazard (Grapefruit Sign)","FH",null,null,null,null,null,null,null,null,null,null,null,null,null,null,null,null,null,null,null,null,null,null,null,null,null,null,null,null,null,null,null,null,null,null,null,null,null,null,null,null,null,null,null,null,null,null,null,null,null,null,null,null,"Bri-Ken and Associates Ltd","BAA",null,null,null,null,"Bri-Ken and Associates Ltd","BAA"]
["Warning Motorway","WMW",null,"Advance Direction (Stack) - Cross Roads","G-AD1",null,null,null,null,null,null,null,null,null,null,null,null,null,null,null,null,null,null,null,null,null,null,null,null,null,null,null,null,null,null,null,null,null,null,null,null,null,null,null,null,null,null,null,null,null,null,null,null,null,null,null,null,"Bartley Consultants Ltd","BAR",null,null,null,null,"Bartley Consultants Ltd","BAR"]
[null,null,null,"Advance Direction (Stack) - Skew Intersection","G-AD2",null,null,null,null,null,null,null,null,null,null,null,null,null,null,null,null,null,null,null,null,null,null,null,null,null,null,null,null,null,null,null,null,null,null,null,null,null,null,null,null,null,null,null,null,null,null,null,null,null,null,null,null,"Bloxam Burnett & Olliver Ltd","BB&",null,null,null,null,"Bloxam Burnett & Olliver Ltd","BB&"]
[null,null,null,"Advance Direction (Stack) - 'T' Intersection","G-AD3",null,null,null,null,null,null,null,null,null,null,null,null,null,null,null,null,null,null,null,null,null,null,null,null,null,null,null,null,null,null,null,null,null,null,null,null,null,null,null,null,null,null,null,null,null,null,null,null,null,null,null,null,"Beca Infrastructure","BCF",null,null,null,null,"Beca Infrastructure","BCF"]
[null,null,null,"Advance Direction (Map) - 'T'or Cross Roads","G-AD4",null,null,null,null,null,null,null,null,null,null,null,null,null,null,null,null,null,null,null,null,null,null,null,null,null,null,null,null,null,null,null,null,null,null,null,null,null,null,null,null,null,null,null,null,null,null,null,null,null,null,null,null,"Buller District Council","BDC",null,null,null,null,"Buller District Council","BDC"]
[null,null,null,"Advance Direction (Map) - Roundabout","GAD5",null,null,null,null,null,null,null,null,null,null,null,null,null,null,null,null,null,null,null,null,null,null,null,null,null,null,null,null,null,null,null,null,null,null,null,null,null,null,null,null,null,null,null,null,null,null,null,null,null,null,null,null,"Blacktop","BLA",null,null,null,null,"Blacktop","BLA"]
[null,null,null,"Advance Direction (Map) - Roundabout","G-AD5",null,null,null,null,null,null,null,null,null,null,null,null,null,null,null,null,null,null,null,null,null,null,null,null,null,null,null,null,null,null,null,null,null,null,null,null,null,null,null,null,null,null,null,null,null,null,null,null,null,null,null,null,"Beca Ltd.","BLT",null,null,null,null,"Beca Ltd.","BLT"]
[null,null,null,"Advance Direction - Street Name Sign","G-ADN",null,null,null,null,null,null,null,null,null,null,null,null,null,null,null,null,null,null,null,null,null,null,null,null,null,null,null,null,null,null,null,null,null,null,null,null,null,null,null,null,null,null,null,null,null,null,null,null,null,null,null,null,"Civil Assist Ltd","CAL",null,null,null,null,"Civil Assist Ltd","CAL"]
[null,null,null,"Advanced Lane Direction [Arrow]","G-ALD1",null,null,null,null,null,null,null,null,null,null,null,null,null,null,null,null,null,null,null,null,null,null,null,null,null,null,null,null,null,null,null,null,null,null,null,null,null,null,null,null,null,null,null,null,null,null,null,null,null,null,null,null,"Christchurch City Council","CCC",null,null,null,null,"Christchurch City Council","CCC"]
[null,null,null,"Advanced Lane Direction [Message]","G-ALD2",null,null,null,null,null,null,null,null,null,null,null,null,null,null,null,null,null,null,null,null,null,null,null,null,null,null,null,null,null,null,null,null,null,null,null,null,null,null,null,null,null,null,null,null,null,null,null,null,null,null,null,null,"City Care Ltd","CCL",null,null,null,null,"City Care Ltd","CCL"]
[null,null,null,"Confirmation Destination","G-CD1",null,null,null,null,null,null,null,null,null,null,null,null,null,null,null,null,null,null,null,null,null,null,null,null,null,null,null,null,null,null,null,null,null,null,null,null,null,null,null,null,null,null,null,null,null,null,null,null,null,null,null,null,"Currie Electrical Ltd.","CEL",null,null,null,null,"Currie Electrical Ltd.","CEL"]
[null,null,null,"Intersection Direction","G-ID1",null,null,null,null,null,null,null,null,null,null,null,null,null,null,null,null,null,null,null,null,null,null,null,null,null,null,null,null,null,null,null,null,null,null,null,null,null,null,null,null,null,null,null,null,null,null,null,null,null,null,null,null,"Company-X Ltd.","CL",null,null,null,null,"Company-X Ltd.","CL"]
[null,null,null,"Intersection Direction Sign with Street Name Sign","G-ID1A",null,null,null,null,null,null,null,null,null,null,null,null,null,null,null,null,null,null,null,null,null,null,null,null,null,null,null,null,null,null,null,null,null,null,null,null,null,null,null,null,null,null,null,null,null,null,null,null,null,null,null,null,"Critchlow Limited","CL2",null,null,null,null,"Critchlow Limited","CL2"]
[null,null,null,"Intersection Direction [Arrow]","G-ID2",null,null,null,null,null,null,null,null,null,null,null,null,null,null,null,null,null,null,null,null,null,null,null,null,null,null,null,null,null,null,null,null,null,null,null,null,null,null,null,null,null,null,null,null,null,null,null,null,null,null,null,null,"Coastline Markers Ltd","CML",null,null,null,null,"Coastline Markers Ltd","CML"]
[null,null,null,"Intersection Direction [Arrow] and Street Name Sign","G-ID2A",null,null,null,null,null,null,null,null,null,null,null,null,null,null,null,null,null,null,null,null,null,null,null,null,null,null,null,null,null,null,null,null,null,null,null,null,null,null,null,null,null,null,null,null,null,null,null,null,null,null,null,null,"CoreLogic NZ Ltd.","CNL",null,null,null,null,"CoreLogic NZ Ltd.","CNL"]
[null,null,null,"Intersection Direction with Route Marker","G-ID3",null,null,null,null,null,null,null,null,null,null,null,null,null,null,null,null,null,null,null,null,null,null,null,null,null,null,null,null,null,null,null,null,null,null,null,null,null,null,null,null,null,null,null,null,null,null,null,null,null,null,null,null,"Central Otago District Council","COD",null,null,null,null,"Central Otago District Council","COD"]
[null,null,null,"Intersection Direction - Route Marker with St.Name Sign","G-ID3A",null,null,null,null,null,null,null,null,null,null,null,null,null,null,null,null,null,null,null,null,null,null,null,null,null,null,null,null,null,null,null,null,null,null,null,null,null,null,null,null,null,null,null,null,null,null,null,null,null,null,null,null,"Other Contractor","CON",null,null,null,null,"Other Contractor","CON"]
[null,null,null,"Intersection Direction - Urban","G-ID4",null,null,null,null,null,null,null,null,null,null,null,null,null,null,null,null,null,null,null,null,null,null,null,null,null,null,null,null,null,null,null,null,null,null,null,null,null,null,null,null,null,null,null,null,null,null,null,null,null,null,null,null,"CSL Traffic","CSL",null,null,null,null,"CSL Traffic","CSL"]
[null,null,null,"Intersection Direction - Urban with Street Name Sign","G-ID4A",null,null,null,null,null,null,null,null,null,null,null,null,null,null,null,null,null,null,null,null,null,null,null,null,null,null,null,null,null,null,null,null,null,null,null,null,null,null,null,null,null,null,null,null,null,null,null,null,null,null,null,null,"Connell Wagner Ltd","CWL",null,null,null,null,"Connell Wagner Ltd","CWL"]
[null,null,null,"Intersection Direction - 'T'","G-ID5",null,null,null,null,null,null,null,null,null,null,null,null,null,null,null,null,null,null,null,null,null,null,null,null,null,null,null,null,null,null,null,null,null,null,null,null,null,null,null,null,null,null,null,null,null,null,null,null,null,null,null,null,"Dunedin City Council","DCC",null,null,null,null,"Dunedin City Council","DCC"]
[null,null,null,"Intersection Direction - 'T' with Street Name Sign","G-ID5A",null,null,null,null,null,null,null,null,null,null,null,null,null,null,null,null,null,null,null,null,null,null,null,null,null,null,null,null,null,null,null,null,null,null,null,null,null,null,null,null,null,null,null,null,null,null,null,null,null,null,null,null,"D & L Crowe Ltd","DLC",null,null,null,null,"D & L Crowe Ltd","DLC"]
[null,null,null,"Intersection Direction - 'Fingerboard' Street Name","G-ID6",null,null,null,null,null,null,null,null,null,null,null,null,null,null,null,null,null,null,null,null,null,null,null,null,null,null,null,null,null,null,null,null,null,null,null,null,null,null,null,null,null,null,null,null,null,null,null,null,null,null,null,null,"Spiire NZ Ltd","DWK",null,null,null,null,"Spiire NZ Ltd","DWK"]
[null,null,null,"Place Name","G-PN1",null,null,null,null,null,null,null,null,null,null,null,null,null,null,null,null,null,null,null,null,null,null,null,null,null,null,null,null,null,null,null,null,null,null,null,null,null,null,null,null,null,null,null,null,null,null,null,null,null,null,null,null,"Excell Corporation","ECL",null,null,null,null,"Excell Corporation","ECL"]
[null,null,null,"Threshold Sign - Place Name + Speed Limit","G-PN2",null,null,null,null,null,null,null,null,null,null,null,null,null,null,null,null,null,null,null,null,null,null,null,null,null,null,null,null,null,null,null,null,null,null,null,null,null,null,null,null,null,null,null,null,null,null,null,null,null,null,null,null,"Ferguson Ind","FGI",null,null,null,null,"Ferguson Ind","FGI"]
[null,null,null,"Route Marker - Single Numeral","G-RM1",null,null,null,null,null,null,null,null,null,null,null,null,null,null,null,null,null,null,null,null,null,null,null,null,null,null,null,null,null,null,null,null,null,null,null,null,null,null,null,null,null,null,null,null,null,null,null,null,null,null,null,null,"Fulton Hogan (NZ) Ltd.","FUL",null,null,null,null,"Fulton Hogan (NZ) Ltd.","FUL"]
[null,null,null,"Route Marker - Double Numeral","G-RM2",null,null,null,null,null,null,null,null,null,null,null,null,null,null,null,null,null,null,null,null,null,null,null,null,null,null,null,null,null,null,null,null,null,null,null,null,null,null,null,null,null,null,null,null,null,null,null,null,null,null,null,null,"Gisborne District Council","GDC",null,null,null,null,"Gisborne District Council","GDC"]
[null,null,null,"Route BEGINS","G-RM3",null,null,null,null,null,null,null,null,null,null,null,null,null,null,null,null,null,null,null,null,null,null,null,null,null,null,null,null,null,null,null,null,null,null,null,null,null,null,null,null,null,null,null,null,null,null,null,null,null,null,null,null,"Geosolve Ltd","GEO",null,null,null,null,"Geosolve Ltd","GEO"]
[null,null,null,"Route ENDS","G-RM4",null,null,null,null,null,null,null,null,null,null,null,null,null,null,null,null,null,null,null,null,null,null,null,null,null,null,null,null,null,null,null,null,null,null,null,null,null,null,null,null,null,null,null,null,null,null,null,null,null,null,null,null,"GHD Ltd.","GHD",null,null,null,null,"GHD Ltd.","GHD"]
[null,null,null,"Street Name Sign (White on Blue)","G-SN1",null,null,null,null,null,null,null,null,null,null,null,null,null,null,null,null,null,null,null,null,null,null,null,null,null,null,null,null,null,null,null,null,null,null,null,null,null,null,null,null,null,null,null,null,null,null,null,null,null,null,null,null,"HEB Construction Ltd","HEB",null,null,null,null,"HEB Construction Ltd","HEB"]
[null,null,null,"Hazard Marker","H05",null,null,null,null,null,null,null,null,null,null,null,null,null,null,null,null,null,null,null,null,null,null,null,null,null,null,null,null,null,null,null,null,null,null,null,null,null,null,null,null,null,null,null,null,null,null,null,null,null,null,null,null,"Higgins Contractors Ltd.","HIG",null,null,null,null,"Higgins Contractors Ltd.","HIG"]
[null,null,null,"Bridge End Marker","H07",null,null,null,null,null,null,null,null,null,null,null,null,null,null,null,null,null,null,null,null,null,null,null,null,null,null,null,null,null,null,null,null,null,null,null,null,null,null,null,null,null,null,null,null,null,null,null,null,null,null,null,null,"HMI Technologies","HMI",null,null,null,null,"HMI Technologies","HMI"]
[null,null,null,"Crash Cushion Hazard Marker","H08",null,null,null,null,null,null,null,null,null,null,null,null,null,null,null,null,null,null,null,null,null,null,null,null,null,null,null,null,null,null,null,null,null,null,null,null,null,null,null,null,null,null,null,null,null,null,null,null,null,null,null,null,"HERE New Zealand Ltd","HNZ",null,null,null,null,"HERE New Zealand Ltd","HNZ"]
[null,null,null,"No Exit","IG01",null,null,null,null,null,null,null,null,null,null,null,null,null,null,null,null,null,null,null,null,null,null,null,null,null,null,null,null,null,null,null,null,null,null,null,null,null,null,null,null,null,null,null,null,null,null,null,null,null,null,null,null,"HTS Group","HTS",null,null,null,null,"HTS Group","HTS"]
[null,null,null,"Turn Left At Any Time With Care","IG02",null,null,null,null,null,null,null,null,null,null,null,null,null,null,null,null,null,null,null,null,null,null,null,null,null,null,null,null,null,null,null,null,null,null,null,null,null,null,null,null,null,null,null,null,null,null,null,null,null,null,null,null,"Inframix Construction Ltd","IMX",null,null,null,null,"Inframix Construction Ltd","IMX"]
[null,null,null,"Bells Off (Railway Level Crossing)","IG03",null,null,null,null,null,null,null,null,null,null,null,null,null,null,null,null,null,null,null,null,null,null,null,null,null,null,null,null,null,null,null,null,null,null,null,null,null,null,null,null,null,null,null,null,null,null,null,null,null,null,null,null,"Inzone","INZ",null,null,null,null,"Inzone","INZ"]
[null,null,null,"Heavy Traffic Bypass '___' m","IG04",null,null,null,null,null,null,null,null,null,null,null,null,null,null,null,null,null,null,null,null,null,null,null,null,null,null,null,null,null,null,null,null,null,null,null,null,null,null,null,null,null,null,null,null,null,null,null,null,null,null,null,null,"Isaac Construction","ISC",null,null,null,null,"Isaac Construction","ISC"]
[null,null,null,"Heavy Traffic Bypass [Arrow]","IG05",null,null,null,null,null,null,null,null,null,null,null,null,null,null,null,null,null,null,null,null,null,null,null,null,null,null,null,null,null,null,null,null,null,null,null,null,null,null,null,null,null,null,null,null,null,null,null,null,null,null,null,null,"Island Asphalts","ISL",null,null,null,null,"Island Asphalts","ISL"]
[null,null,null,"Passing Lane 400m","IG06",null,null,null,null,null,null,null,null,null,null,null,null,null,null,null,null,null,null,null,null,null,null,null,null,null,null,null,null,null,null,null,null,null,null,null,null,null,null,null,null,null,null,null,null,null,null,null,null,null,null,null,null,"ITS","ITS",null,null,null,null,"ITS","ITS"]
[null,null,null,"Passing Lane '__' km Ahead","IG06A",null,null,null,null,null,null,null,null,null,null,null,null,null,null,null,null,null,null,null,null,null,null,null,null,null,null,null,null,null,null,null,null,null,null,null,null,null,null,null,null,null,null,null,null,null,null,null,null,null,null,null,null,"Jacobs New Zealand Ltd","JAC",null,null,null,null,"Jacobs New Zealand Ltd","JAC"]
[null,null,null,"Passing Bay '___' m","IG07",null,null,null,null,null,null,null,null,null,null,null,null,null,null,null,null,null,null,null,null,null,null,null,null,null,null,null,null,null,null,null,null,null,null,null,null,null,null,null,null,null,null,null,null,null,null,null,null,null,null,null,null,"JCW Consultant","JC",null,null,null,null,"JCW Consultant","JC"]
[null,null,null,"Slow Vehicle Bays Next '______ ' km","IG08",null,null,null,null,null,null,null,null,null,null,null,null,null,null,null,null,null,null,null,null,null,null,null,null,null,null,null,null,null,null,null,null,null,null,null,null,null,null,null,null,null,null,null,null,null,null,null,null,null,null,null,null,"JCL Asphalt subcontractor","JCL",null,null,null,null,"JCL Asphalt subcontractor","JCL"]
[null,null,null,"Slow Vehicle Bay '____ ' m","IG09",null,null,null,null,null,null,null,null,null,null,null,null,null,null,null,null,null,null,null,null,null,null,null,null,null,null,null,null,null,null,null,null,null,null,null,null,null,null,null,null,null,null,null,null,null,null,null,null,null,null,null,null,"JJ Walters","JJW",null,null,null,null,"JJ Walters","JJW"]
[null,null,null,"Slow Vehicle Bay [Arrow]","IG10",null,null,null,null,null,null,null,null,null,null,null,null,null,null,null,null,null,null,null,null,null,null,null,null,null,null,null,null,null,null,null,null,null,null,null,null,null,null,null,null,null,null,null,null,null,null,null,null,null,null,null,null,"Johnstone & Masters Ltd","JM",null,null,null,null,"Johnstone & Masters Ltd","JM"]
[null,null,null,"Construction Zone","IG11",null,null,null,null,null,null,null,null,null,null,null,null,null,null,null,null,null,null,null,null,null,null,null,null,null,null,null,null,null,null,null,null,null,null,null,null,null,null,null,null,null,null,null,null,null,null,null,null,null,null,null,null,"NZTA (JTOC)","JTO",null,null,null,null,"NZTA (JTOC)","JTO"]
[null,null,null,"Finger Board (Public Amenities)","IG12",null,null,null,null,null,null,null,null,null,null,null,null,null,null,null,null,null,null,null,null,null,null,null,null,null,null,null,null,null,null,null,null,null,null,null,null,null,null,null,null,null,null,null,null,null,null,null,null,null,null,null,null,"Juno Services Ltd","JUN",null,null,null,null,"Juno Services Ltd","JUN"]
[null,null,null,"District Boundary","IG13",null,null,null,null,null,null,null,null,null,null,null,null,null,null,null,null,null,null,null,null,null,null,null,null,null,null,null,null,null,null,null,null,null,null,null,null,null,null,null,null,null,null,null,null,null,null,null,null,null,null,null,null,"Kapiti Coast District Council","KCD",null,null,null,null,"Kapiti Coast District Council","KCD"]
[null,null,null,"River/Stream","IG14",null,null,null,null,null,null,null,null,null,null,null,null,null,null,null,null,null,null,null,null,null,null,null,null,null,null,null,null,null,null,null,null,null,null,null,null,null,null,null,null,null,null,null,null,null,null,null,null,null,null,null,null,"Kampung Consulting Ltd.","KCL",null,null,null,null,"Kampung Consulting Ltd.","KCL"]
[null,null,null,"Elevation '___' m","IG15",null,null,null,null,null,null,null,null,null,null,null,null,null,null,null,null,null,null,null,null,null,null,null,null,null,null,null,null,null,null,null,null,null,null,null,null,null,null,null,null,null,null,null,null,null,null,null,null,null,null,null,null,"Kelcroft Engineering","KEL",null,null,null,null,"Kelcroft Engineering","KEL"]
[null,null,null,"Summit '___' m","IG16",null,null,null,null,null,null,null,null,null,null,null,null,null,null,null,null,null,null,null,null,null,null,null,null,null,null,null,null,null,null,null,null,null,null,null,null,null,null,null,null,null,null,null,null,null,null,null,null,null,null,null,null,"Local Authority","LA",null,null,null,null,"Local Authority","LA"]
[null,null,null,"Heavy Vehicles Please No Engine Brakes Next '___' km","IG17",null,null,null,null,null,null,null,null,null,null,null,null,null,null,null,null,null,null,null,null,null,null,null,null,null,null,null,null,null,null,null,null,null,null,null,null,null,null,null,null,null,null,null,null,null,null,null,null,null,null,null,null,"Lonrix Ltd","LL",null,null,null,null,"Lonrix Ltd","LL"]
[null,null,null,"Stock Effluent Disposal '_____' On Right","IG18",null,null,null,null,null,null,null,null,null,null,null,null,null,null,null,null,null,null,null,null,null,null,null,null,null,null,null,null,null,null,null,null,null,null,null,null,null,null,null,null,null,null,null,null,null,null,null,null,null,null,null,null,"McKays Consultants","MCC",null,null,null,null,"McKays Consultants","MCC"]
[null,null,null,"Stock Efflluent Disposal [Arrow]","IG19",null,null,null,null,null,null,null,null,null,null,null,null,null,null,null,null,null,null,null,null,null,null,null,null,null,null,null,null,null,null,null,null,null,null,null,null,null,null,null,null,null,null,null,null,null,null,null,null,null,null,null,null,"Matamata-Piako District Council","MD2",null,null,null,null,"Matamata-Piako District Council","MD2"]
[null,null,null,"Cyclists - Use Left Shoulder","IG20",null,null,null,null,null,null,null,null,null,null,null,null,null,null,null,null,null,null,null,null,null,null,null,null,null,null,null,null,null,null,null,null,null,null,null,null,null,null,null,null,null,null,null,null,null,null,null,null,null,null,null,null,"Manawatu District Council","MDC",null,null,null,null,"Manawatu District Council","MDC"]
[null,null,null,"Cyclists - Use Ramp [Arrow]","IG21",null,null,null,null,null,null,null,null,null,null,null,null,null,null,null,null,null,null,null,null,null,null,null,null,null,null,null,null,null,null,null,null,null,null,null,null,null,null,null,null,null,null,null,null,null,null,null,null,null,null,null,null,"McKay Electrical Ltd","MEL",null,null,null,null,"McKay Electrical Ltd","MEL"]
[null,null,null,"Cyclists - Cross Here With Care [Arrow]","IG22",null,null,null,null,null,null,null,null,null,null,null,null,null,null,null,null,null,null,null,null,null,null,null,null,null,null,null,null,null,null,null,null,null,null,null,null,null,null,null,null,null,null,null,null,null,null,null,null,null,null,null,null,"Aecom NZ Ltd","MER",null,null,null,null,"Aecom NZ Ltd","MER"]
[null,null,null,"Use Headlamps in Tunnel","IG23",null,null,null,null,null,null,null,null,null,null,null,null,null,null,null,null,null,null,null,null,null,null,null,null,null,null,null,null,null,null,null,null,null,null,null,null,null,null,null,null,null,null,null,null,null,null,null,null,null,null,null,null,"MetService","MET",null,null,null,null,"MetService","MET"]
[null,null,null,"Stopping Bay '___' m","IG24",null,null,null,null,null,null,null,null,null,null,null,null,null,null,null,null,null,null,null,null,null,null,null,null,null,null,null,null,null,null,null,null,null,null,null,null,null,null,null,null,null,null,null,null,null,null,null,null,null,null,null,null,"Marlborough NOC JV","MJV",null,null,null,null,"Marlborough NOC JV","MJV"]
[null,null,null,"Stopping Bay [Arrow]","IG25",null,null,null,null,null,null,null,null,null,null,null,null,null,null,null,null,null,null,null,null,null,null,null,null,null,null,null,null,null,null,null,null,null,null,null,null,null,null,null,null,null,null,null,null,null,null,null,null,null,null,null,null,"McKay Ltd.","ML",null,null,null,null,"McKay Ltd.","ML"]
[null,null,null,"Speedo Test Warning","IM01",null,null,null,null,null,null,null,null,null,null,null,null,null,null,null,null,null,null,null,null,null,null,null,null,null,null,null,null,null,null,null,null,null,null,null,null,null,null,null,null,null,null,null,null,null,null,null,null,null,null,null,null,"Marlborough Roads","MR",null,null,null,null,"Marlborough Roads","MR"]
[null,null,null,"Speedo Test Start","IM02",null,null,null,null,null,null,null,null,null,null,null,null,null,null,null,null,null,null,null,null,null,null,null,null,null,null,null,null,null,null,null,null,null,null,null,null,null,null,null,null,null,null,null,null,null,null,null,null,null,null,null,null,"MWH NZ Ltd.","MWH",null,null,null,null,"MWH NZ Ltd.","MWH"]
[null,null,null,"Speedo Test End","IM03",null,null,null,null,null,null,null,null,null,null,null,null,null,null,null,null,null,null,null,null,null,null,null,null,null,null,null,null,null,null,null,null,null,null,null,null,null,null,null,null,null,null,null,null,null,null,null,null,null,null,null,null,"Napier City Council","NCC",null,null,null,null,"Napier City Council","NCC"]
[null,null,null,"Road Information","IM04",null,null,null,null,null,null,null,null,null,null,null,null,null,null,null,null,null,null,null,null,null,null,null,null,null,null,null,null,null,null,null,null,null,null,null,null,null,null,null,null,null,null,null,null,null,null,null,null,null,null,null,null,"NZ Transport Agency - Highway Programme","NTA",null,null,null,null,"NZ Transport Agency - Highway Programme","NTA"]
[null,null,null,"Check Your Lights","IM05",null,null,null,null,null,null,null,null,null,null,null,null,null,null,null,null,null,null,null,null,null,null,null,null,null,null,null,null,null,null,null,null,null,null,null,null,null,null,null,null,null,null,null,null,null,null,null,null,null,null,null,null,"NZ Transport Agency - Funding","NTF",null,null,null,null,"NZ Transport Agency - Funding","NTF"]
[null,null,null,"Information (Miscellaneous Sign) - User Defined","IM06",null,null,null,null,null,null,null,null,null,null,null,null,null,null,null,null,null,null,null,null,null,null,null,null,null,null,null,null,null,null,null,null,null,null,null,null,null,null,null,null,null,null,null,null,null,null,null,null,null,null,null,null,"North Power","NTH",null,null,null,null,"North Power","NTH"]
[null,null,null,"*555 Traffic Patrol","IM07",null,null,null,null,null,null,null,null,null,null,null,null,null,null,null,null,null,null,null,null,null,null,null,null,null,null,null,null,null,null,null,null,null,null,null,null,null,null,null,null,null,null,null,null,null,null,null,null,null,null,null,null,"Nutech Security","NUT",null,null,null,null,"Nutech Security","NUT"]
[null,null,null,"Hospital","IM10",null,null,null,null,null,null,null,null,null,null,null,null,null,null,null,null,null,null,null,null,null,null,null,null,null,null,null,null,null,null,null,null,null,null,null,null,null,null,null,null,null,null,null,null,null,null,null,null,null,null,null,null,"Odyssey Energy (2009) Ltd.","OE(",null,null,null,null,"Odyssey Energy (2009) Ltd.","OE("]
[null,null,null,"Motorist Amenities","IM11",null,null,null,null,null,null,null,null,null,null,null,null,null,null,null,null,null,null,null,null,null,null,null,null,null,null,null,null,null,null,null,null,null,null,null,null,null,null,null,null,null,null,null,null,null,null,null,null,null,null,null,null,"Opus International Consultants Ltd (NZ)","OI2",null,null,null,null,"Opus International Consultants Ltd (NZ)","OI2"]
[null,null,null,"Caravan Park","IM12",null,null,null,null,null,null,null,null,null,null,null,null,null,null,null,null,null,null,null,null,null,null,null,null,null,null,null,null,null,null,null,null,null,null,null,null,null,null,null,null,null,null,null,null,null,null,null,null,null,null,null,null,"Opus International Consultants Ltd.","OIC",null,null,null,null,"Opus International Consultants Ltd.","OIC"]
[null,null,null,"Caravan - Waste Disposal","IM13",null,null,null,null,null,null,null,null,null,null,null,null,null,null,null,null,null,null,null,null,null,null,null,null,null,null,null,null,null,null,null,null,null,null,null,null,null,null,null,null,null,null,null,null,null,null,null,null,null,null,null,null,"Oldfields","OLD",null,null,null,null,"Oldfields","OLD"]
[null,null,null,"Camping Area","IM14",null,null,null,null,null,null,null,null,null,null,null,null,null,null,null,null,null,null,null,null,null,null,null,null,null,null,null,null,null,null,null,null,null,null,null,null,null,null,null,null,null,null,null,null,null,null,null,null,null,null,null,null,"Porirua City Council","PCC",null,null,null,null,"Porirua City Council","PCC"]
[null,null,null,"Emergency Telephone","IM15",null,null,null,null,null,null,null,null,null,null,null,null,null,null,null,null,null,null,null,null,null,null,null,null,null,null,null,null,null,null,null,null,null,null,null,null,null,null,null,null,null,null,null,null,null,null,null,null,null,null,null,null,"Pinnacles Civil Group Ltd.","PCG",null,null,null,null,"Pinnacles Civil Group Ltd.","PCG"]
[null,null,null,"Airport Direction (Pictorial)","IM21",null,null,null,null,null,null,null,null,null,null,null,null,null,null,null,null,null,null,null,null,null,null,null,null,null,null,null,null,null,null,null,null,null,null,null,null,null,null,null,null,null,null,null,null,null,null,null,null,null,null,null,null,"Pope Electrical Ltd","PE2",null,null,null,null,"Pope Electrical Ltd","PE2"]
[null,null,null,"(Flucal) Children Crossing","IM22",null,null,null,null,null,null,null,null,null,null,null,null,null,null,null,null,null,null,null,null,null,null,null,null,null,null,null,null,null,null,null,null,null,null,null,null,null,null,null,null,null,null,null,null,null,null,null,null,null,null,null,null,"Pope Electrical Limited","PEL",null,null,null,null,"Pope Electrical Limited","PEL"]
[null,null,null,"No Horses","IM23",null,null,null,null,null,null,null,null,null,null,null,null,null,null,null,null,null,null,null,null,null,null,null,null,null,null,null,null,null,null,null,null,null,null,null,null,null,null,null,null,null,null,null,null,null,null,null,null,null,null,null,null,"Pavement Management Services","PMS",null,null,null,null,"Pavement Management Services","PMS"]
[null,null,null,"Funeral","IM24",null,null,null,null,null,null,null,null,null,null,null,null,null,null,null,null,null,null,null,null,null,null,null,null,null,null,null,null,null,null,null,null,null,null,null,null,null,null,null,null,null,null,null,null,null,null,null,null,null,null,null,null,"Power Solutions Ltd","PSL",null,null,null,null,"Power Solutions Ltd","PSL"]
[null,null,null,"Advance Exit","IMW01",null,null,null,null,null,null,null,null,null,null,null,null,null,null,null,null,null,null,null,null,null,null,null,null,null,null,null,null,null,null,null,null,null,null,null,null,null,null,null,null,null,null,null,null,null,null,null,null,null,null,null,null,"Queenstown-Lakes District Council","QDC",null,null,null,null,"Queenstown-Lakes District Council","QDC"]
[null,null,null,"Exit Direction","IMW02",null,null,null,null,null,null,null,null,null,null,null,null,null,null,null,null,null,null,null,null,null,null,null,null,null,null,null,null,null,null,null,null,null,null,null,null,null,null,null,null,null,null,null,null,null,null,null,null,null,null,null,null,"Quality Roading and Services","QRS",null,null,null,null,"Quality Roading and Services","QRS"]
[null,null,null,"Exit","IMW03",null,null,null,null,null,null,null,null,null,null,null,null,null,null,null,null,null,null,null,null,null,null,null,null,null,null,null,null,null,null,null,null,null,null,null,null,null,null,null,null,null,null,null,null,null,null,null,null,null,null,null,null,"Read-only access for Tenderers","RAF",null,null,null,null,"Read-only access for Tenderers","RAF"]
[null,null,null,"Bus Lane Ahead","IMW04",null,null,null,null,null,null,null,null,null,null,null,null,null,null,null,null,null,null,null,null,null,null,null,null,null,null,null,null,null,null,null,null,null,null,null,null,null,null,null,null,null,null,null,null,null,null,null,null,null,null,null,null,"Rangitikei District Council","RDC",null,null,null,null,"Rangitikei District Council","RDC"]
[null,null,null,"Bus Lane Ends","IMW05",null,null,null,null,null,null,null,null,null,null,null,null,null,null,null,null,null,null,null,null,null,null,null,null,null,null,null,null,null,null,null,null,null,null,null,null,null,null,null,null,null,null,null,null,null,null,null,null,null,null,null,null,"Roadex","RDX",null,null,null,null,"Roadex","RDX"]
[null,null,null,"Bus Lane '____' (Specified Time)","IMW06",null,null,null,null,null,null,null,null,null,null,null,null,null,null,null,null,null,null,null,null,null,null,null,null,null,null,null,null,null,null,null,null,null,null,null,null,null,null,null,null,null,null,null,null,null,null,null,null,null,null,null,null,"Roading Logistics Ltd","RLL",null,null,null,null,"Roading Logistics Ltd","RLL"]
[null,null,null,"Advance Exit (Overhead)","IMW10",null,null,null,null,null,null,null,null,null,null,null,null,null,null,null,null,null,null,null,null,null,null,null,null,null,null,null,null,null,null,null,null,null,null,null,null,null,null,null,null,null,null,null,null,null,null,null,null,null,null,null,null,"Rationale Ltd","RLT",null,null,null,null,"Rationale Ltd","RLT"]
[null,null,null,"Exit Direction (Overhead)","IMW11",null,null,null,null,null,null,null,null,null,null,null,null,null,null,null,null,null,null,null,null,null,null,null,null,null,null,null,null,null,null,null,null,null,null,null,null,null,null,null,null,null,null,null,null,null,null,null,null,null,null,null,null,"Rotorua District Council","ROT",null,null,null,null,"Rotorua District Council","ROT"]
[null,null,null,"Exit (Overhead)","IMW12",null,null,null,null,null,null,null,null,null,null,null,null,null,null,null,null,null,null,null,null,null,null,null,null,null,null,null,null,null,null,null,null,null,null,null,null,null,null,null,null,null,null,null,null,null,null,null,null,null,null,null,null,"RAMM Software Limited","RSL",null,null,null,null,"RAMM Software Limited","RSL"]
[null,null,null,"Confirmatory Destination","IMW20",null,null,null,null,null,null,null,null,null,null,null,null,null,null,null,null,null,null,null,null,null,null,null,null,null,null,null,null,null,null,null,null,null,null,null,null,null,null,null,null,null,null,null,null,null,null,null,null,null,null,null,null,"Road Signs & Traffic Control Equipment Limited","RTL",null,null,null,null,"Road Signs & Traffic Control Equipment Limited","RTL"]
[null,null,null,"Motorway Begins","IMW30",null,null,null,null,null,null,null,null,null,null,null,null,null,null,null,null,null,null,null,null,null,null,null,null,null,null,null,null,null,null,null,null,null,null,null,null,null,null,null,null,null,null,null,null,null,null,null,null,null,null,null,null,"Russell Roads","RUS",null,null,null,null,"Russell Roads","RUS"]
[null,null,null,"Motorway Ends 400 m","IMW31",null,null,null,null,null,null,null,null,null,null,null,null,null,null,null,null,null,null,null,null,null,null,null,null,null,null,null,null,null,null,null,null,null,null,null,null,null,null,null,null,null,null,null,null,null,null,null,null,null,null,null,null,"Salient Consultants","SAL",null,null,null,null,"Salient Consultants","SAL"]
[null,null,null,"Motorway Ends","IMW32",null,null,null,null,null,null,null,null,null,null,null,null,null,null,null,null,null,null,null,null,null,null,null,null,null,null,null,null,null,null,null,null,null,null,null,null,null,null,null,null,null,null,null,null,null,null,null,null,null,null,null,null,"Sealcoat Central Ltd.","SCL",null,null,null,null,"Sealcoat Central Ltd.","SCL"]
[null,null,null,"Motorway (Ramp)","IMW33",null,null,null,null,null,null,null,null,null,null,null,null,null,null,null,null,null,null,null,null,null,null,null,null,null,null,null,null,null,null,null,null,null,null,null,null,null,null,null,null,null,null,null,null,null,null,null,null,null,null,null,null,"Shaw's Consulting Services Ltd","SCS",null,null,null,null,"Shaw's Consulting Services Ltd","SCS"]
[null,null,null,"Motorway Ends (Ramp)","IMW34",null,null,null,null,null,null,null,null,null,null,null,null,null,null,null,null,null,null,null,null,null,null,null,null,null,null,null,null,null,null,null,null,null,null,null,null,null,null,null,null,null,null,null,null,null,null,null,null,null,null,null,null,"Southland District Council","SDC",null,null,null,null,"Southland District Council","SDC"]
[null,null,null,"Light No Fires","LNF",null,null,null,null,null,null,null,null,null,null,null,null,null,null,null,null,null,null,null,null,null,null,null,null,null,null,null,null,null,null,null,null,null,null,null,null,null,null,null,null,null,null,null,null,null,null,null,null,null,null,null,null,"Signopsys Electronic Signs","SES",null,null,null,null,"Signopsys Electronic Signs","SES"]
[null,null,null,"Bridge Serial Number","LR-BSN",null,null,null,null,null,null,null,null,null,null,null,null,null,null,null,null,null,null,null,null,null,null,null,null,null,null,null,null,null,null,null,null,null,null,null,null,null,null,null,null,null,null,null,null,null,null,null,null,null,null,null,null,"Sicon Ltd.","SL2",null,null,null,null,"Sicon Ltd.","SL2"]
[null,null,null,"Culvert Serial Number","LR-CSN",null,null,null,null,null,null,null,null,null,null,null,null,null,null,null,null,null,null,null,null,null,null,null,null,null,null,null,null,null,null,null,null,null,null,null,null,null,null,null,null,null,null,null,null,null,null,null,null,null,null,null,null,"Stantec New Zealand","SN2",null,null,null,null,"Stantec New Zealand","SN2"]
[null,null,null,"Established Route Position","LR-ERP",null,null,null,null,null,null,null,null,null,null,null,null,null,null,null,null,null,null,null,null,null,null,null,null,null,null,null,null,null,null,null,null,null,null,null,null,null,null,null,null,null,null,null,null,null,null,null,null,null,null,null,null,"Stantec New Zealand Ltd","SNZ",null,null,null,null,"Stantec New Zealand Ltd","SNZ"]
[null,null,null,"Kilometre Marker Post","LR-KMP",null,null,null,null,null,null,null,null,null,null,null,null,null,null,null,null,null,null,null,null,null,null,null,null,null,null,null,null,null,null,null,null,null,null,null,null,null,null,null,null,null,null,null,null,null,null,null,null,null,null,null,null,"SouthRoads Ltd.","SOU",null,null,null,null,"SouthRoads Ltd.","SOU"]
[null,null,null,"Reference Station","LR-RS",null,null,null,null,null,null,null,null,null,null,null,null,null,null,null,null,null,null,null,null,null,null,null,null,null,null,null,null,null,null,null,null,null,null,null,null,null,null,null,null,null,null,null,null,null,null,null,null,null,null,null,null,"Safe Roads Alliance","SRA",null,null,null,null,"Safe Roads Alliance","SRA"]
[null,null,null,"Ramp Reference Station","LR-RSR",null,null,null,null,null,null,null,null,null,null,null,null,null,null,null,null,null,null,null,null,null,null,null,null,null,null,null,null,null,null,null,null,null,null,null,null,null,null,null,null,null,null,null,null,null,null,null,null,null,null,null,null,"Services South East (NZ) Ltd.","SS2",null,null,null,null,"Services South East (NZ) Ltd.","SS2"]
[null,null,null,"Roundabout Reference","LR-RSW",null,null,null,null,null,null,null,null,null,null,null,null,null,null,null,null,null,null,null,null,null,null,null,null,null,null,null,null,null,null,null,null,null,null,null,null,null,null,null,null,null,null,null,null,null,null,null,null,null,null,null,null,"Services South East Pty Ltd","SSE",null,null,null,null,"Services South East Pty Ltd","SSE"]
[null,null,null,"Tunnel Serial Number","LR-TSN",null,null,null,null,null,null,null,null,null,null,null,null,null,null,null,null,null,null,null,null,null,null,null,null,null,null,null,null,null,null,null,null,null,null,null,null,null,null,null,null,null,null,null,null,null,null,null,null,null,null,null,null,"Tonkin & Taylor Ltd","T&T",null,null,null,null,"Tonkin & Taylor Ltd","T&T"]
[null,null,null,"Advance Exit Sign","MI-1",null,null,null,null,null,null,null,null,null,null,null,null,null,null,null,null,null,null,null,null,null,null,null,null,null,null,null,null,null,null,null,null,null,null,null,null,null,null,null,null,null,null,null,null,null,null,null,null,null,null,null,null,"Tasman Howey","TAS",null,null,null,null,"Tasman Howey","TAS"]
[null,null,null,"Advance Exit Sign","MI-10",null,null,null,null,null,null,null,null,null,null,null,null,null,null,null,null,null,null,null,null,null,null,null,null,null,null,null,null,null,null,null,null,null,null,null,null,null,null,null,null,null,null,null,null,null,null,null,null,null,null,null,null,"NZTA and WDM","TAW",null,null,null,null,"NZTA and WDM","TAW"]
[null,null,null,"Second Advance Exit - Overhead Mounted","MI-11",null,null,null,null,null,null,null,null,null,null,null,null,null,null,null,null,null,null,null,null,null,null,null,null,null,null,null,null,null,null,null,null,null,null,null,null,null,null,null,null,null,null,null,null,null,null,null,null,null,null,null,null,"Tauranga City Council","TC2",null,null,null,null,"Tauranga City Council","TC2"]
[null,null,null,"Second Advance Exit for a Lane Drop with 'Exit Only'","MI-11.1",null,null,null,null,null,null,null,null,null,null,null,null,null,null,null,null,null,null,null,null,null,null,null,null,null,null,null,null,null,null,null,null,null,null,null,null,null,null,null,null,null,null,null,null,null,null,null,null,null,null,null,null,"Taranaki Civil Construction","TCC",null,null,null,null,"Taranaki Civil Construction","TCC"]
[null,null,null,"Second Advance Exit 'Left Lane' alt. - Ground Mounted","MI-11.2",null,null,null,null,null,null,null,null,null,null,null,null,null,null,null,null,null,null,null,null,null,null,null,null,null,null,null,null,null,null,null,null,null,null,null,null,null,null,null,null,null,null,null,null,null,null,null,null,null,null,null,null,"TC Nicholls","TCN",null,null,null,null,"TC Nicholls","TCN"]
[null,null,null,"Advance Exit with 'Exit Only' and Lane Assignment","MI-12.1",null,null,null,null,null,null,null,null,null,null,null,null,null,null,null,null,null,null,null,null,null,null,null,null,null,null,null,null,null,null,null,null,null,null,null,null,null,null,null,null,null,null,null,null,null,null,null,null,null,null,null,null,"Traffic Control Systems","TCS",null,null,null,null,"Traffic Control Systems","TCS"]
[null,null,null,"Diagrammatic Advance Two Lane Exit - Overhead Mounted","MI-13",null,null,null,null,null,null,null,null,null,null,null,null,null,null,null,null,null,null,null,null,null,null,null,null,null,null,null,null,null,null,null,null,null,null,null,null,null,null,null,null,null,null,null,null,null,null,null,null,null,null,null,null,"Taupo District Council","TD2",null,null,null,null,"Taupo District Council","TD2"]
[null,null,null,"Diagrammatic Advance Two Lane Exit with 'Exit Only'","MI-13.1",null,null,null,null,null,null,null,null,null,null,null,null,null,null,null,null,null,null,null,null,null,null,null,null,null,null,null,null,null,null,null,null,null,null,null,null,null,null,null,null,null,null,null,null,null,null,null,null,null,null,null,null,"Tasman District Council","TDC",null,null,null,null,"Tasman District Council","TDC"]
[null,null,null,"Diagrammatic Advance Diverge Exit - Overhead Mounted","MI-13.2",null,null,null,null,null,null,null,null,null,null,null,null,null,null,null,null,null,null,null,null,null,null,null,null,null,null,null,null,null,null,null,null,null,null,null,null,null,null,null,null,null,null,null,null,null,null,null,null,null,null,null,null,"The Datastack Ltd","TDL",null,null,null,null,"The Datastack Ltd","TDL"]
[null,null,null,"Exit Direction with 'Exit Only' - Overhead Mounted","MI-14.1",null,null,null,null,null,null,null,null,null,null,null,null,null,null,null,null,null,null,null,null,null,null,null,null,null,null,null,null,null,null,null,null,null,null,null,null,null,null,null,null,null,null,null,null,null,null,null,null,null,null,null,null,"Taupo East Traffic Services Contractor","TET",null,null,null,null,"Taupo East Traffic Services Contractor","TET"]
[null,null,null,"Two Lane Exit Direction - Overhead Mounted","MI-15",null,null,null,null,null,null,null,null,null,null,null,null,null,null,null,null,null,null,null,null,null,null,null,null,null,null,null,null,null,null,null,null,null,null,null,null,null,null,null,null,null,null,null,null,null,null,null,null,null,null,null,null,"Broadspectrum (NZ) Ltd","TFD",null,null,null,null,"Broadspectrum (NZ) Ltd","TFD"]
[null,null,null,"Two Lane Exit Direction with 'Exit Only' - Overhead Mou","MI-15.1",null,null,null,null,null,null,null,null,null,null,null,null,null,null,null,null,null,null,null,null,null,null,null,null,null,null,null,null,null,null,null,null,null,null,null,null,null,null,null,null,null,null,null,null,null,null,null,null,null,null,null,null,"Waka Kotahi NZ Transport Agency","TNZ",null,null,null,null,"Waka Kotahi NZ Transport Agency","TNZ"]
[null,null,null,"Two Lane Diverge Exit Direction - Overhead Mounted","MI-15.2",null,null,null,null,null,null,null,null,null,null,null,null,null,null,null,null,null,null,null,null,null,null,null,null,null,null,null,null,null,null,null,null,null,null,null,null,null,null,null,null,null,null,null,null,null,null,null,null,null,null,null,null,"Top Energy","TOP",null,null,null,null,"Top Energy","TOP"]
[null,null,null,"Second Advance Exit Left Lane alt. - Ground Mounted","MI-2",null,null,null,null,null,null,null,null,null,null,null,null,null,null,null,null,null,null,null,null,null,null,null,null,null,null,null,null,null,null,null,null,null,null,null,null,null,null,null,null,null,null,null,null,null,null,null,null,null,null,null,null,"The Roading Company","TRC",null,null,null,null,"The Roading Company","TRC"]
[null,null,null,"Interchange Sequence - Ground Mounted","MI-20",null,null,null,null,null,null,null,null,null,null,null,null,null,null,null,null,null,null,null,null,null,null,null,null,null,null,null,null,null,null,null,null,null,null,null,null,null,null,null,null,null,null,null,null,null,null,null,null,null,null,null,null,"Transfield Services (NZ) Ltd","TS(",null,null,null,null,"Transfield Services (NZ) Ltd","TS("]
[null,null,null,"Interchange Sequence - Overhead Mounted","MI-21",null,null,null,null,null,null,null,null,null,null,null,null,null,null,null,null,null,null,null,null,null,null,null,null,null,null,null,null,null,null,null,null,null,null,null,null,null,null,null,null,null,null,null,null,null,null,null,null,null,null,null,null,"Tonkin and Taylor Ltd","TT",null,null,null,null,"Tonkin and Taylor Ltd","TT"]
[null,null,null,"Pull Through - Overhead Mounted","MI-22",null,null,null,null,null,null,null,null,null,null,null,null,null,null,null,null,null,null,null,null,null,null,null,null,null,null,null,null,null,null,null,null,null,null,null,null,null,null,null,null,null,null,null,null,null,null,null,null,null,null,null,null,"Tyco Traffic and Transportation","TYC",null,null,null,null,"Tyco Traffic and Transportation","TYC"]
[null,null,null,"Supplementary Exit Number Plate - Ground Mounted","MI-25.1",null,null,null,null,null,null,null,null,null,null,null,null,null,null,null,null,null,null,null,null,null,null,null,null,null,null,null,null,null,null,null,null,null,null,null,null,null,null,null,null,null,null,null,null,null,null,null,null,null,null,null,null,"Urban Connection Ltd","UCL",null,null,null,null,"Urban Connection Ltd","UCL"]
[null,null,null,"Supplementary Exit Number Plate - Overhead Mounted","MI-25.2",null,null,null,null,null,null,null,null,null,null,null,null,null,null,null,null,null,null,null,null,null,null,null,null,null,null,null,null,null,null,null,null,null,null,null,null,null,null,null,null,null,null,null,null,null,null,null,null,null,null,null,null,"University of Canterbury","UOC",null,null,null,null,"University of Canterbury","UOC"]
[null,null,null,"Lane Ends 200m - Overhead Mounted","MI-29",null,null,null,null,null,null,null,null,null,null,null,null,null,null,null,null,null,null,null,null,null,null,null,null,null,null,null,null,null,null,null,null,null,null,null,null,null,null,null,null,null,null,null,null,null,null,null,null,null,null,null,null,"Ventia Pty Ltd","VPL",null,null,null,null,"Ventia Pty Ltd","VPL"]
[null,null,null,"Exit Direction","MI-3",null,null,null,null,null,null,null,null,null,null,null,null,null,null,null,null,null,null,null,null,null,null,null,null,null,null,null,null,null,null,null,null,null,null,null,null,null,null,null,null,null,null,null,null,null,null,null,null,null,null,null,null,"Western Bay of Plenty District Council","WBO",null,null,null,null,"Western Bay of Plenty District Council","WBO"]
[null,null,null,"Motorway Begins (Named Motorway) - Ground Mounted","MI-30.1",null,null,null,null,null,null,null,null,null,null,null,null,null,null,null,null,null,null,null,null,null,null,null,null,null,null,null,null,null,null,null,null,null,null,null,null,null,null,null,null,null,null,null,null,null,null,null,null,null,null,null,null,"Wellington City Council","WCC",null,null,null,null,"Wellington City Council","WCC"]
[null,null,null,"'Motorway' (Named Motorway On Ramp) - Ground Mounted","MI-33.1",null,null,null,null,null,null,null,null,null,null,null,null,null,null,null,null,null,null,null,null,null,null,null,null,null,null,null,null,null,null,null,null,null,null,null,null,null,null,null,null,null,null,null,null,null,null,null,null,null,null,null,null,"Waimakariri District Council","WD2",null,null,null,null,"Waimakariri District Council","WD2"]
[null,null,null,"Speed Limit+Motorway+No Pedestrians+No Cyclist+MWY Ramp","MI-33.2",null,null,null,null,null,null,null,null,null,null,null,null,null,null,null,null,null,null,null,null,null,null,null,null,null,null,null,null,null,null,null,null,null,null,null,null,null,null,null,null,null,null,null,null,null,null,null,null,null,null,null,null,"Whakatane District Council","WD3",null,null,null,null,"Whakatane District Council","WD3"]
[null,null,null,"Combined Speed Limit/Motorway Ends (Off Ramp)","MI-34.1",null,null,null,null,null,null,null,null,null,null,null,null,null,null,null,null,null,null,null,null,null,null,null,null,null,null,null,null,null,null,null,null,null,null,null,null,null,null,null,null,null,null,null,null,null,null,null,null,null,null,null,null,"Wairoa District Council","WD4",null,null,null,null,"Wairoa District Council","WD4"]
[null,null,null,"Advance Toll Road Begins - Ground Mounted","MI-35",null,null,null,null,null,null,null,null,null,null,null,null,null,null,null,null,null,null,null,null,null,null,null,null,null,null,null,null,null,null,null,null,null,null,null,null,null,null,null,null,null,null,null,null,null,null,null,null,null,null,null,null,"Waipa District Council","WD5",null,null,null,null,"Waipa District Council","WD5"]
[null,null,null,"Toll Road Begins - Ground Mounted","MI-36",null,null,null,null,null,null,null,null,null,null,null,null,null,null,null,null,null,null,null,null,null,null,null,null,null,null,null,null,null,null,null,null,null,null,null,null,null,null,null,null,null,null,null,null,null,null,null,null,null,null,null,null,"Waikato District Council","WD6",null,null,null,null,"Waikato District Council","WD6"]
[null,null,null,"Toll Road Ends - Ground Mounted","MI-37",null,null,null,null,null,null,null,null,null,null,null,null,null,null,null,null,null,null,null,null,null,null,null,null,null,null,null,null,null,null,null,null,null,null,null,null,null,null,null,null,null,null,null,null,null,null,null,null,null,null,null,null,"Whangarei District Council","WDC",null,null,null,null,"Whangarei District Council","WDC"]
[null,null,null,"Combined Wrong Way/No Pedestrians/No Cyclists (On Ramp)","MI-38",null,null,null,null,null,null,null,null,null,null,null,null,null,null,null,null,null,null,null,null,null,null,null,null,null,null,null,null,null,null,null,null,null,null,null,null,null,null,null,null,null,null,null,null,null,null,null,null,null,null,null,null,"WDM","WDM",null,null,null,null,"WDM","WDM"]
[null,null,null,"Exit Sign With Arrow - Ground Mounted","MI-4",null,null,null,null,null,null,null,null,null,null,null,null,null,null,null,null,null,null,null,null,null,null,null,null,null,null,null,null,null,null,null,null,null,null,null,null,null,null,null,null,null,null,null,null,null,null,null,null,null,null,null,null,"WSP-Opus International Consultants Ltd","WIC",null,null,null,null,"WSP-Opus International Consultants Ltd","WIC"]
[null,null,null,"Exit Sign With A One Digit Exit Number - Ground Mounted","MI-4.1",null,null,null,null,null,null,null,null,null,null,null,null,null,null,null,null,null,null,null,null,null,null,null,null,null,null,null,null,null,null,null,null,null,null,null,null,null,null,null,null,null,null,null,null,null,null,null,null,null,null,null,null,"Downer New Zealand Limited","WIL",null,null,null,null,"Downer New Zealand Limited","WIL"]
[null,null,null,"Exit Sign With A Two Digit Exit Number - Ground Mounted","MI-4.2",null,null,null,null,null,null,null,null,null,null,null,null,null,null,null,null,null,null,null,null,null,null,null,null,null,null,null,null,null,null,null,null,null,null,null,null,null,null,null,null,null,null,null,null,null,null,null,null,null,null,null,null,"W J Ashton Service Ltd","WJA",null,null,null,null,"W J Ashton Service Ltd","WJA"]
[null,null,null,"Exit Sign With A Three Digit Exit Number - Ground Mount","MI-4.3",null,null,null,null,null,null,null,null,null,null,null,null,null,null,null,null,null,null,null,null,null,null,null,null,null,null,null,null,null,null,null,null,null,null,null,null,null,null,null,null,null,null,null,null,null,null,null,null,null,null,null,null,"Waka Kotahi NZ Transport Agency - Highways","WK2",null,null,null,null,"Waka Kotahi NZ Transport Agency - Highways","WK2"]
[null,null,null,"Supplementary Advance Exit 'Left Lane - Exit Only'","MI-5",null,null,null,null,null,null,null,null,null,null,null,null,null,null,null,null,null,null,null,null,null,null,null,null,null,null,null,null,null,null,null,null,null,null,null,null,null,null,null,null,null,null,null,null,null,null,null,null,null,null,null,null,"Waka Kotahi NZ Transport Agency","WKN",null,null,null,null,"Waka Kotahi NZ Transport Agency","WKN"]
[null,null,null,"Slow Vehicles Lane 1KM Ahead","MI-51",null,null,null,null,null,null,null,null,null,null,null,null,null,null,null,null,null,null,null,null,null,null,null,null,null,null,null,null,null,null,null,null,null,null,null,null,null,null,null,null,null,null,null,null,null,null,null,null,null,null,null,null,"WSP New Zealand Ltd","WNZ",null,null,null,null,"WSP New Zealand Ltd","WNZ"]
[null,null,null,"Slow Vehicle Lane","MI-52"]
[null,null,null,"Slow Vehicles Use Left Lane","MI-53"]
[null,null,null,"Supplementary Destination - Ground Mounted","MI-6"]
[null,null,null,"Supp. Destination with Distances to Exits -Ground Mount","MI-7"]
[null,null,null,"One Service '____' m ON Left/Right","MS1.1"]
[null,null,null,"Two Services '____' m ON Left/Right","MS1.2"]
[null,null,null,"Three Services '____' m ON Left/Right","MS1.3"]
[null,null,null,"Four services '____' m ON Left/Right","MS1.4"]
[null,null,null,"One Service TURN Left/Right '____' m","MS2.1"]
[null,null,null,"Two Services TURN Left/Right '___' m","MS2.2"]
[null,null,null,"Three Services TURN Left/Right '___' m","MS2.3"]
[null,null,null,"Four Services TURN Left/Right '___' m","MS2.4"]
[null,null,null,"One Service [Chevron]","MS3.1"]
[null,null,null,"Two Services [Chevron]","MS3.2"]
[null,null,null,"Three Services [Chevron]","MS3.3"]
[null,null,null,"Four Services [Chevron]","MS3.4"]
[null,null,null,"One Service [Arrow]","MS4.1"]
[null,null,null,"Two Services [Arrow]","MS4.2"]
[null,null,null,"Three Services [Arrow]","MS4.3"]
[null,null,null,"Four Services [Arrow]","MS4.4"]
[null,null,null,"Radio Information","MSR"]
[null,null,null,"Motorist Fuel Sign 'NEXT KM'","MSS6"]
[null,null,null,"Works End","O-I11"]
[null,null,null,"Obstruction Marker","OM"]
[null,null,null,"Stop Ahead '_____' m","PW1"]
[null,null,null,"T-Junction; Controlled","PW10"]
[null,null,null,"T-Junction; Uncontrolled","PW10.1"]
[null,null,null,"Side Road Junction - Controlled","PW11"]
[null,null,null,"Side Road Junction - Uncontrolled","PW11.1"]
[null,null,null,"Y-Junction; Controlled","PW12"]
[null,null,null,"Y-Junction; Uncontrolled","PW12.1"]
[null,null,null,"Railway Crossing on Side Road - Controlled","PW13"]
[null,null,null,"Railway Crossing on Side Road - Uncontrolled","PW13.1"]
[null,null,null,"Speed Limit Ahead 10KM/H","PW1-3.1"]
[null,null,null,"Railway Crossing at T-Junction; Controlled","PW13.2"]
[null,null,null,"Speed Limit Ahead 20 KM/H","PW1-3.2"]
[null,null,null,"Railway Crossing at T-Junction; Uncontrolled","PW13.3"]
[null,null,null,"Speed Limit Ahead 30 KM/H","PW1-3.3"]
[null,null,null,"Speed Limit Ahead 40 KM/H","PW1-3.4"]
[null,null,null,"Speed Limit Ahead 50KM/H","PW1-3.5"]
[null,null,null,"Speed Limit Ahead 60 KM/H","PW1-3.6"]
[null,null,null,"Speed Limit Ahead 70 KM/H","PW1-3.7"]
[null,null,null,"Speed Limit Ahead 80 KM/H","PW1-3.8"]
[null,null,null,"Speed Limit Ahead 90 KM/H","PW1-3.9"]
[null,null,null,"Railway Crossing","PW14"]
[null,null,null,"Railway '____' Tracks","PW15"]
[null,null,null,"Sharp Curve - Approx. 90 degrees","PW16"]
[null,null,null,"Curve - 15 to 90 degrees","PW17"]
[null,null,null,"Curve - 90 to 120 degrees","PW18"]
[null,null,null,"Curve - Greater than 120 degrees","PW19"]
[null,null,null,"Give Way Ahead '____' m","PW2"]
[null,null,null,"Reverse Curve - Less than 60 degrees","PW20"]
[null,null,null,"Reverse Curve - Greater than 60 degrees","PW21"]
[null,null,null,"Reverse Curve - Decreasing Radii","PW22"]
[null,null,null,"Reverse Curves (less than 1km in extent)","PW23"]
[null,null,null,"Winding Road Next '____' km","PW24"]
[null,null,null,"Curve Advisory Speed (never erected separately)","PW25"]
[null,null,null,"Curve Advisory Speed 5km/h","PW25-05"]
[null,null,null,"Curve Advisory Speed 15km/h","PW25-15"]
[null,null,null,"Curve Advisory Speed 25km/h","PW25-25"]
[null,null,null,"Curve Advisory Speed 35km/h","PW25-35"]
[null,null,null,"Curve Advisory Speed 45km/h","PW25-45"]
[null,null,null,"Curve Advisory Speed 55km/h","PW25-55"]
[null,null,null,"Curve Advisory Speed 65km/h","PW25-65"]
[null,null,null,"Curve Advisory Speed 75km/h","PW25-75"]
[null,null,null,"Curve Advisory Speed 85km/h","PW25-85"]
[null,null,null,"Curve Advisory Speed 95km/h","PW25-95"]
[null,null,null,"Concealed Exit on Curve","PW26"]
[null,null,null,"Steep Grade - Downgrade","PW27"]
[null,null,null,"Steep Grade - Upgrade","PW27.1"]
[null,null,null,"Trucks Use Low Gear (PW27 Supplementary)","PW28"]
[null,null,null,"Pedestrians","PW29"]
[null,null,null,"Traffic Signals","PW3"]
[null,null,null,"Pedestrian Crossing","PW30"]
[null,null,null,"Children","PW31"]
[null,null,null,"School","PW32"]
[null,null,null,"School Crossing","PW33"]
[null,null,null,"School Bus Route","PW34"]
[null,null,null,"School Bus Turns","PW34A"]
[null,null,null,"Cyclists","PW35"]
[null,null,null,"Horses","PW36"]
[null,null,null,"Stock (Cattle)","PW37"]
[null,null,null,"Stock (Sheep)","PW37.1"]
[null,null,null,"Sudden Dip","PW38"]
[null,null,null,"Hump","PW39"]
[null,null,null,"Merging Traffic","PW4"]
[null,null,null,"Uneven Surface","PW40"]
[null,null,null,"Slippery Surface (never erected separately)","PW41"]
[null,null,null,"Slippery Surface - When Frosty","PW41.1"]
[null,null,null,"Slippery Surface - When Frosty Next '_____' km","PW41.1A"]
[null,null,null,"Slippery Surface - When Wet","PW41.2"]
[null,null,null,"Slippery Surface - Gravel Road","PW41.3"]
[null,null,null,"Slips/Falling Debris","PW42"]
[null,null,null,"Road Narrows (Left or Right Side Narrowing)","PW43"]
[null,null,null,"Road Narrows (Both Sides Narrowing)","PW43.1"]
[null,null,null,"Road Narrows Ahead '_____' m","PW43.2"]
[null,null,null,"Lane Reduction - 2 Lanes to 1 Lane","PW43.3"]
[null,null,null,"Lane Reduction - 3 Lanes to 2 Lanes","PW43.4"]
[null,null,null,"Narrow Bridge","PW44"]
[null,null,null,"Narrow Bridge - Caution Wide Vehicles","PW44.1"]
[null,null,null,"Low Clearance - Advance Warning","PW45"]
[null,null,null,"Low Clearance on Structure or Tunnel","PW46"]
[null,null,null,"Overhead Electric Cable (never erected separately)","PW47"]
[null,null,null,"Wind Gusts","PW48"]
[null,null,null,"Fire Station","PW49"]
[null,null,null,"Merging Traffic - Lane Gain","PW4A"]
[null,null,null,"Merging Traffic - Left and Right","PW4B"]
[null,null,null,"Diverge","PW5"]
[null,null,null,"Trucks","PW50"]
[null,null,null,"Aircraft","PW51"]
[null,null,null,"Tunnel","PW52"]
[null,null,null,"Other Hazard (never erected separately)","PW53"]
[null,null,null,"Other Hazard - Ford","PW54"]
[null,null,null,"Other Hazard - Cattle Stop","PW55"]
[null,null,null,"Other Hazard - Gate","PW56"]
[null,null,null,"Railway Level Crossing (Steam Train)","PW57"]
[null,null,null,"Railway Level Crossing Ahead","PW57.1"]
[null,null,null,"Railway Level Crossing/Flashing Light/Signals Ahead","PW58"]
[null,null,null,"Railway Level Crossing - Look for Trains","PW59"]
[null,null,null,"Two Way","PW6"]
[null,null,null,"Railway Level Crossing Substantially at a Right Angle","PW60"]
[null,null,null,"Railway Level Crossing at an Oblique Angle (Right)","PW60.1"]
[null,null,null,"Railway Level Crossing at an Oblique Angle (Left)","PW60.2"]
[null,null,null,"Railway Level Crossing - Intermediate Advance Warning","PW61"]
[null,null,null,"Railway Level Crossing on a Side Road Advance Warning","PW62"]
[null,null,null,"Tram","PW63"]
[null,null,null,"Advance Warning Traffic Signal - Prepare to Stop","PW64"]
[null,null,null,"Advance Warning Traffic Signal - Hidden Queue","PW64.1"]
[null,null,null,"Advance Warning Traffic Signal - Queued Vehicles","PW64.2"]
[null,null,null,"Belisha Beacon Disk","PW65"]
[null,null,null,"Belisha Beacon - Internally Illuminated Globe","PW65A"]
[null,null,null,"Chevron Board","PW66"]
[null,null,null,"Chevron Board - Advisory Speed 15km/h","PW66-15"]
[null,null,null,"Chevron Board - Advisory Speed 25km/h","PW66-25"]
[null,null,null,"Chevron Board - Advisory Speed 35km/h","PW66-35"]
[null,null,null,"Chevron Board - Advisory Speed 45km/h","PW66-45"]
[null,null,null,"Chevron Board - Advisory Speed 55km/h","PW66-55"]
[null,null,null,"Chevron Board - Advisory Speed 65km/h","PW66-65"]
[null,null,null,"Chevron Board - Advisory Speed 75km/h","PW66-75"]
[null,null,null,"Chevron Board - Advisory Speed 85km/h","PW66-85"]
[null,null,null,"Chevron Board - Advisory Speed 95km/h","PW66-95"]
[null,null,null,"Chevron Curve Indicator","PW67"]
[null,null,null,"Chevron Board - T Intersections","PW68"]
[null,null,null,"Chevron Board - Roundabouts","PW69"]
[null,null,null,"Two Way Ahead '____' m","PW7"]
[null,null,null,"Rotary Junction","PW8"]
[null,null,null,"Cross Roads - Controlled (priority route ahead)","PW9"]
[null,null,null,"Cross Roads - Controlled (priority route turns)","PW9.1"]
[null,null,null,"Kiwi Crossing","PW99"]
[null,null,null,"Direction and Placement - Except Buses supplementary","R3-5.1"]
[null,null,null,"Direction and Placement - Except Cycles supplementary","R3-5.2"]
[null,null,null,"Except Authorised Vehicles supplementary","R3-5.3"]
[null,null,null,"Ahead (supplementary)","R7-1"]
[null,null,null,"Begins (supplementary)","R7-2"]
[null,null,null,"Ends (supplementary)","R7-3"]
[null,null,null,"Give Way (supplementary)","R7-4"]
[null,null,null,"Speed Limit","RG1"]
[null,null,null,"No Turns","RG10"]
[null,null,null,"Turn","RG11"]
[null,null,null,"Turn Left","RG12"]
[null,null,null,"Speed Limit 20km/h","RG1-20"]
[null,null,null,"Turn Right","RG13"]
[null,null,null,"Speed Limit 30km/h","RG1-30"]
[null,null,null,"One Way","RG14"]
[null,null,null,"No U Turn","RG15"]
[null,null,null,"Speed Limit 50km/h","RG1-50"]
[null,null,null,"Speed Limit 50km/h with Place Name","RG1-50P"]
[null,null,null,"Road Closed","RG16"]
[null,null,null,"Speed Limit 60km/h","RG1-60"]
[null,null,null,"Speed Limit 60km/h with Place Name","RG1-60P"]
[null,null,null,"Keep Left - Single Disc","RG17"]
[null,null,null,"Keep Left - Twin Disc","RG17.1"]
[null,null,null,"Speed Limit 70km/h","RG1-70"]
[null,null,null,"Speed Limit 70km/h with Place Name","RG1-70P"]
[null,null,null,"Wrong Way","RG18"]
[null,null,null,"Speed Limit 80km/h","RG1-80"]
[null,null,null,"Speed Limit 80km/h with Place Name","RG1-80P"]
[null,null,null,"Single Lane Bridge - Give Way (symbolic)","RG19"]
[null,null,null,"Single Lane Bridge - Give Way (supplementary)","RG19.1"]
[null,null,null,"Road Narrows - Give Way (supplementary)","RG19.1A"]
[null,null,null,"Road Narrows - Give Way (symbolic)","RG19A"]
[null,null,null,"Speed Limit 100km/h","RG2"]
[null,null,null,"Derestriction","RG2.1"]
[null,null,null,"Single Lane - Priority","RG20"]
[null,null,null,"Road Narrows - Priority","RG20A"]
[null,null,null,"Low Clearance at Electrified Railway Crossing","RG21"]
[null,null,null,"Use Left Lane Unless Passing","RG22"]
[null,null,null,"No Pedestrians","RG23"]
[null,null,null,"No Cycling","RG24"]
[null,null,null,"Pedestrians","RG25"]
[null,null,null,"Cycle Route","RG26"]
[null,null,null,"Cycle Route - Begins","RG26.1"]
[null,null,null,"Cycle Route - Ends","RG26.2"]
[null,null,null,"Cycles ONLY","RG26A"]
[null,null,null,"ALL Cycles Must Exit","RG26B"]
[null,null,null,"Shared Path - Pedestrians & Cycles","RG26C"]
[null,null,null,"Shared Path - Pedestrians & Cycles (Defined Positions)","RG26D"]
[null,null,null,"Turning Trafffic Give Way to Pedestrians","RG27"]
[null,null,null,"School Patrol","RG28"]
[null,null,null,"Overhead Lane Use Arrows","RG29"]
[null,null,null,"Limited Speed Zone","RG3"]
[null,null,null,"Railway Level Crossing - Stop on Red Signal","RG30"]
[null,null,null,"Railway Level Crossing - Give Way","RG31"]
[null,null,null,"Railway Level Crossing - Stop","RG32"]
[null,null,null,"Railway Level Crossing/Flashing Light/Signal","RG33"]
[null,null,null,"Keep Right","RG34"]
[null,null,null,"Bus Lane","RG35"]
[null,null,null,"Speed Limit - Temporary","RG4"]
[null,null,null,"Temporary Speed Limit 20km/h","RG4-20"]
[null,null,null,"Temporary Speed Limit 30km/h","RG4-30"]
[null,null,null,"Temporary Speed Limit 50km/h","RG4-50"]
[null,null,null,"Temporary Speed Limit 60km/h","RG4-60"]
[null,null,null,"Temporary Speed Limit 70km/h","RG4-70"]
[null,null,null,"Stop","RG5"]
[null,null,null,"Give Way","RG6"]
[null,null,null,"'____' Traffic (RG6 supplementary)","RG6.1"]
[null,null,null,"Straight Ahead Traffic (RG6 supplementary)","RG6.2"]
[null,null,null,"Right Turning Traffic (RG6 supplementary)","RG6.3"]
[null,null,null,"Roundabout Give Way","RG6R"]
[null,null,null,"No Right Turn","RG7"]
[null,null,null,"No Left Turn","RG8"]
[null,null,null,"No Entry","RG9"]
[null,null,null,"Road Classification - Heavy Vehicles","RH1"]
[null,null,null,"Heavy Vehicle - Max. Length","RH2"]
[null,null,null,"Heavy Vehicle - Bridge Limits","RH4"]
[null,null,null,"Heavy Vehicle - '_____' m (RH4 supplementary)","RH5"]
[null,null,null,"Heavy Vehicle - Axle Limit","RH6"]
[null,null,null,"No Stopping","RP1"]
[null,null,null,"No Stopping At All Times","RP1.1"]
[null,null,null,"No Stopping For '_____' km","RP1.2"]
[null,null,null,"No Stopping - Ends (RP1 supplementary)","RP1.3"]
[null,null,null,"Disabled Parking","RP10"]
[null,null,null,"Zone Parking Notification","RP11"]
[null,null,null,"Repeater Zone Parking","RP12"]
[null,null,null,"No Stopping - Specified Period","RP2"]
[null,null,null,"Late Night Extension (RP2 supplementary)","RP2.1"]
[null,null,null,"Clearway - Single Peak Period","RP3"]
[null,null,null,"Clearway - Two Peak Period","RP3.1"]
[null,null,null,"Begins (RP3 supplementary)","RP3.2"]
[null,null,null,"Ends (RP3 supplementary)","RP3.3"]
[null,null,null,"Mon - Fri (RP3 Clearway supplementary)","RP3.4"]
[null,null,null,"Clearway with Parking Restriction","RP3.5"]
[null,null,null,"Restricted Parking - Standard Hours","RP4"]
[null,null,null,"Restricted Parking - Non Standard Hours","RP4.1"]
[null,null,null,"Restricted Parking - Other Times","RP4.2"]
[null,null,null,"Restricted Parking - Late Night Extension","RP4.3"]
[null,null,null,"Bus Stop","RP5"]
[null,null,null,"Bus Stop [Arrow]","RP5.1"]
[null,null,null,"Taxi Stand","RP6"]
[null,null,null,"Taxi Stand [Arrow]","RP6.1"]
[null,null,null,"Loading Zone","RP7"]
[null,null,null,"Loading Zone [Arrow]","RP7.1"]
[null,null,null,"Loading Zone - Goods Vehicles Only (supplementary)","RP7.2"]
[null,null,null,"Motorcycle Parking","RP8"]
[null,null,null,"Motorcycle Parking [Arrow]","RP8.1"]
[null,null,null,"Cycle Stand","RP9"]
[null,null,null,"Cycle Stand [Arrow]","RP9.1"]
[null,null,null,"Speed Limit Standard 110 km/h","RS4-110"]
[null,null,null,"Subsoil Drain Marker","SDM"]
[null,null,null,"Tourist Heritage Trail","THT"]
[null,null,null,"Tourist Route Marker - Arrow Only","TR1"]
[null,null,null,"Tourist Route Marker - Arrow and Route Number","TR2"]
[null,null,null,"Tourist Route Marker - End and Route Number","TR3"]
[null,null,null,"Tourist Drive Turn Left/Right '____' m","TR4"]
[null,null,null,"Tourist Drive with Route Marker and Chevron","TR5"]
[null,null,null,"Tourist Drive '____' km Follow Route Marker","TR6"]
[null,null,null,"Touring Route Marker - Symbolic","TRM"]
[null,null,null,"Feature '_____' m on Left/Right","TS1"]
[null,null,null,"Feature Turn Left/Right '_____' m","TS2"]
[null,null,null,"Position Sign - One Line Description with Chevron","TS3A"]
[null,null,null,"Position Sign - Two Line Description with Chevron","TS3B"]
[null,null,null,"Feature Name with Arrow","TS4"]
[null,null,null,"Major Tourist Attractions - Special Information","TS5"]
[null,null,null,"Welcome To ........","TSW"]
[null,null,null,"Roadworks Next '____' km","TW1.1"]
[null,null,null,"Works End (supplementary)","TW16A"]
[null,null,null,"Roadworks","TW1A"]
[null,null,null,"Other Hazard - Flooding","TW2.1"]
[null,null,null,"Road Closed","TW20"]
[null,null,null,"Slippery Surface - Ice/Grit","TW4.1"]
[null,null,null,"Cattle","TW6"]
[null,null,null,"School Advisory Speed 40km/h","W16-9"]
[null,null,null,"School Zone Ends (40km/h Advisory School Zone)","W16-9.1"]
[null,null,null,"Advance Warning of Speed Limit Ahead - 100km/h","WA3-100"]
[null,null,null,"Birds - Penguins","WF33"]
[null,null,null,"Intersection - Merging Traffic Left and Right","WJ7B"]
[null,null,null,"Lane Management - Lane Gain on Left","WL3L"]
[null,null,null,"Lane Management - Lane Gain on Right","WL3R"]
[null,null,null,"Drive on Left","WL5"]
[null,null,null,"Warning (Miscellaneous Sign) - User Defined","WM03"]
[null,null,null,"Warning (Miscellaneous Sign) - User defined","WM04"]
[null,null,null,"Speed Camera Area","WM05"]
[null,null,null,"Weigh Station Ahead","WM06"]
[null,null,null,"Trucks Stop - Weigh Station","WM07"]
[null,null,null,"No Trucks","WM08"]
[null,null,null,"Left Lane Emergency Vehicles Only","WM09"]
[null,null,null,"Bridge Lanes Open","WM10"]
[null,null,null,"Using Lanes with X Prohibited","WM11"]
[null,null,null,"Signals Ahead","WM12"]
[null,null,null,"Slow - Lane Control","WM13"]
[null,null,null,"Signals Ahead - Lane Control","WM14"]
[null,null,null,"Ice (Electronic Warning)","WM15"]
[null,null,null,"Variable (Electronic Warning)","WM16"]
[null,null,null,"Exit (Advisory Speed)","WMW02"]
[null,null,null,"Lane Ends 200m","WMW03"]
[null,null,null,"Cyclists on Narrow Bridge - 40km/h Advisory","WU62"]
[null,null,null,"Bridge End Marker - Left Side","WYBL"]
[null,null,null,"Bridge End Marker - Right Side","WYBR"]